Inv Transaction,Supplier Name,Headserv Name,Stratdir Name,Account Description,Paid Date,Sum of Inv Amount
460468,Masterpalm Properties Ltd,Adult Social Care,Adults,Nursing Home Long Stay Fees,12-Jan,"8,219.89"
460468,PENDELTON COURT T/A HC-One Ltd,Adult Social Care,Adults,Nursing Home Long Stay Fees,28-Feb,"3,012.40"
460469,DEEPDENE CARE LIMITED,Adult Social Care,Adults,Nursing Home Long Stay Fees,17-Jan,"58,350.00"
460470,ARBOUR COURT,Adult Social Care,Adults,Nursing Home Long Stay Fees,27-Jan,"15,600.00"
460470,CARE UK LTD TAS RIVERSIDE CARE CENTRE,Adult Social Care,Adults,Nursing Home Long Stay Fees,27-Jan,"172,743.29"
460470,Cartwright Care Balmoral Management Ltd,Adult Social Care,Adults,Nursing Home Long Stay Fees,27-Jan,"28,877.39"
460470,LAUREL BANK RESIDENTIAL CARE HOME LTD,Adult Social Care,Adults,Nursing Home Long Stay Fees,27-Jan,"15,142.87"
460470,POLEBANK HALL RESIDENTIAL CARE HOME LTD,Adult Social Care,Adults,Nursing Home Long Stay Fees,27-Jan,"14,959.09"
460470,Postgrad Ltd - Treelands Care Home,Adult Social Care,Adults,Nursing Home Long Stay Fees,27-Jan,"3,029.98"
460471,AUDEN HOUSE RESIDENTIAL HOME,Adult Social Care,Adults,Nursing Home Long Stay Fees,27-Jan,"33,978.24"
460472,Abbey Healthcare Ltd t/a Farnworth Care Home,Adult Social Care,Adults,Nursing Home Long Stay Fees,27-Jan,"2,292.00"
460472,Anchor,Adult Social Care,Adults,Nursing Home Long Stay Fees,27-Jan,"2,509.41"
460472,ANCHOR HANOVER GROUP TAS HATTON GRANGE CARE HOME,Adult Social Care,Adults,Nursing Home Long Stay Fees,27-Jan,"43,214.30"
460472,ARBOUR COURT,Adult Social Care,Adults,Nursing Home Long Stay Fees,27-Jan,"26,118.21"
460472,ASHGROVE HOUSE CARE LTD,Adult Social Care,Adults,Nursing Home Long Stay Fees,27-Jan,"2,345.56"
460472,Barchester Healthcare t/a Glenroyd Care Home,Adult Social Care,Adults,Nursing Home Long Stay Fees,27-Jan,"3,887.09"
460472,Beeches t/a Meridian Healthcare LTD,Adult Social Care,Adults,Nursing Home Long Stay Fees,27-Jan,"63,704.31"
460472,BELMONT PARKHILL LTD,Adult Social Care,Adults,Nursing Home Long Stay Fees,27-Jan,"63,976.71"
460472,BOWERFIELD COURT,Adult Social Care,Adults,Nursing Home Long Stay Fees,27-Jan,"17,909.98"
460472,BROOKVALE,Adult Social Care,Adults,Nursing Home Long Stay Fees,27-Jan,"8,644.24"
460472,BROUGHTON HOUSE HOME FOR  EX-SERVICE PERSONNEL,Adult Social Care,Adults,Nursing Home Long Stay Fees,27-Jan,"5,716.29"
460472,CARE TECH - ALPHA HOUSE CARE HOME,Adult Social Care,Adults,Nursing Home Long Stay Fees,27-Jan,"8,820.57"
460472,CARETECH COMMUNITY SERVICES LIMITED,Adult Social Care,Adults,Nursing Home Long Stay Fees,07-Feb,"3,827.70"
460472,CHADDERTON TOTAL CAREUNIT LTD,Adult Social Care,Adults,Nursing Home Long Stay Fees,27-Jan,"4,739.85"
460472,CHERWOOD HOUSE CARE CENTRE,Adult Social Care,Adults,Nursing Home Long Stay Fees,27-Jan,"2,405.04"
460472,Clarence House Care Home,Adult Social Care,Adults,Nursing Home Long Stay Fees,27-Jan,"11,912.37"
460472,Redacted Supplier,Adult Social Care,Adults,Nursing Home Long Stay Fees,27-Jan,"3,543.30"
460472,Daisy Nook House t/a Meridian Healthcare LTD,Adult Social Care,Adults,Nursing Home Long Stay Fees,27-Jan,"47,165.60"
460472,DEEPDENE CARE LIMITED,Adult Social Care,Adults,Nursing Home Long Stay Fees,27-Jan,"4,650.00"
460472,DEVONSHIRE CARE LIMITED TAS CHARNLEY HOUSE,Adult Social Care,Adults,Nursing Home Long Stay Fees,27-Jan,"48,584.11"
460472,DOMAIN CARE NORTH WEST LTD,Adult Social Care,Adults,Nursing Home Long Stay Fees,27-Jan,"8,836.20"
460472,DOVES NEST LTD,Adult Social Care,Adults,Nursing Home Long Stay Fees,27-Jan,"15,555.62"
460472,EACH STEP T/A PARK HOMES UK LTD,Adult Social Care,Adults,Nursing Home Long Stay Fees,27-Jan,"8,092.14"
460472,EAST CHESHIRE HOUSING CONSORTIUM TAS THE COURTYARD,Adult Social Care,Adults,Nursing Home Long Stay Fees,27-Jan,"3,222.67"
460472,EHC MOSTON GRANGE LTD,Adult Social Care,Adults,Nursing Home Long Stay Fees,27-Jan,"45,989.10"
460472,Redacted Supplier,Adult Social Care,Adults,Nursing Home Long Stay Fees,27-Jan,"5,203.16"
460472,Elysium Healthcare,Adult Social Care,Adults,Nursing Home Long Stay Fees,27-Jan,"15,632.02"
460472,Equilibrium Healthcare Ltd tas Oakland House Nursing Home,Adult Social Care,Adults,Nursing Home Long Stay Fees,27-Jan,"33,785.12"
460472,Fairfield View Care Home T/A Fairfield View Ltd (In Administration) T/A Fairfield View,Adult Social Care,Adults,Nursing Home Long Stay Fees,27-Jan,"73,421.21"
460472,FERN BANK THERAPEUTIC COMMUNITY LTD,Adult Social Care,Adults,Nursing Home Long Stay Fees,27-Jan,"29,358.60"
460472,FIELDER LODGE,Adult Social Care,Adults,Nursing Home Long Stay Fees,27-Jan,"4,308.87"
460472,FINBROOK LTD t/a BERRYCROFT MANOR,Adult Social Care,Adults,Nursing Home Long Stay Fees,27-Jan,"3,040.48"
460472,Fir Trees t/a Meridian Healthcare LTD,Adult Social Care,Adults,Nursing Home Long Stay Fees,27-Jan,"98,143.46"
460472,FRANCIS HOUSE FAMILIES LTD,Adult Social Care,Adults,Nursing Home Long Stay Fees,27-Jan,"7,657.60"
460472,Greatwood House t/a Meridian Healthcare LTD,Adult Social Care,Adults,Nursing Home Long Stay Fees,27-Jan,"83,137.80"
460472,HC ONE OF A KIND - KINGS PARK,Adult Social Care,Adults,Nursing Home Long Stay Fees,27-Jan,"47,323.19"
460472,HC-ONE LIMITED - BROOKDALE VIEW,Adult Social Care,Adults,Nursing Home Long Stay Fees,27-Jan,"2,438.12"
460472,"HC-ONE LTD, Sunnyside Care Home",Adult Social Care,Adults,Nursing Home Long Stay Fees,27-Jan,"57,095.20"
460472,HEATHCOTES M LTD,Adult Social Care,Adults,Nursing Home Long Stay Fees,27-Jan,"27,208.30"
460472,HEATHCOTES THE ROOKERY,Adult Social Care,Adults,Nursing Home Long Stay Fees,27-Jan,"18,689.33"
460472,HEATON LODGE,Adult Social Care,Adults,Nursing Home Long Stay Fees,27-Jan,"2,793.12"
460472,Holme Lea t/a Meridian Healthcare LTD,Adult Social Care,Adults,Nursing Home Long Stay Fees,27-Jan,"75,708.99"
460472,HURST HALL CARE HOME LTD,Adult Social Care,Adults,Nursing Home Long Stay Fees,27-Jan,"96,370.33"
460472,Ideal Carehomes Number One Limited,Adult Social Care,Adults,Nursing Home Long Stay Fees,27-Jan,"3,040.48"
460472,L & M HEALTHCARE,Adult Social Care,Adults,Nursing Home Long Stay Fees,27-Jan,"7,269.32"
460472,LONGWOOD LODGE CARE LTD t/a Longwood Lodge Care Home,Adult Social Care,Adults,Nursing Home Long Stay Fees,27-Jan,"2,745.71"
460472,MARPLE DALE HALL LTD,Adult Social Care,Adults,Nursing Home Long Stay Fees,27-Jan,"6,363.63"
460472,Masterpalm Properties Ltd,Adult Social Care,Adults,Nursing Home Long Stay Fees,27-Jan,"5,933.58"
460472,MBI SOCIAL CARE LTD TAS DOWNSHAW LODGE CARE HOME,Adult Social Care,Adults,Nursing Home Long Stay Fees,27-Jan,"53,239.72"
460472,MERIDIAN HEALTH CARE LTD TAS GUIDE LANE,Adult Social Care,Adults,Nursing Home Long Stay Fees,27-Jan,"57,021.29"
460472,Millbrook Care Home t/a Meridian Healthcare LTD,Adult Social Care,Adults,Nursing Home Long Stay Fees,27-Jan,"32,271.19"
460472,MILLFIELD CARE HOME - QUALIA CARE,Adult Social Care,Adults,Nursing Home Long Stay Fees,27-Jan,"2,413.48"
460472,Minster Care Management -T/A REDHILL,Adult Social Care,Adults,Nursing Home Long Stay Fees,27-Jan,"3,302.32"
460472,MOSS COTTAGE NURSING HOME,Adult Social Care,Adults,Nursing Home Long Stay Fees,27-Jan,"44,941.71"
460472,Next Chapter Healthcare Ltd,Adult Social Care,Adults,Nursing Home Long Stay Fees,27-Jan,"11,250.74"
460472,Northern Healthcare Limited tas Holland House/Montgomery House,Adult Social Care,Adults,Nursing Home Long Stay Fees,27-Jan,"9,872.67"
460472,NYMS SERVICES LTD TAS PENNINE CARE CENTRE,Adult Social Care,Adults,Nursing Home Long Stay Fees,27-Jan,"32,708.17"
460472,OAKDENE CARE HOME T/A OAKDENE CARE HOME LTD,Adult Social Care,Adults,Nursing Home Long Stay Fees,27-Jan,"3,957.55"
460472,OAKWOOD CARE CENTRE,Adult Social Care,Adults,Nursing Home Long Stay Fees,27-Jan,"22,288.58"
460472,PARTNERSHIP CARING LTD TAS FIRBANK HOUSE NURSING & RESIDENTIAL CARE HOME,Adult Social Care,Adults,Nursing Home Long Stay Fees,27-Jan,"72,189.30"
460472,Pendlebury Care Homes Ltd tas Regency Hall Care Home,Adult Social Care,Adults,Nursing Home Long Stay Fees,27-Jan,"64,160.11"
460472,PROGRESS CARE & EDUCATION LTD,Adult Social Care,Adults,Nursing Home Long Stay Fees,27-Jan,"17,198.76"
460472,Rochcare (UK) Ltd t/a Coniston House Care Home,Adult Social Care,Adults,Nursing Home Long Stay Fees,27-Jan,"4,647.60"
460472,ROEFIELD SPECIALIST CARE LIMITED t/a THISTLE MANOR,Adult Social Care,Adults,Nursing Home Long Stay Fees,27-Jan,"29,922.21"
460472,Redacted Supplier,Adult Social Care,Adults,Nursing Home Long Stay Fees,27-Jan,"14,683.84"
460472,ROYAL MASONIC BENEVOLENT INSTITUTION,Adult Social Care,Adults,Nursing Home Long Stay Fees,27-Jan,"3,101.11"
460472,SALUTEM LD BIDCO IV LIMITED T/A AMBITO CARE AND EDUCATION,Adult Social Care,Adults,Nursing Home Long Stay Fees,27-Jan,"10,416.89"
460472,Sandon House t/a Meridian Healthcare LTD,Adult Social Care,Adults,Nursing Home Long Stay Fees,27-Jan,"42,023.49"
460472,SOUTHERN CROSS HEALTHCARE,Adult Social Care,Adults,Nursing Home Long Stay Fees,27-Jan,"2,745.08"
460472,SPINAL UNIT ACTION GROUP,Adult Social Care,Adults,Nursing Home Long Stay Fees,27-Jan,"3,864.00"
460472,ST GEORGE'S NURSING HOME (OLDHAM) LTD,Adult Social Care,Adults,Nursing Home Long Stay Fees,27-Jan,"34,347.55"
460472,ST LAWRENCES LODGE,Adult Social Care,Adults,Nursing Home Long Stay Fees,27-Jan,"9,692.00"
460472,STALEY HOUSE EPH,Adult Social Care,Adults,Nursing Home Long Stay Fees,27-Jan,"44,786.10"
460472,Stamford Court Nursing t/a Meridian Healthcare LTD,Adult Social Care,Adults,Nursing Home Long Stay Fees,27-Jan,"97,022.13"
460472,Sun Healthcare T/A Tapton Grove Care Home,Adult Social Care,Adults,Nursing Home Long Stay Fees,27-Jan,"4,809.69"
460472,SUNNY BANK PRS LTD,Adult Social Care,Adults,Nursing Home Long Stay Fees,27-Jan,"3,009.96"
460472,THE FIRS CARE HOME LTD,Adult Social Care,Adults,Nursing Home Long Stay Fees,06-Feb,"4,568.57"
460472,THE JOSEPH COX CHARITY,Adult Social Care,Adults,Nursing Home Long Stay Fees,27-Jan,"11,581.82"
460472,The Lakes Care Centre T/A Blackcliffe Ltd (In Administration) T/A The Lakes Care Centre,Adult Social Care,Adults,Nursing Home Long Stay Fees,27-Jan,"78,487.44"
460472,THE LIGHT HOUSE (Bloomcare Group),Adult Social Care,Adults,Nursing Home Long Stay Fees,27-Jan,"34,641.70"
460472,THE ROYAL ELMS CARE HOME,Adult Social Care,Adults,Nursing Home Long Stay Fees,27-Jan,"5,306.58"
460472,The Sycamores t/a Meridian Health Care LTD,Adult Social Care,Adults,Nursing Home Long Stay Fees,27-Jan,"76,437.05"
460472,THE VICARAGE RESIDENTIAL CARE HOME,Adult Social Care,Adults,Nursing Home Long Stay Fees,27-Jan,"22,371.43"
460472,THORNCLIFFE GRANGE NURSING HOME,Adult Social Care,Adults,Nursing Home Long Stay Fees,27-Jan,"84,635.34"
460472,TRACS Limited,Adult Social Care,Adults,Nursing Home Long Stay Fees,27-Jan,"7,744.64"
460472,TREETOPS,Adult Social Care,Adults,Nursing Home Long Stay Fees,27-Jan,"47,180.52"
460472,Tulsi Homes Ltd T/A Clarkson House (new),Adult Social Care,Adults,Nursing Home Long Stay Fees,27-Jan,"47,733.73"
460472,VOYAGE CARE LIMITED,Adult Social Care,Adults,Nursing Home Long Stay Fees,27-Jan,"23,239.06"
460472,Wellington Healthcare (Arden) Ltd t/a Bloomcare,Adult Social Care,Adults,Nursing Home Long Stay Fees,27-Jan,"2,797.48"
460472,Western Park Leicester Limited t/a Western Park Nursing Home,Adult Social Care,Adults,Nursing Home Long Stay Fees,27-Jan,"2,971.57"
460472,Yew Trees t/a Meridian Healthcare LTD,Adult Social Care,Adults,Nursing Home Long Stay Fees,27-Jan,"118,467.17"
460472,ZZ DUP - The Coach House,Adult Social Care,Adults,Nursing Home Long Stay Fees,27-Jan,"204,790.63"
460473,DEEPDENE CARE LIMITED,Adult Social Care,Adults,Nursing Home Long Stay Fees,08-Feb,"42,750.00"
460474,Abbey Healthcare Ltd t/a Farnworth Care Home,Adult Social Care,Adults,Nursing Home Long Stay Fees,24-Feb,"2,537.57"
460474,Advinia Care Homes Ltd,Adult Social Care,Adults,Nursing Home Long Stay Fees,24-Feb,"1,867.80"
460474,Anchor,Adult Social Care,Adults,Nursing Home Long Stay Fees,24-Feb,"2,266.56"
460474,ANCHOR HANOVER GROUP TAS HATTON GRANGE CARE HOME,Adult Social Care,Adults,Nursing Home Long Stay Fees,24-Feb,"47,542.77"
460474,Appleton Manor T/A HC One Ltd,Adult Social Care,Adults,Nursing Home Long Stay Fees,28-Feb,"5,657.07"
460474,ARBOUR COURT,Adult Social Care,Adults,Nursing Home Long Stay Fees,24-Feb,"14,370.00"
460474,ASHGROVE HOUSE CARE LTD,Adult Social Care,Adults,Nursing Home Long Stay Fees,24-Feb,"2,596.87"
460474,AUDEN HOUSE RESIDENTIAL HOME,Adult Social Care,Adults,Nursing Home Long Stay Fees,24-Feb,"43,543.34"
460474,Barchester Healthcare t/a Glenroyd Care Home,Adult Social Care,Adults,Nursing Home Long Stay Fees,24-Feb,"3,510.92"
460474,Beeches t/a Meridian Healthcare LTD,Adult Social Care,Adults,Nursing Home Long Stay Fees,24-Feb,"63,066.72"
460474,BELMONT PARKHILL LTD,Adult Social Care,Adults,Nursing Home Long Stay Fees,24-Feb,"46,674.36"
460474,BOROUGH CARE LTD,Adult Social Care,Adults,Nursing Home Long Stay Fees,24-Feb,"16,545.29"
460474,BOWERFIELD COURT,Adult Social Care,Adults,Nursing Home Long Stay Fees,24-Feb,"12,202.73"
460474,BROOKFIELD RESIDENTIAL CARE HOME,Adult Social Care,Adults,Nursing Home Long Stay Fees,24-Feb,"5,333.52"
460474,BROOKVALE,Adult Social Care,Adults,Nursing Home Long Stay Fees,24-Feb,"9,570.41"
460474,BROWNLOW HOUSE RESIDENTIAL CARE,Adult Social Care,Adults,Nursing Home Long Stay Fees,24-Feb,"12,716.21"
460474,CARE TECH - ALPHA HOUSE CARE HOME,Adult Social Care,Adults,Nursing Home Long Stay Fees,24-Feb,"7,966.96"
460474,CARE UK LTD TAS RIVERSIDE CARE CENTRE,Adult Social Care,Adults,Nursing Home Long Stay Fees,24-Feb,"160,585.32"
460474,CARETECH COMMUNITY SERVICES LIMITED,Adult Social Care,Adults,Nursing Home Long Stay Fees,24-Feb,"3,457.28"
460474,Cartwright Care Balmoral Management Ltd,Adult Social Care,Adults,Nursing Home Long Stay Fees,24-Feb,"36,104.24"
460474,CHADDERTON TOTAL CAREUNIT LTD,Adult Social Care,Adults,Nursing Home Long Stay Fees,24-Feb,"4,281.16"
460474,CHERWOOD HOUSE CARE CENTRE,Adult Social Care,Adults,Nursing Home Long Stay Fees,24-Feb,"2,662.72"
460474,Cheshire Springs Health Care Ltd,Adult Social Care,Adults,Nursing Home Long Stay Fees,24-Feb,"47,326.66"
460474,Clarence House Care Home,Adult Social Care,Adults,Nursing Home Long Stay Fees,24-Feb,"10,759.56"
460474,Redacted Supplier,Adult Social Care,Adults,Nursing Home Long Stay Fees,24-Feb,"3,200.40"
460474,Daisy Nook House t/a Meridian Healthcare LTD,Adult Social Care,Adults,Nursing Home Long Stay Fees,24-Feb,"49,116.04"
460474,DEEPDENE CARE LIMITED,Adult Social Care,Adults,Nursing Home Long Stay Fees,24-Feb,"8,000.00"
460474,DEVONSHIRE CARE LIMITED TAS CHARNLEY HOUSE,Adult Social Care,Adults,Nursing Home Long Stay Fees,24-Feb,"69,950.48"
460474,DIWALI LTD T/A DIWALI NIVAS,Adult Social Care,Adults,Nursing Home Long Stay Fees,24-Feb,"11,520.00"
460474,DOMAIN CARE NORTH WEST LTD,Adult Social Care,Adults,Nursing Home Long Stay Fees,24-Feb,"7,981.08"
460474,DOVES NEST LTD,Adult Social Care,Adults,Nursing Home Long Stay Fees,24-Feb,"7,621.84"
460474,EAST CHESHIRE HOUSING CONSORTIUM TAS THE COURTYARD,Adult Social Care,Adults,Nursing Home Long Stay Fees,24-Feb,"2,910.80"
460474,Redacted Supplier,Adult Social Care,Adults,Nursing Home Long Stay Fees,24-Feb,"5,760.64"
460474,Elysium Healthcare,Adult Social Care,Adults,Nursing Home Long Stay Fees,24-Feb,"14,119.24"
460474,Fairfield View Care Home T/A Fairfield View Ltd (In Administration) T/A Fairfield View,Adult Social Care,Adults,Nursing Home Long Stay Fees,24-Feb,"108,157.24"
460474,FERN BANK THERAPEUTIC COMMUNITY LTD,Adult Social Care,Adults,Nursing Home Long Stay Fees,24-Feb,"26,517.44"
460474,Fir Trees t/a Meridian Healthcare LTD,Adult Social Care,Adults,Nursing Home Long Stay Fees,24-Feb,"99,118.65"
460474,Greatwood House t/a Meridian Healthcare LTD,Adult Social Care,Adults,Nursing Home Long Stay Fees,24-Feb,"77,574.98"
460474,HC ONE OF A KIND - KINGS PARK,Adult Social Care,Adults,Nursing Home Long Stay Fees,24-Feb,"61,722.84"
460474,HC-ONE LIMITED - BROOKDALE VIEW,Adult Social Care,Adults,Nursing Home Long Stay Fees,24-Feb,"2,699.35"
460474,"HC-ONE LTD, Sunnyside Care Home",Adult Social Care,Adults,Nursing Home Long Stay Fees,24-Feb,"67,468.06"
460474,HEATHCOTES M LTD,Adult Social Care,Adults,Nursing Home Long Stay Fees,24-Feb,"24,575.24"
460474,HEATHCOTES THE ROOKERY,Adult Social Care,Adults,Nursing Home Long Stay Fees,24-Feb,"8,586.28"
460474,HEATON LODGE,Adult Social Care,Adults,Nursing Home Long Stay Fees,24-Feb,"3,092.38"
460474,Holme Lea t/a Meridian Healthcare LTD,Adult Social Care,Adults,Nursing Home Long Stay Fees,24-Feb,"121,765.28"
460474,HURST HALL CARE HOME LTD,Adult Social Care,Adults,Nursing Home Long Stay Fees,24-Feb,"95,483.74"
460474,JVT CARE HOMES LTD T/A WATFORD HOUSE CARE HOME,Adult Social Care,Adults,Nursing Home Long Stay Fees,24-Feb,"5,557.38"
460474,L & M HEALTHCARE,Adult Social Care,Adults,Nursing Home Long Stay Fees,24-Feb,"6,565.84"
460474,LAUREL BANK RESIDENTIAL CARE HOME LTD,Adult Social Care,Adults,Nursing Home Long Stay Fees,24-Feb,"9,712.58"
460474,LEONARD CHESHIRE DISABILITY,Adult Social Care,Adults,Nursing Home Long Stay Fees,24-Feb,"23,927.87"
460474,LONGWOOD LODGE CARE LTD t/a Longwood Lodge Care Home,Adult Social Care,Adults,Nursing Home Long Stay Fees,24-Feb,"2,480.00"
460474,MARPLE DALE HALL LTD,Adult Social Care,Adults,Nursing Home Long Stay Fees,24-Feb,"6,345.49"
460474,Masterpalm Properties Ltd,Adult Social Care,Adults,Nursing Home Long Stay Fees,24-Feb,"5,359.36"
460474,MBI SOCIAL CARE LTD TAS DOWNSHAW LODGE CARE HOME,Adult Social Care,Adults,Nursing Home Long Stay Fees,24-Feb,"84,348.12"
460474,MERIDIAN HEALTH CARE LTD TAS GUIDE LANE,Adult Social Care,Adults,Nursing Home Long Stay Fees,24-Feb,"47,667.23"
460474,Millbrook Care Home t/a Meridian Healthcare LTD,Adult Social Care,Adults,Nursing Home Long Stay Fees,24-Feb,"38,565.85"
460474,Minster Care Management -T/A REDHILL,Adult Social Care,Adults,Nursing Home Long Stay Fees,24-Feb,"3,656.14"
460474,MOSS COTTAGE NURSING HOME,Adult Social Care,Adults,Nursing Home Long Stay Fees,24-Feb,"113,877.58"
460474,Next Chapter Healthcare Ltd,Adult Social Care,Adults,Nursing Home Long Stay Fees,24-Feb,"10,161.96"
460474,Northern Healthcare Limited tas Holland House/Montgomery House,Adult Social Care,Adults,Nursing Home Long Stay Fees,24-Feb,"10,079.78"
460474,NYMS SERVICES LTD TAS PENNINE CARE CENTRE,Adult Social Care,Adults,Nursing Home Long Stay Fees,24-Feb,"29,258.16"
460474,OAKDENE CARE HOME T/A OAKDENE CARE HOME LTD,Adult Social Care,Adults,Nursing Home Long Stay Fees,24-Feb,"3,574.56"
460474,OAKWOOD CARE CENTRE,Adult Social Care,Adults,Nursing Home Long Stay Fees,24-Feb,"38,574.24"
460474,PARKVIEW CARE HOME,Adult Social Care,Adults,Nursing Home Long Stay Fees,24-Feb,"15,620.64"
460474,PARTNERSHIP CARING LTD TAS FIRBANK HOUSE NURSING & RESIDENTIAL CARE HOME,Adult Social Care,Adults,Nursing Home Long Stay Fees,24-Feb,"97,767.84"
460474,Pendlebury Care Homes Ltd tas Regency Hall Care Home,Adult Social Care,Adults,Nursing Home Long Stay Fees,24-Feb,"24,827.44"
460474,POLEBANK HALL RESIDENTIAL CARE HOME LTD,Adult Social Care,Adults,Nursing Home Long Stay Fees,24-Feb,"14,600.77"
460474,Postgrad Ltd - Treelands Care Home,Adult Social Care,Adults,Nursing Home Long Stay Fees,24-Feb,"2,736.76"
460474,PROGRESS CARE & EDUCATION LTD,Adult Social Care,Adults,Nursing Home Long Stay Fees,24-Feb,"15,534.36"
460474,ROEFIELD SPECIALIST CARE LIMITED t/a THISTLE MANOR,Adult Social Care,Adults,Nursing Home Long Stay Fees,24-Feb,"44,435.52"
460474,Redacted Supplier,Adult Social Care,Adults,Nursing Home Long Stay Fees,24-Feb,"16,257.11"
460474,ROYAL MASONIC BENEVOLENT INSTITUTION,Adult Social Care,Adults,Nursing Home Long Stay Fees,24-Feb,"2,801.00"
460474,SALUTEM LD BIDCO IV LIMITED T/A AMBITO CARE AND EDUCATION,Adult Social Care,Adults,Nursing Home Long Stay Fees,24-Feb,"9,408.80"
460474,Sanctuary Care Ltd,Adult Social Care,Adults,Nursing Home Long Stay Fees,24-Feb,"6,656.46"
460474,Sandon House t/a Meridian Healthcare LTD,Adult Social Care,Adults,Nursing Home Long Stay Fees,24-Feb,"54,878.75"
460474,SPINAL UNIT ACTION GROUP,Adult Social Care,Adults,Nursing Home Long Stay Fees,24-Feb,"4,278.00"
460474,St Christopher�s Trust,Adult Social Care,Adults,Nursing Home Long Stay Fees,24-Feb,"28,116.00"
460474,ST GEORGE'S NURSING HOME (OLDHAM) LTD,Adult Social Care,Adults,Nursing Home Long Stay Fees,24-Feb,"41,747.31"
460474,ST LAWRENCES LODGE,Adult Social Care,Adults,Nursing Home Long Stay Fees,24-Feb,"15,680.43"
460474,STALEY HOUSE EPH,Adult Social Care,Adults,Nursing Home Long Stay Fees,24-Feb,"50,003.06"
460474,Stamford Court Nursing t/a Meridian Healthcare LTD,Adult Social Care,Adults,Nursing Home Long Stay Fees,24-Feb,"74,072.83"
460474,SUNNY BANK PRS LTD,Adult Social Care,Adults,Nursing Home Long Stay Fees,24-Feb,"3,332.46"
460474,Thames House t/a Exemplar Health Care Partnerships LTD,Adult Social Care,Adults,Nursing Home Long Stay Fees,24-Feb,"27,283.80"
460474,The Coppice Care Home,Adult Social Care,Adults,Nursing Home Long Stay Fees,24-Feb,"8,053.71"
460474,THE JOSEPH COX CHARITY,Adult Social Care,Adults,Nursing Home Long Stay Fees,24-Feb,"6,187.84"
460474,The Lakes Care Centre T/A Blackcliffe Ltd (In Administration) T/A The Lakes Care Centre,Adult Social Care,Adults,Nursing Home Long Stay Fees,24-Feb,"73,557.54"
460474,THE LIGHT HOUSE (Bloomcare Group),Adult Social Care,Adults,Nursing Home Long Stay Fees,24-Feb,"37,874.92"
460474,THE ROYAL ELMS CARE HOME,Adult Social Care,Adults,Nursing Home Long Stay Fees,24-Feb,"7,360.74"
460474,THE SEYMOUR HOME LTD t/a Seymour Care Home,Adult Social Care,Adults,Nursing Home Long Stay Fees,24-Feb,"5,150.95"
460474,The Sycamores t/a Meridian Health Care LTD,Adult Social Care,Adults,Nursing Home Long Stay Fees,24-Feb,"91,448.77"
460474,THE VICARAGE RESIDENTIAL CARE HOME,Adult Social Care,Adults,Nursing Home Long Stay Fees,24-Feb,"19,305.70"
460474,THORNCLIFFE GRANGE NURSING HOME,Adult Social Care,Adults,Nursing Home Long Stay Fees,24-Feb,"89,104.92"
460474,TRACS Limited,Adult Social Care,Adults,Nursing Home Long Stay Fees,24-Feb,"6,995.16"
460474,TREETOPS,Adult Social Care,Adults,Nursing Home Long Stay Fees,24-Feb,"66,432.23"
460474,TRIBUTARY LTD t/a  ASQUITH HALL CARE HOME,Adult Social Care,Adults,Nursing Home Long Stay Fees,24-Feb,"78,571.42"
460474,Tulsi Homes Ltd T/A Clarkson House (new),Adult Social Care,Adults,Nursing Home Long Stay Fees,24-Feb,"53,341.43"
460474,Wellington Healthcare (Arden) Ltd t/a Bloomcare,Adult Social Care,Adults,Nursing Home Long Stay Fees,24-Feb,"2,526.76"
460474,Western Park Leicester Limited t/a Western Park Nursing Home,Adult Social Care,Adults,Nursing Home Long Stay Fees,24-Feb,"2,684.00"
460474,Yew Trees t/a Meridian Healthcare LTD,Adult Social Care,Adults,Nursing Home Long Stay Fees,24-Feb,"66,181.20"
460474,ZZ DUP - The Coach House,Adult Social Care,Adults,Nursing Home Long Stay Fees,24-Feb,"54,846.88"
460475,Fairfield View Care Home T/A Fairfield View Ltd (In Administration) T/A Fairfield View,Adult Social Care,Adults,Nursing Home Long Stay Fees,28-Mar,"120,292.95"
460475,The Lakes Care Centre T/A Blackcliffe Ltd (In Administration) T/A The Lakes Care Centre,Adult Social Care,Adults,Nursing Home Long Stay Fees,28-Mar,"72,046.48"
460476,Achieve Together Limited,Adult Social Care,Adults,Nursing Home Long Stay Fees,29-Mar,"11,117.83"
460476,Advinia Care Homes Ltd,Adult Social Care,Adults,Nursing Home Long Stay Fees,29-Mar,"1,392.86"
460476,Anchor,Adult Social Care,Adults,Nursing Home Long Stay Fees,29-Mar,"2,509.41"
460476,Appleton Manor T/A HC One Ltd,Adult Social Care,Adults,Nursing Home Long Stay Fees,29-Mar,"5,526.38"
460476,AUDEN HOUSE RESIDENTIAL HOME,Adult Social Care,Adults,Nursing Home Long Stay Fees,29-Mar,"7,380.23"
460476,Beeches t/a Meridian Healthcare LTD,Adult Social Care,Adults,Nursing Home Long Stay Fees,29-Mar,"24,761.31"
460476,BELMONT PARKHILL LTD,Adult Social Care,Adults,Nursing Home Long Stay Fees,29-Mar,"16,844.87"
460476,BOWERFIELD COURT,Adult Social Care,Adults,Nursing Home Long Stay Fees,29-Mar,"10,398.50"
460476,BROOKFIELD RESIDENTIAL CARE HOME,Adult Social Care,Adults,Nursing Home Long Stay Fees,29-Mar,"2,802.36"
460476,BROWNLOW HOUSE RESIDENTIAL CARE,Adult Social Care,Adults,Nursing Home Long Stay Fees,29-Mar,"7,212.20"
460476,CAPSTONE CARE LTD T/A WALSHAW HALL,Adult Social Care,Adults,Nursing Home Long Stay Fees,29-Mar,"6,720.69"
460476,CARE TECH - ALPHA HOUSE CARE HOME,Adult Social Care,Adults,Nursing Home Long Stay Fees,29-Mar,"8,820.57"
460476,CARE UK LTD TAS RIVERSIDE CARE CENTRE,Adult Social Care,Adults,Nursing Home Long Stay Fees,29-Mar,"157,221.06"
460476,CARETECH COMMUNITY SERVICES LIMITED,Adult Social Care,Adults,Nursing Home Long Stay Fees,29-Mar,"155,484.04"
460476,Cartwright Care Balmoral Management Ltd,Adult Social Care,Adults,Nursing Home Long Stay Fees,29-Mar,"1,036.60"
460476,CHADDERTON TOTAL CAREUNIT LTD,Adult Social Care,Adults,Nursing Home Long Stay Fees,29-Mar,"4,739.85"
460476,Cheshire Springs Health Care Ltd,Adult Social Care,Adults,Nursing Home Long Stay Fees,29-Mar,"17,059.61"
460476,Clarence House Care Home,Adult Social Care,Adults,Nursing Home Long Stay Fees,29-Mar,"11,912.37"
460476,Redacted Supplier,Adult Social Care,Adults,Nursing Home Long Stay Fees,29-Mar,"3,543.30"
460476,Daisy Nook House t/a Meridian Healthcare LTD,Adult Social Care,Adults,Nursing Home Long Stay Fees,29-Mar,"3,103.00"
460476,DEEPDENE CARE LIMITED,Adult Social Care,Adults,Nursing Home Long Stay Fees,29-Mar,"8,857.14"
460476,DEVONSHIRE CARE LIMITED TAS CHARNLEY HOUSE,Adult Social Care,Adults,Nursing Home Long Stay Fees,29-Mar,"40,870.92"
460476,DIWALI LTD T/A DIWALI NIVAS,Adult Social Care,Adults,Nursing Home Long Stay Fees,29-Mar,"2,688.00"
460476,DOMAIN CARE NORTH WEST LTD,Adult Social Care,Adults,Nursing Home Long Stay Fees,29-Mar,"8,836.20"
460476,EACH STEP T/A PARK HOMES UK LTD,Adult Social Care,Adults,Nursing Home Long Stay Fees,29-Mar,"6,134.37"
460476,EAST CHESHIRE HOUSING CONSORTIUM TAS THE COURTYARD,Adult Social Care,Adults,Nursing Home Long Stay Fees,29-Mar,"3,222.67"
460476,EHC MOSTON GRANGE LTD,Adult Social Care,Adults,Nursing Home Long Stay Fees,29-Mar,"87,527.66"
460476,Elysium Healthcare,Adult Social Care,Adults,Nursing Home Long Stay Fees,29-Mar,"15,632.02"
460476,Equilibrium Healthcare Ltd tas Oakland House Nursing Home,Adult Social Care,Adults,Nursing Home Long Stay Fees,29-Mar,"64,300.72"
460476,FERN BANK THERAPEUTIC COMMUNITY LTD,Adult Social Care,Adults,Nursing Home Long Stay Fees,29-Mar,"29,358.60"
460476,FIELDER LODGE,Adult Social Care,Adults,Nursing Home Long Stay Fees,29-Mar,"8,200.75"
460476,FINBROOK LTD t/a BERRYCROFT MANOR,Adult Social Care,Adults,Nursing Home Long Stay Fees,29-Mar,"5,786.72"
460476,Fir Trees t/a Meridian Healthcare LTD,Adult Social Care,Adults,Nursing Home Long Stay Fees,29-Mar,"13,653.21"
460476,FRANCIS HOUSE FAMILIES LTD,Adult Social Care,Adults,Nursing Home Long Stay Fees,29-Mar,"3,708.70"
460476,Greatwood House t/a Meridian Healthcare LTD,Adult Social Care,Adults,Nursing Home Long Stay Fees,29-Mar,"28,902.27"
460476,"HC-ONE LTD, Sunnyside Care Home",Adult Social Care,Adults,Nursing Home Long Stay Fees,29-Mar,"28,015.66"
460476,HEATHCOTES M LTD,Adult Social Care,Adults,Nursing Home Long Stay Fees,29-Mar,"27,208.30"
460476,HEATHCOTES THE ROOKERY,Adult Social Care,Adults,Nursing Home Long Stay Fees,29-Mar,"27,872.41"
460476,HIGHFIELD HOUSE CARE HOME,Adult Social Care,Adults,Nursing Home Long Stay Fees,29-Mar,"7,367.14"
460476,Holme Lea t/a Meridian Healthcare LTD,Adult Social Care,Adults,Nursing Home Long Stay Fees,29-Mar,"18,260.63"
460476,HURST HALL CARE HOME LTD,Adult Social Care,Adults,Nursing Home Long Stay Fees,29-Mar,"29,256.87"
460476,JVT CARE HOMES LTD T/A WATFORD HOUSE CARE HOME,Adult Social Care,Adults,Nursing Home Long Stay Fees,29-Mar,"2,919.98"
460476,L & M HEALTHCARE,Adult Social Care,Adults,Nursing Home Long Stay Fees,29-Mar,"7,269.32"
460476,LAUREL BANK RESIDENTIAL CARE HOME LTD,Adult Social Care,Adults,Nursing Home Long Stay Fees,29-Mar,"8,377.14"
460476,LEONARD CHESHIRE DISABILITY,Adult Social Care,Adults,Nursing Home Long Stay Fees,29-Mar,"12,572.27"
460476,MARPLE DALE HALL LTD,Adult Social Care,Adults,Nursing Home Long Stay Fees,29-Mar,"6,393.51"
460476,MBI SOCIAL CARE LTD TAS DOWNSHAW LODGE CARE HOME,Adult Social Care,Adults,Nursing Home Long Stay Fees,29-Mar,"43,158.65"
460476,MERIDIAN HEALTH CARE LTD TAS GUIDE LANE,Adult Social Care,Adults,Nursing Home Long Stay Fees,29-Mar,"32,593.77"
460476,Millbrook Care Home t/a Meridian Healthcare LTD,Adult Social Care,Adults,Nursing Home Long Stay Fees,29-Mar,"3,390.40"
460476,MOSS COTTAGE NURSING HOME,Adult Social Care,Adults,Nursing Home Long Stay Fees,29-Mar,"9,788.37"
460476,Next Chapter Healthcare Ltd,Adult Social Care,Adults,Nursing Home Long Stay Fees,29-Mar,"11,061.51"
460476,NYMS SERVICES LTD TAS PENNINE CARE CENTRE,Adult Social Care,Adults,Nursing Home Long Stay Fees,29-Mar,"21,700.14"
460476,OAKDENE CARE HOME T/A OAKDENE CARE HOME LTD,Adult Social Care,Adults,Nursing Home Long Stay Fees,29-Mar,"3,957.55"
460476,OAKWOOD CARE CENTRE,Adult Social Care,Adults,Nursing Home Long Stay Fees,29-Mar,"8,878.38"
460476,PARKVIEW CARE HOME,Adult Social Care,Adults,Nursing Home Long Stay Fees,29-Mar,"16,853.08"
460476,PARTNERSHIP CARING LTD TAS FIRBANK HOUSE NURSING & RESIDENTIAL CARE HOME,Adult Social Care,Adults,Nursing Home Long Stay Fees,29-Mar,"39,711.45"
460476,Pendlebury Care Homes Ltd tas Regency Hall Care Home,Adult Social Care,Adults,Nursing Home Long Stay Fees,29-Mar,"20,600.30"
460476,Postgrad Ltd - Treelands Care Home,Adult Social Care,Adults,Nursing Home Long Stay Fees,29-Mar,"3,029.98"
460476,PRIDELL CARE LTD,Adult Social Care,Adults,Nursing Home Long Stay Fees,29-Mar,"17,570.01"
460476,PROGRESS CARE & EDUCATION LTD,Adult Social Care,Adults,Nursing Home Long Stay Fees,29-Mar,"17,198.76"
460476,ROEFIELD SPECIALIST CARE LIMITED t/a THISTLE MANOR,Adult Social Care,Adults,Nursing Home Long Stay Fees,29-Mar,"40,504.15"
460476,ROYAL MASONIC BENEVOLENT INSTITUTION,Adult Social Care,Adults,Nursing Home Long Stay Fees,29-Mar,"3,101.11"
460476,Sandon House t/a Meridian Healthcare LTD,Adult Social Care,Adults,Nursing Home Long Stay Fees,29-Mar,"14,805.75"
460476,St Christopher�s Trust,Adult Social Care,Adults,Nursing Home Long Stay Fees,29-Mar,"1,188.00"
460476,ST GEORGE'S NURSING HOME (OLDHAM) LTD,Adult Social Care,Adults,Nursing Home Long Stay Fees,29-Mar,"43,345.84"
460476,ST LAWRENCES LODGE,Adult Social Care,Adults,Nursing Home Long Stay Fees,29-Mar,"18,062.86"
460476,STALEY HOUSE EPH,Adult Social Care,Adults,Nursing Home Long Stay Fees,29-Mar,"27,627.98"
460476,Stamford Court Nursing t/a Meridian Healthcare LTD,Adult Social Care,Adults,Nursing Home Long Stay Fees,29-Mar,"22,302.72"
460476,Sun Healthcare T/A Tapton Grove Care Home,Adult Social Care,Adults,Nursing Home Long Stay Fees,29-Mar,"9,153.93"
460476,The Coppice Care Home,Adult Social Care,Adults,Nursing Home Long Stay Fees,29-Mar,"2,774.06"
460476,THE FIRS CARE HOME LTD,Adult Social Care,Adults,Nursing Home Long Stay Fees,29-Mar,"6,574.29"
460476,THE JOSEPH COX CHARITY,Adult Social Care,Adults,Nursing Home Long Stay Fees,29-Mar,"6,850.82"
460476,THE LIGHT HOUSE (Bloomcare Group),Adult Social Care,Adults,Nursing Home Long Stay Fees,29-Mar,"62,107.97"
460476,THE ROYAL ELMS CARE HOME,Adult Social Care,Adults,Nursing Home Long Stay Fees,29-Mar,"4,279.50"
460476,THE SEYMOUR HOME LTD t/a Seymour Care Home,Adult Social Care,Adults,Nursing Home Long Stay Fees,29-Mar,"2,706.43"
460476,The Sycamores t/a Meridian Health Care LTD,Adult Social Care,Adults,Nursing Home Long Stay Fees,29-Mar,"19,887.90"
460476,THE VICARAGE RESIDENTIAL CARE HOME,Adult Social Care,Adults,Nursing Home Long Stay Fees,29-Mar,"1,796.34"
460476,THORNCLIFFE GRANGE NURSING HOME,Adult Social Care,Adults,Nursing Home Long Stay Fees,29-Mar,"3,970.76"
460476,TRACS Limited,Adult Social Care,Adults,Nursing Home Long Stay Fees,29-Mar,"7,744.64"
460476,TREETOPS,Adult Social Care,Adults,Nursing Home Long Stay Fees,29-Mar,"49,218.75"
460476,Tulsi Homes Ltd T/A Clarkson House (new),Adult Social Care,Adults,Nursing Home Long Stay Fees,29-Mar,"3,314.28"
460476,VOYAGE CARE LIMITED,Adult Social Care,Adults,Nursing Home Long Stay Fees,29-Mar,"44,229.18"
460476,Western Park Leicester Limited t/a Western Park Nursing Home,Adult Social Care,Adults,Nursing Home Long Stay Fees,29-Mar,"2,971.57"
460476,Yew Trees t/a Meridian Healthcare LTD,Adult Social Care,Adults,Nursing Home Long Stay Fees,29-Mar,"59,905.58"
460477,DEVONSHIRE CARE LIMITED TAS CHARNLEY HOUSE,Adult Social Care,Adults,Nursing Home Long Stay Fees,30-Mar,"16,224.26"
460477,EHC MOSTON GRANGE LTD,Adult Social Care,Adults,Nursing Home Long Stay Fees,30-Mar,"25,446.88"
460477,Equilibrium Healthcare Ltd tas Oakland House Nursing Home,Adult Social Care,Adults,Nursing Home Long Stay Fees,30-Mar,"4,533.30"
460477,NYMS SERVICES LTD TAS PENNINE CARE CENTRE,Adult Social Care,Adults,Nursing Home Long Stay Fees,30-Mar,"5,474.98"
460477,SIGN,Adult Social Care,Adults,Nursing Home Long Stay Fees,30-Mar,"32,655.83"
460478,THE VICARAGE RESIDENTIAL CARE HOME,Adult Social Care,Adults,Nursing Home Long Stay Fees,31-Mar,"14,500.00"
470984,Glassfibre Flagpoles Ltd t/a Harrison EPS,Operations and Neighbourhoods,Operations and Neighbourhoods,General Materials,25-Jan,895.00
470989,AGGREGATE INDUSTRIES UK LIMITED,Operations and Neighbourhoods,Operations and Neighbourhoods,General Materials,03-Jan,"3,433.18"
470989,BRAMHALL SURFACING LTD,Operations and Neighbourhoods,Operations and Neighbourhoods,Sub-contractor Services,03-Jan,"19,873.35"
470989,COMPASS MINERALS UK LTD,Operations and Neighbourhoods,Operations and Neighbourhoods,General Materials,03-Jan,"3,376.57"
470989,EAGLE CIVIL ENGINEERING LTD,Operations and Neighbourhoods,Operations and Neighbourhoods,General Materials,03-Jan,"5,976.55"
470989,EAGLE CIVIL ENGINEERING LTD,Operations and Neighbourhoods,Operations and Neighbourhoods,Sub-contractor Services,03-Jan,"9,238.30"
470989,FAIRWAY LANDSCAPES LTD,Operations and Neighbourhoods,Operations and Neighbourhoods,Sub-contractor Services,03-Jan,"11,950.30"
470989,GARIC LTD,Operations and Neighbourhoods,Operations and Neighbourhoods,General Materials,03-Jan,"1,849.45"
470989,Holroyds Skip Hire Limited,Operations and Neighbourhoods,Operations and Neighbourhoods,General Materials,03-Jan,"1,250.00"
470989,Redacted Supplier,Operations and Neighbourhoods,Operations and Neighbourhoods,General Materials,03-Jan,"1,440.00"
470989,LIMELIGHT SIGNS LIMITED,Engineers Client,Director of Place,Traffic Signs,03-Jan,"1,288.44"
470989,MALLATITE LTD,Civil Engineers,Director of Place,Debits Goods Received,03-Jan,"28,694.40"
470989,MALLATITE LTD,Operations and Neighbourhoods,Operations and Neighbourhoods,General Materials,03-Jan,"6,011.55"
470989,MARWOOD ELECTRICAL CO,Operations and Neighbourhoods,Operations and Neighbourhoods,General Materials,03-Jan,"25,564.89"
470989,NORTHWEST UTILITY SOLUTIONS LTD,Operations and Neighbourhoods,Operations and Neighbourhoods,Sub-contractor Services,03-Jan,"6,825.00"
470989,PG FABRICATIONS,Multiple Heads of Service,Multiple Strategic Directorates,Tax Retained Sub Contractors,03-Jan,-282.20
470989,PG FABRICATIONS,Operations and Neighbourhoods,Operations and Neighbourhoods,Sub-contractor Services,03-Jan,"1,555.00"
470989,TRAFFIC DIRECT LTD,Operations and Neighbourhoods,Operations and Neighbourhoods,General Materials,03-Jan,"11,327.00"
470989,TRAFFIC DIRECT LTD,Operations and Neighbourhoods,Operations and Neighbourhoods,Sub-contractor Services,03-Jan,"3,675.00"
470989,UBU ENVIRONMENTAL LTD,Operations and Neighbourhoods,Operations and Neighbourhoods,Sub-contractor Services,03-Jan,"2,250.00"
470989,ZODION LTD,Operations and Neighbourhoods,Operations and Neighbourhoods,General Materials,03-Jan,"2,300.20"
470990,AGGREGATE INDUSTRIES UK LIMITED,Operations and Neighbourhoods,Operations and Neighbourhoods,General Materials,09-Jan,"2,085.58"
470990,ALTITUDE SERVICES,Operations and Neighbourhoods,Operations and Neighbourhoods,Sub-contractor Services,09-Jan,761.46
470990,CASTINGS SERVICES LTD,Civil Engineers,Director of Place,Debits Goods Received,09-Jan,"3,075.00"
470990,CASTINGS SERVICES LTD,Operations and Neighbourhoods,Operations and Neighbourhoods,General Materials,09-Jan,300.00
470990,EAGLE CIVIL ENGINEERING LTD,Operations and Neighbourhoods,Operations and Neighbourhoods,Sub-contractor Services,09-Jan,"8,670.37"
470990,GARIC LTD,Operations and Neighbourhoods,Operations and Neighbourhoods,General Materials,09-Jan,836.00
470990,Redacted Supplier,Operations and Neighbourhoods,Operations and Neighbourhoods,General Materials,09-Jan,"2,005.86"
470990,MARCHINGTON STONE,Civil Engineers,Director of Place,Debits Goods Received,09-Jan,473.05
470990,MARCHINGTON STONE,Engineers Client,Director of Place,General Materials,09-Jan,333.83
470990,MULTEVO LIMITED,Operations and Neighbourhoods,Operations and Neighbourhoods,Sub-contractor Services,09-Jan,"5,898.00"
470990,PG FABRICATIONS,Multiple Heads of Service,Multiple Strategic Directorates,Tax Retained Sub Contractors,09-Jan,-185.60
470990,PG FABRICATIONS,Operations and Neighbourhoods,Operations and Neighbourhoods,Sub-contractor Services,09-Jan,928.00
470990,TARMAC CENTRAL LIMITED,Operations and Neighbourhoods,Operations and Neighbourhoods,General Materials,09-Jan,"7,670.42"
470990,VAISALA LTD,Operations and Neighbourhoods,Operations and Neighbourhoods,General Materials,09-Jan,"13,418.16"
470991,4WAY CONSULTING LTD,Operations and Neighbourhoods,Operations and Neighbourhoods,Engineers Recharge - Reactive Works (Internal),17-Jan,"1,190.70"
470991,AGGREGATE INDUSTRIES UK LIMITED,Operations and Neighbourhoods,Operations and Neighbourhoods,General Materials,17-Jan,"5,230.94"
470991,ALTITUDE SERVICES,Operations and Neighbourhoods,Operations and Neighbourhoods,Sub-contractor Services,17-Jan,"2,737.07"
470991,ARCO LIMITED,Adult Social Care,Adults,General Materials,17-Jan,148.30
470991,ARCO LIMITED,Civil Engineers,Director of Place,Debits Goods Received,17-Jan,475.10
470991,ARCO LIMITED,Engineers Client,Director of Place,General Materials,17-Jan,69.98
470991,ARCO LIMITED,Operations and Neighbourhoods,Operations and Neighbourhoods,General Materials,17-Jan,"2,111.20"
470991,BROXAP LIMITED,Operations and Neighbourhoods,Operations and Neighbourhoods,General Materials,17-Jan,"3,050.00"
470991,FAIRWAY LANDSCAPES LTD,Operations and Neighbourhoods,Operations and Neighbourhoods,Sub-contractor Services,17-Jan,"12,641.15"
470991,"Larsen Manufacturing Ltd, t/a Larsen Building Products",Operations and Neighbourhoods,Operations and Neighbourhoods,General Materials,17-Jan,"2,006.00"
470991,MAIN STREET SIGNS LIMITED,Operations and Neighbourhoods,Operations and Neighbourhoods,General Materials,17-Jan,"1,472.20"
470991,MALLATITE LTD,Civil Engineers,Director of Place,Debits Goods Received,17-Jan,"4,095.00"
470991,NORTHWEST UTILITY SOLUTIONS LTD,Operations and Neighbourhoods,Operations and Neighbourhoods,Sub-contractor Services,17-Jan,"6,825.00"
470991,P F CUSACK LTD,Civil Engineers,Director of Place,Debits Goods Received,17-Jan,863.78
470991,REDDILIGHT LTD,Operations and Neighbourhoods,Operations and Neighbourhoods,General Materials,17-Jan,500.00
470991,Redacted Supplier,Operations and Neighbourhoods,Operations and Neighbourhoods,Sub-contractor Services,17-Jan,"6,440.00"
470991,Saint-Gobain Building Distribution Limited t/a Benchmark Building Supplies,Civil Engineers,Director of Place,Debits Goods Received,17-Jan,"2,087.20"
470991,Saint-Gobain Building Distribution Limited t/a Benchmark Building Supplies,Operations and Neighbourhoods,Operations and Neighbourhoods,General Materials,17-Jan,"2,240.00"
470991,TARMAC CENTRAL LIMITED,Operations and Neighbourhoods,Operations and Neighbourhoods,General Materials,17-Jan,"3,263.41"
470991,TOTALLY LOCAL COMPANY LIMITED,Civil Engineers,Director of Place,Debits Goods Received,17-Jan,882.50
470991,TOTALLY LOCAL COMPANY LIMITED,Operations and Neighbourhoods,Operations and Neighbourhoods,Tipping Facility Fees,17-Jan,625.00
470991,TRAVIS PERKINS TRADING CO LTD,Operations and Neighbourhoods,Operations and Neighbourhoods,General Materials,17-Jan,568.92
470992,4WAY CONSULTING LTD,(blank),(blank),Street Lighting Works,23-Jan,"1,521.45"
470992,AGGREGATE INDUSTRIES UK LIMITED,Operations and Neighbourhoods,Operations and Neighbourhoods,General Materials,23-Jan,"7,433.49"
470992,ALTITUDE SERVICES,Operations and Neighbourhoods,Operations and Neighbourhoods,General Materials,23-Jan,556.39
470992,ALTITUDE SERVICES,Operations and Neighbourhoods,Operations and Neighbourhoods,Sub-contractor Services,23-Jan,"2,474.65"
470992,ARCO LIMITED,Civil Engineers,Director of Place,Debits Goods Received,23-Jan,"1,369.09"
470992,ARCO LIMITED,Operations and Neighbourhoods,Operations and Neighbourhoods,General Materials,23-Jan,141.44
470992,ARCO LIMITED,Operations and Neighbourhoods,Operations and Neighbourhoods,Protective Clothing,23-Jan,80.82
470992,BRAMHALL SURFACING LTD,Operations and Neighbourhoods,Operations and Neighbourhoods,Sub-contractor Services,23-Jan,"5,731.41"
470992,EAGLE CIVIL ENGINEERING LTD,Operations and Neighbourhoods,Operations and Neighbourhoods,General Materials,23-Jan,"2,839.60"
470992,EAGLE CIVIL ENGINEERING LTD,Operations and Neighbourhoods,Operations and Neighbourhoods,Sub-contractor Services,23-Jan,124.80
470992,FAIRWAY LANDSCAPES LTD,Operations and Neighbourhoods,Operations and Neighbourhoods,Sub-contractor Services,23-Jan,"17,658.85"
470992,MARCHINGTON STONE,Operations and Neighbourhoods,Operations and Neighbourhoods,General Materials,23-Jan,909.99
470992,TRAFFIC DIRECT LTD,Operations and Neighbourhoods,Operations and Neighbourhoods,Sub-contractor Services,23-Jan,"9,520.00"
470992,WOLSELEY UK LTD,Civil Engineers,Director of Place,Debits Goods Received,23-Jan,"1,988.26"
470992,WOLSELEY UK LTD,Operations and Neighbourhoods,Operations and Neighbourhoods,General Materials,23-Jan,425.10
470993,AGGREGATE INDUSTRIES UK LIMITED,Operations and Neighbourhoods,Operations and Neighbourhoods,General Materials,30-Jan,"17,338.82"
470993,ARCO LIMITED,Operations and Neighbourhoods,Operations and Neighbourhoods,General Materials,30-Jan,760.10
470993,EAGLE CIVIL ENGINEERING LTD,Operations and Neighbourhoods,Operations and Neighbourhoods,General Materials,30-Jan,"19,933.60"
470993,Holroyds Skip Hire Limited,Operations and Neighbourhoods,Operations and Neighbourhoods,General Materials,30-Jan,"2,000.00"
470993,REDDILIGHT LTD,Civil Engineers,Director of Place,Debits Goods Received,30-Jan,"1,320.00"
470993,Saint-Gobain Building Distribution Limited t/a Benchmark Building Supplies,Civil Engineers,Director of Place,Debits Goods Received,30-Jan,"1,116.80"
470993,WILDE CONSULTING ENGINEERS,Operations and Neighbourhoods,Operations and Neighbourhoods,Sub-contractor Services,30-Jan,"1,084.98"
470994,ACORN LIGHTING SERVICES LTD,Operations and Neighbourhoods,Operations and Neighbourhoods,Sub-contractor Services,06-Feb,"4,885.50"
470994,AGGREGATE INDUSTRIES UK LIMITED,Operations and Neighbourhoods,Operations and Neighbourhoods,General Materials,06-Feb,"11,401.65"
470994,BRAMHALL SURFACING LTD,Operations and Neighbourhoods,Operations and Neighbourhoods,Sub-contractor Services,06-Feb,"47,827.54"
470994,EAGLE CIVIL ENGINEERING LTD,Operations and Neighbourhoods,Operations and Neighbourhoods,General Materials,06-Feb,"2,839.60"
470994,FAIRWAY LANDSCAPES LTD,Operations and Neighbourhoods,Operations and Neighbourhoods,Sub-contractor Services,06-Feb,"6,202.00"
470994,ITW Limited t/a Avery Weigh Tronix,Operations and Neighbourhoods,Operations and Neighbourhoods,General Materials,06-Feb,"1,600.00"
470994,M.C. & M.A. STEWART HAULAGE LTD,Operations and Neighbourhoods,Operations and Neighbourhoods,General Materials,06-Feb,540.00
470994,NORTHWEST UTILITY SOLUTIONS LTD,Operations and Neighbourhoods,Operations and Neighbourhoods,Sub-contractor Services,06-Feb,"18,187.50"
470994,TARMAC CENTRAL LIMITED,Operations and Neighbourhoods,Operations and Neighbourhoods,General Materials,06-Feb,"1,365.77"
470995,AGGREGATE INDUSTRIES UK LIMITED,Operations and Neighbourhoods,Operations and Neighbourhoods,General Materials,14-Feb,"19,410.30"
470995,AIUK t/a SRM,Operations and Neighbourhoods,Operations and Neighbourhoods,General Materials,14-Feb,575.77
470995,ALTITUDE SERVICES,Operations and Neighbourhoods,Operations and Neighbourhoods,Sub-contractor Services,14-Feb,"17,234.40"
470995,Assa Abloy Global Solutions UK Ltd t/a Traka,Operations and Neighbourhoods,Operations and Neighbourhoods,General Materials,16-Feb,"1,409.00"
470995,BRAMHALL SURFACING LTD,Operations and Neighbourhoods,Operations and Neighbourhoods,Sub-contractor Services,14-Feb,"31,479.56"
470995,COMPASS MINERALS UK LTD,Civil Engineers,Director of Place,Debits Goods Received,14-Feb,"7,242.97"
470995,FAIRWAY LANDSCAPES LTD,Operations and Neighbourhoods,Operations and Neighbourhoods,Sub-contractor Services,14-Feb,"3,912.20"
470995,Saint-Gobain Building Distribution Limited t/a Benchmark Building Supplies,Civil Engineers,Director of Place,Debits Goods Received,14-Feb,786.56
470995,SYGMA SOLUTIONS LTD,Operations and Neighbourhoods,Operations and Neighbourhoods,General Materials,14-Feb,825.00
470995,TARMAC CENTRAL LIMITED,Operations and Neighbourhoods,Operations and Neighbourhoods,General Materials,14-Feb,"3,069.00"
470995,TRAFFIC DIRECT LTD,Operations and Neighbourhoods,Operations and Neighbourhoods,General Materials,14-Feb,550.00
470995,TRAFFIC DIRECT LTD,Operations and Neighbourhoods,Operations and Neighbourhoods,Sub-contractor Services,14-Feb,"3,125.00"
470996,BRIDGE ELECTRICALSUPPLIES LTD,Civil Engineers,Director of Place,Debits Goods Received,21-Feb,729.00
470996,EAGLE CIVIL ENGINEERING LTD,Operations and Neighbourhoods,Operations and Neighbourhoods,Sub-contractor Services,21-Feb,"7,296.27"
470996,ESS SAFEFORCE,Operations and Neighbourhoods,Operations and Neighbourhoods,General Materials,21-Feb,675.00
470996,P F CUSACK LTD,Civil Engineers,Director of Place,Debits Goods Received,21-Feb,660.70
470997,AGGREGATE INDUSTRIES UK LIMITED,Operations and Neighbourhoods,Operations and Neighbourhoods,General Materials,28-Feb,"3,798.17"
470997,ARCO LIMITED,Operations and Neighbourhoods,Operations and Neighbourhoods,General Materials,28-Feb,522.86
470997,ARMCON LTD,Civil Engineers,Director of Place,Debits Goods Received,28-Feb,719.50
470997,BRAMHALL SURFACING LTD,Operations and Neighbourhoods,Operations and Neighbourhoods,Sub-contractor Services,28-Feb,"23,100.00"
470997,FAIRWAY LANDSCAPES LTD,Operations and Neighbourhoods,Operations and Neighbourhoods,Sub-contractor Services,28-Feb,555.00
470997,L & R ROADLINES LIMITED,Operations and Neighbourhoods,Operations and Neighbourhoods,Sub-contractor Services,28-Feb,"1,238.47"
470997,MARWOOD ELECTRICAL CO,Operations and Neighbourhoods,Operations and Neighbourhoods,General Materials,28-Feb,"27,850.47"
470997,NORTHWEST UTILITY SOLUTIONS LTD,Operations and Neighbourhoods,Operations and Neighbourhoods,Sub-contractor Services,28-Feb,"15,675.00"
470997,REACTEC LIMITED,Operations and Neighbourhoods,Operations and Neighbourhoods,General Materials,28-Feb,"2,268.00"
470997,TOTALLY LOCAL COMPANY LIMITED,Operations and Neighbourhoods,Operations and Neighbourhoods,Tipping Facility Fees,28-Feb,550.00
470997,UBU ENVIRONMENTAL LTD,Operations and Neighbourhoods,Operations and Neighbourhoods,Sub-contractor Services,28-Feb,"1,620.00"
470998,AGGREGATE INDUSTRIES UK LIMITED,Operations and Neighbourhoods,Operations and Neighbourhoods,General Materials,28-Feb,"5,660.36"
470998,BRAMHALL SURFACING LTD,Operations and Neighbourhoods,Operations and Neighbourhoods,Sub-contractor Services,28-Feb,"4,584.25"
470998,CASTINGS SERVICES LTD,Civil Engineers,Director of Place,Debits Goods Received,28-Feb,"1,550.00"
470998,CHILTON SAFETY SOLUTIONS,Operations and Neighbourhoods,Operations and Neighbourhoods,Training Course Costs,28-Feb,"1,341.45"
470998,EAGLE CIVIL ENGINEERING LTD,Operations and Neighbourhoods,Operations and Neighbourhoods,General Materials,28-Feb,"8,816.15"
470998,EAGLE CIVIL ENGINEERING LTD,Operations and Neighbourhoods,Operations and Neighbourhoods,Sub-contractor Services,28-Feb,"13,002.64"
470998,GARIC LTD,Operations and Neighbourhoods,Operations and Neighbourhoods,General Materials,28-Feb,"1,823.00"
470998,GROUNDFORCE SHORCO,Operations and Neighbourhoods,Operations and Neighbourhoods,General Materials,28-Feb,586.00
470998,P F CUSACK LTD,Civil Engineers,Director of Place,Debits Goods Received,28-Feb,"2,100.00"
470998,PG FABRICATIONS,Multiple Heads of Service,Multiple Strategic Directorates,Tax Retained Sub Contractors,28-Feb,-51.92
470998,PG FABRICATIONS,Operations and Neighbourhoods,Operations and Neighbourhoods,General Materials,28-Feb,370.00
470998,PG FABRICATIONS,Operations and Neighbourhoods,Operations and Neighbourhoods,Sub-contractor Services,28-Feb,248.00
470998,Professional Quality Management Services Limited,Operations and Neighbourhoods,Operations and Neighbourhoods,Training Course Costs,28-Feb,568.50
470998,Redacted Supplier,Operations and Neighbourhoods,Operations and Neighbourhoods,Sub-contractor Services,28-Feb,"8,280.00"
470998,TARMAC CENTRAL LIMITED,Operations and Neighbourhoods,Operations and Neighbourhoods,General Materials,28-Feb,"3,939.67"
470998,TRAFFIC DIRECT LTD,Operations and Neighbourhoods,Operations and Neighbourhoods,Sub-contractor Services,28-Feb,"9,762.50"
470998,TRAFFIC DIRECT LTD,(blank),(blank),Traffic Signs,28-Feb,"1,500.00"
470998,UBU ENVIRONMENTAL LTD,Operations and Neighbourhoods,Operations and Neighbourhoods,Sub-contractor Services,28-Feb,"2,700.00"
470999,AGGREGATE INDUSTRIES UK LIMITED,Operations and Neighbourhoods,Operations and Neighbourhoods,General Materials,07-Mar,"3,716.01"
470999,AIUK t/a SRM,Operations and Neighbourhoods,Operations and Neighbourhoods,General Materials,07-Mar,924.73
470999,ALTITUDE SERVICES,Operations and Neighbourhoods,Operations and Neighbourhoods,Sub-contractor Services,07-Mar,"25,002.23"
470999,ARCO LIMITED,Civil Engineers,Director of Place,Debits Goods Received,07-Mar,"1,623.63"
470999,ARCO LIMITED,Operations and Neighbourhoods,Operations and Neighbourhoods,General Materials,07-Mar,421.02
470999,ARCO LIMITED,Operations and Neighbourhoods,Operations and Neighbourhoods,Stores Purchases,07-Mar,151.00
470999,BRIDGE ELECTRICALSUPPLIES LTD,Operations and Neighbourhoods,Operations and Neighbourhoods,General Materials,07-Mar,506.00
470999,EAGLE CIVIL ENGINEERING LTD,Operations and Neighbourhoods,Operations and Neighbourhoods,General Materials,07-Mar,"5,679.20"
470999,ELECTRICITY NORTH WEST LTD,Operations and Neighbourhoods,Operations and Neighbourhoods,Sub-contractor Services,07-Mar,957.64
470999,FAIRWAY LANDSCAPES LTD,Operations and Neighbourhoods,Operations and Neighbourhoods,Sub-contractor Services,07-Mar,"3,140.00"
470999,GARIC LTD,Operations and Neighbourhoods,Operations and Neighbourhoods,General Materials,07-Mar,"2,627.45"
470999,GLASDON UK LTD,Operations and Neighbourhoods,Operations and Neighbourhoods,General Materials,07-Mar,"1,002.79"
470999,Holroyds Skip Hire Limited,Operations and Neighbourhoods,Operations and Neighbourhoods,General Materials,07-Mar,"1,500.00"
470999,INSTARMAC GROUP PLC,Civil Engineers,Director of Place,Debits Goods Received,07-Mar,"2,389.36"
470999,JETCHEM SYSTEMS LTD,Operations and Neighbourhoods,Operations and Neighbourhoods,General Materials,07-Mar,545.00
470999,Redacted Supplier,Civil Engineers,Director of Place,Debits Goods Received,07-Mar,334.55
470999,Redacted Supplier,Operations and Neighbourhoods,Operations and Neighbourhoods,General Materials,07-Mar,785.27
470999,"Larsen Manufacturing Ltd, t/a Larsen Building Products",Operations and Neighbourhoods,Operations and Neighbourhoods,General Materials,07-Mar,"1,974.00"
470999,MAIN STREET SIGNS LIMITED,Operations and Neighbourhoods,Operations and Neighbourhoods,General Materials,07-Mar,988.50
470999,NORTHWEST UTILITY SOLUTIONS LTD,Operations and Neighbourhoods,Operations and Neighbourhoods,Sub-contractor Services,07-Mar,"15,375.00"
470999,PG FABRICATIONS,Multiple Heads of Service,Multiple Strategic Directorates,Tax Retained Sub Contractors,07-Mar,-144.00
470999,PG FABRICATIONS,Operations and Neighbourhoods,Operations and Neighbourhoods,Sub-contractor Services,07-Mar,720.00
470999,Saint-Gobain Building Distribution Limited t/a Benchmark Building Supplies,Civil Engineers,Director of Place,Debits Goods Received,07-Mar,"1,014.00"
470999,TARMAC CENTRAL LIMITED,Operations and Neighbourhoods,Operations and Neighbourhoods,General Materials,07-Mar,"14,132.62"
470999,TOTALLY LOCAL COMPANY LIMITED,Civil Engineers,Director of Place,Debits Goods Received,07-Mar,763.00
470999,TOTALLY LOCAL COMPANY LIMITED,Operations and Neighbourhoods,Operations and Neighbourhoods,Tipping Facility Fees,07-Mar,950.00
470999,TRAFFIC DIRECT LTD,Operations and Neighbourhoods,Operations and Neighbourhoods,Sub-contractor Services,07-Mar,550.00
470999,UBU ENVIRONMENTAL LTD,Operations and Neighbourhoods,Operations and Neighbourhoods,Sub-contractor Services,07-Mar,"5,400.00"
470999,WOLSELEY UK LTD,Operations and Neighbourhoods,Operations and Neighbourhoods,General Materials,07-Mar,"3,519.51"
470999,WOTMIX LIMITED,Operations and Neighbourhoods,Operations and Neighbourhoods,General Materials,07-Mar,"1,103.80"
471000,ABACUS LIGHTING LTD,Civil Engineers,Director of Place,Debits Goods Received,13-Mar,"9,154.60"
471000,ALTITUDE SERVICES,Operations and Neighbourhoods,Operations and Neighbourhoods,General Materials,13-Mar,551.03
471000,ALTITUDE SERVICES,Operations and Neighbourhoods,Operations and Neighbourhoods,Sub-contractor Services,13-Mar,"1,426.34"
471000,BRAMHALL SURFACING LTD,Operations and Neighbourhoods,Operations and Neighbourhoods,Sub-contractor Services,13-Mar,"30,153.77"
471000,CITY ELECTRICAL FACTORS LTD,Operations and Neighbourhoods,Operations and Neighbourhoods,General Materials,13-Mar,"1,049.25"
471000,COLAS LTD,Operations and Neighbourhoods,Operations and Neighbourhoods,General Materials,13-Mar,"5,064.00"
471000,DIAMOND DECORATORS UK LTD,Operations and Neighbourhoods,Operations and Neighbourhoods,Sub-contractor Services,13-Mar,720.00
471000,EAGLE CIVIL ENGINEERING LTD,Operations and Neighbourhoods,Operations and Neighbourhoods,General Materials,13-Mar,"2,839.60"
471000,EAGLE CIVIL ENGINEERING LTD,Operations and Neighbourhoods,Operations and Neighbourhoods,Sub-contractor Services,13-Mar,124.80
471000,FAIRWAY LANDSCAPES LTD,Operations and Neighbourhoods,Operations and Neighbourhoods,Sub-contractor Services,13-Mar,"29,694.55"
471000,Holroyds Skip Hire Limited,Operations and Neighbourhoods,Operations and Neighbourhoods,General Materials,13-Mar,"3,000.00"
471000,LIMELIGHT SIGNS LIMITED,Engineers Client,Director of Place,General Materials,13-Mar,"1,291.20"
471000,MAIN STREET SIGNS LIMITED,Operations and Neighbourhoods,Operations and Neighbourhoods,General Materials,13-Mar,761.20
471000,NORTHWEST UTILITY SOLUTIONS LTD,Operations and Neighbourhoods,Operations and Neighbourhoods,Sub-contractor Services,13-Mar,"7,950.00"
471000,Saint-Gobain Building Distribution Limited t/a Benchmark Building Supplies,Civil Engineers,Director of Place,Debits Goods Received,13-Mar,594.94
471000,Saint-Gobain Building Distribution Limited t/a Benchmark Building Supplies,Operations and Neighbourhoods,Operations and Neighbourhoods,General Materials,13-Mar,97.37
471000,TARMAC CENTRAL LIMITED,Operations and Neighbourhoods,Operations and Neighbourhoods,General Materials,13-Mar,"6,440.71"
471000,TRAFFIC DIRECT LTD,Operations and Neighbourhoods,Operations and Neighbourhoods,Sub-contractor Services,13-Mar,"1,600.00"
471000,UBU ENVIRONMENTAL LTD,Operations and Neighbourhoods,Operations and Neighbourhoods,Sub-contractor Services,13-Mar,"6,795.00"
471000,WOTMIX LIMITED,Operations and Neighbourhoods,Operations and Neighbourhoods,General Materials,13-Mar,773.50
471001,4WAY CONSULTING LTD,Operations and Neighbourhoods,Operations and Neighbourhoods,Engineers Recharge - Reactive Works (Internal),20-Mar,950.00
471001,ABBEY INDUSTRIAL SOLUTIONS LTD,Operations and Neighbourhoods,Operations and Neighbourhoods,Sub-contractor Services,20-Mar,898.00
471001,AGGREGATE INDUSTRIES UK LIMITED,Operations and Neighbourhoods,Operations and Neighbourhoods,General Materials,20-Mar,"1,163.56"
471001,ALTITUDE SERVICES,Operations and Neighbourhoods,Operations and Neighbourhoods,General Materials,20-Mar,"5,776.68"
471001,BRAMHALL SURFACING LTD,Operations and Neighbourhoods,Operations and Neighbourhoods,Sub-contractor Services,20-Mar,"34,534.56"
471001,EAGLE CIVIL ENGINEERING LTD,Operations and Neighbourhoods,Operations and Neighbourhoods,General Materials,20-Mar,"4,458.70"
471001,EAGLE CIVIL ENGINEERING LTD,Operations and Neighbourhoods,Operations and Neighbourhoods,Sub-contractor Services,20-Mar,826.80
471001,ELECTRICITY NORTH WEST LTD,Operations and Neighbourhoods,Operations and Neighbourhoods,Sub-contractor Services,20-Mar,"1,843.59"
471001,FAIRWAY LANDSCAPES LTD,Operations and Neighbourhoods,Operations and Neighbourhoods,Sub-contractor Services,20-Mar,"87,395.85"
471001,Glassfibre Flagpoles Ltd t/a Harrison EPS,Operations and Neighbourhoods,Operations and Neighbourhoods,General Materials,20-Mar,743.97
471001,INSTARMAC GROUP PLC,Civil Engineers,Director of Place,Debits Goods Received,20-Mar,"1,641.60"
471001,Redacted Supplier,Civil Engineers,Director of Place,Debits Goods Received,20-Mar,229.50
471001,Redacted Supplier,Engineers Client,Director of Place,General Materials,20-Mar,159.00
471001,Redacted Supplier,Operations and Neighbourhoods,Operations and Neighbourhoods,General Materials,20-Mar,321.82
471001,Redacted Supplier,Operations and Neighbourhoods,Operations and Neighbourhoods,Protective Clothing,20-Mar,125.00
471001,MAIN STREET SIGNS LIMITED,Operations and Neighbourhoods,Operations and Neighbourhoods,General Materials,20-Mar,807.60
471001,NORTHWEST UTILITY SOLUTIONS LTD,Operations and Neighbourhoods,Operations and Neighbourhoods,Sub-contractor Services,20-Mar,"7,950.00"
471001,PG FABRICATIONS,Multiple Heads of Service,Multiple Strategic Directorates,Tax Retained Sub Contractors,20-Mar,-547.60
471001,PG FABRICATIONS,Operations and Neighbourhoods,Operations and Neighbourhoods,General Materials,20-Mar,90.00
471001,PG FABRICATIONS,Operations and Neighbourhoods,Operations and Neighbourhoods,Sub-contractor Services,20-Mar,"13,575.00"
471001,Redacted Supplier,Operations and Neighbourhoods,Operations and Neighbourhoods,Sub-contractor Services,20-Mar,"8,780.00"
471001,TARMAC CENTRAL LIMITED,Operations and Neighbourhoods,Operations and Neighbourhoods,General Materials,20-Mar,"2,344.18"
471001,UBU ENVIRONMENTAL LTD,Operations and Neighbourhoods,Operations and Neighbourhoods,Sub-contractor Services,20-Mar,"4,050.00"
471001,ZEBRITE LTD,Civil Engineers,Director of Place,Debits Goods Received,20-Mar,"7,000.00"
471002,AGGREGATE INDUSTRIES UK LIMITED,Operations and Neighbourhoods,Operations and Neighbourhoods,General Materials,23-Mar,"2,307.79"
471002,ALTITUDE SERVICES,Operations and Neighbourhoods,Operations and Neighbourhoods,General Materials,23-Mar,883.56
471002,ALTITUDE SERVICES,Operations and Neighbourhoods,Operations and Neighbourhoods,Sub-contractor Services,23-Mar,883.56
471002,ARCO LIMITED,Adult Social Care,Adults,General Materials,23-Mar,344.70
471002,ARCO LIMITED,Civil Engineers,Director of Place,Debits Goods Received,23-Mar,74.00
471002,ARCO LIMITED,Operations and Neighbourhoods,Operations and Neighbourhoods,General Materials,23-Mar,283.80
471002,BRAMHALL SURFACING LTD,Operations and Neighbourhoods,Operations and Neighbourhoods,Sub-contractor Services,23-Mar,"14,242.05"
471002,NORTHWEST UTILITY SOLUTIONS LTD,Operations and Neighbourhoods,Operations and Neighbourhoods,Sub-contractor Services,23-Mar,"5,250.00"
471002,WOTMIX LIMITED,Operations and Neighbourhoods,Operations and Neighbourhoods,General Materials,23-Mar,510.00
471003,AGGREGATE INDUSTRIES UK LIMITED,Operations and Neighbourhoods,Operations and Neighbourhoods,General Materials,29-Mar,"3,018.57"
471003,APSE,Operations and Neighbourhoods,Operations and Neighbourhoods,General Materials,29-Mar,"3,584.00"
471003,ARCO LIMITED,Civil Engineers,Director of Place,Debits Goods Received,29-Mar,269.36
471003,ARCO LIMITED,Operations and Neighbourhoods,Operations and Neighbourhoods,General Materials,29-Mar,912.00
471003,Away Services Group Ltd.,Operations and Neighbourhoods,Operations and Neighbourhoods,General Materials,29-Mar,800.00
471003,BRAMHALL SURFACING LTD,Operations and Neighbourhoods,Operations and Neighbourhoods,Sub-contractor Services,29-Mar,"5,218.64"
471003,BROXAP LIMITED,Engineers Client,Director of Place,General Materials,29-Mar,586.00
471003,Redacted Supplier,Operations and Neighbourhoods,Operations and Neighbourhoods,General Materials,29-Mar,"1,860.00"
471003,North West Training Academy Ltd,Operations and Neighbourhoods,Operations and Neighbourhoods,Training Course Costs,29-Mar,600.00
471003,Saint-Gobain Building Distribution Limited t/a Benchmark Building Supplies,Civil Engineers,Director of Place,Debits Goods Received,29-Mar,"1,030.00"
471003,TARMAC CENTRAL LIMITED,Operations and Neighbourhoods,Operations and Neighbourhoods,General Materials,29-Mar,"8,003.81"
471003,UBU ENVIRONMENTAL LTD,Operations and Neighbourhoods,Operations and Neighbourhoods,Sub-contractor Services,29-Mar,"2,700.00"
471003,WOLSELEY UK LTD,Civil Engineers,Director of Place,Debits Goods Received,29-Mar,"2,572.13"
471003,WOLSELEY UK LTD,Operations and Neighbourhoods,Operations and Neighbourhoods,General Materials,29-Mar,410.65
471003,WOTMIX LIMITED,Operations and Neighbourhoods,Operations and Neighbourhoods,General Materials,29-Mar,"1,324.00"
3250896,A & J MOTORSPARES,Operations and Neighbourhoods,Operations and Neighbourhoods,General Materials,05-Jan,"1,666.86"
3250896,BRENNTAG UK LIMITED,Transport,Director of Place,Fuel / Ad Blu,05-Jan,"1,410.00"
3250896,CALIBRATION &CONSULTANCYSERVICES (UK) LTD,Operations and Neighbourhoods,Operations and Neighbourhoods,General Equipment Repair & Maintenance,05-Jan,"10,374.25"
3250896,Car Hire (Day of Swansea) Ltd t/a Days Rental,Operations and Neighbourhoods,Operations and Neighbourhoods,Additional Hire,05-Jan,"1,069.20"
3250896,Car Hire (Day of Swansea) Ltd t/a Days Rental,Operations and Neighbourhoods,Operations and Neighbourhoods,Replacement Hire,05-Jan,"1,205.27"
3250896,Redacted Supplier,Operations and Neighbourhoods,Operations and Neighbourhoods,General Materials,05-Jan,"2,086.12"
3250896,Redacted Supplier,Transport,Director of Place,Debits Goods Received,05-Jan,"1,651.24"
3250896,ECON ENGINEERING LTD,Operations and Neighbourhoods,Operations and Neighbourhoods,General Materials,05-Jan,622.17
3250896,GARIC LTD,Operations and Neighbourhoods,Operations and Neighbourhoods,Additional Hire,05-Jan,"1,359.60"
3250896,LEEDS COMMERCIAL LTD T/A LC VEHICLE HIRE,Operations and Neighbourhoods,Operations and Neighbourhoods,Additional Hire,05-Jan,"6,535.00"
3250896,LEEDS COMMERCIAL LTD T/A LC VEHICLE HIRE,Operations and Neighbourhoods,Operations and Neighbourhoods,Replacement Hire,05-Jan,"3,600.00"
3250896,LPW EUROPE LTD,Operations and Neighbourhoods,Operations and Neighbourhoods,General Equipment Repair & Maintenance,05-Jan,630.00
3250896,MOTUS COMMERCIALS OLDHAM,Operations and Neighbourhoods,Operations and Neighbourhoods,General Materials,05-Jan,"1,739.76"
3250896,PARTS PLUS OLDHAM,Operations and Neighbourhoods,Operations and Neighbourhoods,General Equipment Purchase,05-Jan,39.97
3250896,PARTS PLUS OLDHAM,Transport,Director of Place,Debits Goods Received,05-Jan,635.01
3250896,RIVERSIDE TRUCK RENTAL LIMITED,Operations and Neighbourhoods,Operations and Neighbourhoods,Additional Hire,05-Jan,"3,383.00"
3250896,RIVERSIDE TRUCK RENTAL LIMITED,Operations and Neighbourhoods,Operations and Neighbourhoods,Sub-contractor Services,05-Jan,953.73
3250896,RIVERSIDE TRUCK RENTAL LIMITED,Operations and Neighbourhoods,Operations and Neighbourhoods,Workshop Recharges including Misuse & Damage Costs,05-Jan,50.00
3250897,A & J MOTORSPARES,Operations and Neighbourhoods,Operations and Neighbourhoods,General Materials,12-Jan,901.72
3250897,A & J MOTORSPARES,Transport,Director of Place,Debits Goods Received,12-Jan,189.34
3250897,Redacted Supplier,Operations and Neighbourhoods,Operations and Neighbourhoods,Sub-contractor Services,12-Jan,"2,514.40"
3250897,AEBI SCHMIDT UK LTD,Operations and Neighbourhoods,Operations and Neighbourhoods,General Materials,12-Jan,271.52
3250897,AEBI SCHMIDT UK LTD,Transport,Director of Place,Debits Goods Received,12-Jan,996.62
3250897,CALIBRATION &CONSULTANCYSERVICES (UK) LTD,Operations and Neighbourhoods,Operations and Neighbourhoods,General Equipment Repair & Maintenance,12-Jan,777.83
3250897,Redacted Supplier,Operations and Neighbourhoods,Operations and Neighbourhoods,General Materials,12-Jan,"8,072.90"
3250897,Redacted Supplier,Transport,Director of Place,Debits Goods Received,12-Jan,"4,934.26"
3250897,G B OILS TA CARLTON FUELS,Transport,Director of Place,Diesel Fuel,12-Jan,"32,051.13"
3250897,INDUSTRIAL & HYDRAULIC SERVICES,Operations and Neighbourhoods,Operations and Neighbourhoods,Sub-contractor Services,12-Jan,569.86
3250897,JOHNSONS APPARELMASTER LTD,Operations and Neighbourhoods,Operations and Neighbourhoods,Protective Clothing,12-Jan,687.84
3250897,LEEDS COMMERCIAL LTD T/A LC VEHICLE HIRE,Operations and Neighbourhoods,Operations and Neighbourhoods,Sub-contractor Services,12-Jan,"1,252.06"
3250897,MAN TRUCK AND BUS UK LIMITED,Operations and Neighbourhoods,Operations and Neighbourhoods,General Materials,12-Jan,"2,142.40"
3250897,RIVERSIDE TRUCK RENTAL LIMITED,Operations and Neighbourhoods,Operations and Neighbourhoods,Additional Hire,12-Jan,"3,938.00"
3250897,Teletrac Navman (UK) LTD,Operations and Neighbourhoods,Operations and Neighbourhoods,General Equipment Repair & Maintenance,12-Jan,"5,385.33"
3250897,TERBERG MATEC UK LTD,Operations and Neighbourhoods,Operations and Neighbourhoods,General Materials,12-Jan,793.92
3250897,TRUCTYRE ATS,Operations and Neighbourhoods,Operations and Neighbourhoods,Tyre Costs,12-Jan,"2,022.23"
3250897,WASTE PARTS UK LTD,Transport,Director of Place,Debits Goods Received,12-Jan,"2,506.37"
3250898,A & J MOTORSPARES,Operations and Neighbourhoods,Operations and Neighbourhoods,General Equipment Purchase,19-Jan,17.99
3250898,A & J MOTORSPARES,Operations and Neighbourhoods,Operations and Neighbourhoods,General Materials,19-Jan,965.69
3250898,AEBI SCHMIDT UK LTD,Operations and Neighbourhoods,Operations and Neighbourhoods,General Materials,19-Jan,138.77
3250898,AEBI SCHMIDT UK LTD,Transport,Director of Place,Debits Goods Received,19-Jan,799.66
3250898,AIR PRODUCTS PLC,Operations and Neighbourhoods,Operations and Neighbourhoods,General Equipment Repair & Maintenance,19-Jan,"1,467.40"
3250898,DAWSONGROUP BUS AND COACH,Operations and Neighbourhoods,Operations and Neighbourhoods,Additional Hire,19-Jan,"1,032.00"
3250898,Redacted Supplier,Operations and Neighbourhoods,Operations and Neighbourhoods,General Materials,19-Jan,9.83
3250898,Redacted Supplier,Operations and Neighbourhoods,Operations and Neighbourhoods,Sub-contractor Services,19-Jan,"2,159.09"
3250898,Redacted Supplier,Transport,Director of Place,Debits Goods Received,19-Jan,971.89
3250898,ECON ENGINEERING LTD,Transport,Director of Place,Debits Goods Received,19-Jan,620.59
3250898,F. R. SHARROCK LIMITED,Operations and Neighbourhoods,Operations and Neighbourhoods,General Materials,19-Jan,291.16
3250898,F. R. SHARROCK LIMITED,Transport,Director of Place,Debits Goods Received,19-Jan,588.53
3250898,G B OILS TA CARLTON FUELS,Transport,Director of Place,Diesel Fuel,19-Jan,"26,527.23"
3250898,GUNN JCB LTD,Operations and Neighbourhoods,Operations and Neighbourhoods,Sub-contractor Services,19-Jan,840.00
3250898,GUNN JCB LTD,Transport,Director of Place,Debits Goods Received,19-Jan,741.07
3250898,HTF TYRE SERVICES LTD,Operations and Neighbourhoods,Operations and Neighbourhoods,Tyre Costs,19-Jan,"2,014.19"
3250898,LEEDS COMMERCIAL LTD T/A LC VEHICLE HIRE,Operations and Neighbourhoods,Operations and Neighbourhoods,Sub-contractor Services,19-Jan,949.16
3250898,LEEDS COMMERCIAL LTD T/A LC VEHICLE HIRE,Operations and Neighbourhoods,Operations and Neighbourhoods,Workshop Recharges including Misuse & Damage Costs,19-Jan,88.20
3250898,MILTON PUMP ENGINEERS LIMITED,Operations and Neighbourhoods,Operations and Neighbourhoods,Training Course Costs,19-Jan,750.00
3250898,MOTUS COMMERCIALS OLDHAM,Operations and Neighbourhoods,Operations and Neighbourhoods,General Materials,19-Jan,107.92
3250898,MOTUS COMMERCIALS OLDHAM,Operations and Neighbourhoods,Operations and Neighbourhoods,Sub-contractor Services,19-Jan,400.00
3250898,Prestige Training Ltd,Operations and Neighbourhoods,Operations and Neighbourhoods,Training Course Costs,19-Jan,805.00
3250898,TRUCTYRE ATS,Operations and Neighbourhoods,Operations and Neighbourhoods,Tyre Costs,19-Jan,"1,833.41"
3250898,WNV-Systems ltd,Operations and Neighbourhoods,Operations and Neighbourhoods,General Equipment Repair & Maintenance,19-Jan,"2,460.00"
3250899,A & J MOTORSPARES,Operations and Neighbourhoods,Operations and Neighbourhoods,General Equipment Purchase,26-Jan,179.98
3250899,A & J MOTORSPARES,Operations and Neighbourhoods,Operations and Neighbourhoods,General Materials,26-Jan,"1,811.10"
3250899,Redacted Supplier,Operations and Neighbourhoods,Operations and Neighbourhoods,Sub-contractor Services,26-Jan,"12,294.25"
3250899,Redacted Supplier,Transport,Director of Place,Debits Goods Received,26-Jan,"3,689.50"
3250899,F. R. SHARROCK LIMITED,Operations and Neighbourhoods,Operations and Neighbourhoods,General Materials,26-Jan,687.55
3250899,F. R. SHARROCK LIMITED,Transport,Director of Place,Debits Goods Received,26-Jan,-163.92
3250899,G B OILS TA CARLTON FUELS,Transport,Director of Place,Diesel Fuel,26-Jan,"12,752.00"
3250899,GUNN JCB LTD,Operations and Neighbourhoods,Operations and Neighbourhoods,Sub-contractor Services,26-Jan,"1,836.03"
3250899,HGV DIRECT LTD,Operations and Neighbourhoods,Operations and Neighbourhoods,General Materials,26-Jan,223.85
3250899,HGV DIRECT LTD,Transport,Director of Place,Debits Goods Received,26-Jan,974.74
3250899,INDUSTRIAL & HYDRAULIC SERVICES,Operations and Neighbourhoods,Operations and Neighbourhoods,Sub-contractor Services,26-Jan,"1,231.61"
3250899,INNOVATIVE SAFETY SYSTEMS LIMITED,Operations and Neighbourhoods,Operations and Neighbourhoods,General Materials,26-Jan,700.26
3250899,PEAK PARTS,Operations and Neighbourhoods,Operations and Neighbourhoods,Consumable Materials,26-Jan,820.11
3250899,Popcorn Rocks Limited t/a Green Motion,Operations and Neighbourhoods,Operations and Neighbourhoods,Additional Hire,26-Jan,"2,474.00"
3250899,TERBERG MATEC UK LTD,Operations and Neighbourhoods,Operations and Neighbourhoods,General Materials,26-Jan,912.38
3250899,TRUCTYRE ATS,Operations and Neighbourhoods,Operations and Neighbourhoods,Tyre Costs,26-Jan,"1,321.94"
3250899,WASTE PARTS UK LTD,Transport,Director of Place,Debits Goods Received,26-Jan,563.77
3250900,A & J MOTORSPARES,Operations and Neighbourhoods,Operations and Neighbourhoods,General Materials,02-Feb,805.79
3250900,A & J MOTORSPARES,Transport,Director of Place,Debits Goods Received,02-Feb,34.90
3250900,AEBI SCHMIDT UK LTD,Operations and Neighbourhoods,Operations and Neighbourhoods,General Materials,02-Feb,"2,171.96"
3250900,AEBI SCHMIDT UK LTD,Transport,Director of Place,Debits Goods Received,02-Feb,634.30
3250900,Car Hire (Day of Swansea) Ltd t/a Days Rental,Operations and Neighbourhoods,Operations and Neighbourhoods,Additional Hire,02-Feb,"1,599.84"
3250900,Car Hire (Day of Swansea) Ltd t/a Days Rental,Operations and Neighbourhoods,Operations and Neighbourhoods,Replacement Hire,02-Feb,880.55
3250900,Redacted Supplier,Operations and Neighbourhoods,Operations and Neighbourhoods,General Materials,02-Feb,-500.00
3250900,Redacted Supplier,Operations and Neighbourhoods,Operations and Neighbourhoods,Sub-contractor Services,02-Feb,"10,432.83"
3250900,Redacted Supplier,Transport,Director of Place,Debits Goods Received,02-Feb,"1,804.55"
3250900,ECON ENGINEERING LTD,Operations and Neighbourhoods,Operations and Neighbourhoods,Additional Hire,02-Feb,"3,179.67"
3250900,G B OILS TA CARLTON FUELS,Transport,Director of Place,Diesel Fuel,02-Feb,"27,110.19"
3250900,HGV DIRECT LTD,Operations and Neighbourhoods,Operations and Neighbourhoods,General Equipment Purchase,02-Feb,385.00
3250900,HGV DIRECT LTD,Operations and Neighbourhoods,Operations and Neighbourhoods,General Materials,02-Feb,"3,366.62"
3250900,HGV DIRECT LTD,Transport,Director of Place,Debits Goods Received,02-Feb,848.91
3250900,HSS HIRE SERVICE GROUP  PLC,Operations and Neighbourhoods,Operations and Neighbourhoods,Replacement Hire,02-Feb,"2,175.30"
3250900,JOHNSTON SWEEPERS LTD,Operations and Neighbourhoods,Operations and Neighbourhoods,General Materials,02-Feb,856.31
3250900,LEEDS COMMERCIAL LTD T/A LC VEHICLE HIRE,Operations and Neighbourhoods,Operations and Neighbourhoods,Additional Hire,02-Feb,"5,880.00"
3250900,LEEDS COMMERCIAL LTD T/A LC VEHICLE HIRE,Operations and Neighbourhoods,Operations and Neighbourhoods,Replacement Hire,02-Feb,"2,880.00"
3250900,LEEDS COMMERCIAL LTD T/A LC VEHICLE HIRE,Operations and Neighbourhoods,Operations and Neighbourhoods,Sub-contractor Services,02-Feb,52.39
3250900,MOTUS COMMERCIALS OLDHAM,Operations and Neighbourhoods,Operations and Neighbourhoods,General Materials,02-Feb,"2,040.47"
3250900,Popcorn Rocks Limited t/a Green Motion,Operations and Neighbourhoods,Operations and Neighbourhoods,Additional Hire,02-Feb,690.00
3250900,TERBERG MATEC UK LTD,Operations and Neighbourhoods,Operations and Neighbourhoods,General Materials,02-Feb,563.88
3250900,TERBERG MATEC UK LTD,Transport,Director of Place,Debits Goods Received,02-Feb,"2,534.33"
3250900,TRUCTYRE ATS,Operations and Neighbourhoods,Operations and Neighbourhoods,Tyre Costs,02-Feb,836.74
3250901,A & J MOTORSPARES,Operations and Neighbourhoods,Operations and Neighbourhoods,General Materials,09-Feb,742.34
3250901,Redacted Supplier,Operations and Neighbourhoods,Operations and Neighbourhoods,Sub-contractor Services,09-Feb,"2,756.70"
3250901,AEBI SCHMIDT UK LTD,Operations and Neighbourhoods,Operations and Neighbourhoods,General Materials,09-Feb,898.36
3250901,AEBI SCHMIDT UK LTD,Transport,Director of Place,Debits Goods Received,09-Feb,776.35
3250901,BB PLANT SERVICES LTD,Operations and Neighbourhoods,Operations and Neighbourhoods,Sub-contractor Services,09-Feb,822.72
3250901,Redacted Supplier,Operations and Neighbourhoods,Operations and Neighbourhoods,General Materials,09-Feb,347.76
3250901,Redacted Supplier,Operations and Neighbourhoods,Operations and Neighbourhoods,Sub-contractor Services,09-Feb,"7,812.05"
3250901,Redacted Supplier,Transport,Director of Place,Debits Goods Received,09-Feb,"3,649.73"
3250901,ECON ENGINEERING LTD,Operations and Neighbourhoods,Operations and Neighbourhoods,Additional Hire,09-Feb,"3,179.67"
3250901,GARIC LTD,Operations and Neighbourhoods,Operations and Neighbourhoods,Additional Hire,09-Feb,"1,359.60"
3250901,HGV DIRECT LTD,Operations and Neighbourhoods,Operations and Neighbourhoods,General Materials,09-Feb,"1,664.50"
3250901,HGV DIRECT LTD,Transport,Director of Place,Debits Goods Received,09-Feb,"1,357.38"
3250901,HTF TYRE SERVICES LTD,Operations and Neighbourhoods,Operations and Neighbourhoods,Tyre Costs,09-Feb,"2,595.58"
3250901,INDUSTRIAL & HYDRAULIC SERVICES,Operations and Neighbourhoods,Operations and Neighbourhoods,General Materials,09-Feb,239.13
3250901,INDUSTRIAL & HYDRAULIC SERVICES,Operations and Neighbourhoods,Operations and Neighbourhoods,Sub-contractor Services,09-Feb,638.56
3250901,JOHNSONS APPARELMASTER LTD,Operations and Neighbourhoods,Operations and Neighbourhoods,Protective Clothing,09-Feb,687.84
3250901,JOHNSTON SWEEPERS LTD,Operations and Neighbourhoods,Operations and Neighbourhoods,General Materials,09-Feb,"1,669.85"
3250901,LPW EUROPE LTD,Operations and Neighbourhoods,Operations and Neighbourhoods,General Equipment Repair & Maintenance,09-Feb,630.00
3250901,Redacted Supplier,Operations and Neighbourhoods,Operations and Neighbourhoods,Additional Hire,09-Feb,"3,256.00"
3250901,RIVERSIDE TRUCK RENTAL LIMITED,Operations and Neighbourhoods,Operations and Neighbourhoods,Additional Hire,09-Feb,"3,938.00"
3250901,RIVERSIDE TRUCK RENTAL LIMITED,Operations and Neighbourhoods,Operations and Neighbourhoods,Sub-contractor Services,09-Feb,362.50
3250901,VISION TECHNIQUES LTD,Operations and Neighbourhoods,Operations and Neighbourhoods,Sub-contractor Services,09-Feb,"1,617.00"
3250902,A & J MOTORSPARES,Operations and Neighbourhoods,Operations and Neighbourhoods,General Materials,16-Feb,"1,080.88"
3250902,AEBI SCHMIDT UK LTD,Operations and Neighbourhoods,Operations and Neighbourhoods,General Materials,16-Feb,509.51
3250902,AEBI SCHMIDT UK LTD,Transport,Director of Place,Debits Goods Received,16-Feb,"1,956.26"
3250902,AIR PRODUCTS PLC,Operations and Neighbourhoods,Operations and Neighbourhoods,General Equipment Repair & Maintenance,16-Feb,520.18
3250902,ARNOLD PLANT HIRE LTD,Operations and Neighbourhoods,Operations and Neighbourhoods,Additional Hire,16-Feb,345.00
3250902,ARNOLD PLANT HIRE LTD,Operations and Neighbourhoods,Operations and Neighbourhoods,Workshop Recharges including Misuse & Damage Costs,16-Feb,159.30
3250902,Redacted Supplier,Operations and Neighbourhoods,Operations and Neighbourhoods,General Materials,16-Feb,446.64
3250902,Redacted Supplier,Transport,Director of Place,Debits Goods Received,16-Feb,398.65
3250902,ECON ENGINEERING LTD,Operations and Neighbourhoods,Operations and Neighbourhoods,Additional Hire,16-Feb,"2,871.96"
3250902,G B OILS TA CARLTON FUELS,Transport,Director of Place,Diesel Fuel,16-Feb,"36,852.03"
3250902,HTF TYRE SERVICES LTD,Operations and Neighbourhoods,Operations and Neighbourhoods,Tyre Costs,16-Feb,"3,877.09"
3250902,JDS TRUCKS LIMITED,Operations and Neighbourhoods,Operations and Neighbourhoods,General Materials,16-Feb,593.41
3250902,LPW EUROPE LTD,Operations and Neighbourhoods,Operations and Neighbourhoods,General Equipment Repair & Maintenance,16-Feb,630.00
3250902,MAN TRUCK AND BUS UK LIMITED,Operations and Neighbourhoods,Operations and Neighbourhoods,General Materials,16-Feb,590.00
3250902,MOTUS COMMERCIALS OLDHAM,Operations and Neighbourhoods,Operations and Neighbourhoods,General Materials,16-Feb,774.09
3250902,MULTEVO LIMITED,Operations and Neighbourhoods,Operations and Neighbourhoods,General Materials,16-Feb,501.36
3250902,TRUCTYRE ATS,Operations and Neighbourhoods,Operations and Neighbourhoods,Tyre Costs,16-Feb,"2,148.61"
3250902,TURNER GROUNDSCARE,Operations and Neighbourhoods,Operations and Neighbourhoods,General Materials,16-Feb,829.05
3250903,AEBI SCHMIDT UK LTD,Operations and Neighbourhoods,Operations and Neighbourhoods,General Materials,23-Feb,917.24
3250903,AEBI SCHMIDT UK LTD,Transport,Director of Place,Debits Goods Received,23-Feb,"2,509.18"
3250903,Redacted Supplier,Operations and Neighbourhoods,Operations and Neighbourhoods,General Materials,23-Feb,"1,710.51"
3250903,Redacted Supplier,Operations and Neighbourhoods,Operations and Neighbourhoods,Sub-contractor Services,23-Feb,"3,043.50"
3250903,Redacted Supplier,Transport,Director of Place,Debits Goods Received,23-Feb,"1,029.99"
3250903,G B OILS TA CARLTON FUELS,Transport,Director of Place,Diesel Fuel,23-Feb,"25,342.80"
3250903,INDUSTRIAL & HYDRAULIC SERVICES,Operations and Neighbourhoods,Operations and Neighbourhoods,Sub-contractor Services,23-Feb,"2,483.00"
3250903,JOHNSTON SWEEPERS LTD,Operations and Neighbourhoods,Operations and Neighbourhoods,General Materials,23-Feb,826.17
3250903,VISION TECHNIQUES LTD,Operations and Neighbourhoods,Operations and Neighbourhoods,Sub-contractor Services,23-Feb,"1,379.00"
3250903,WHALE TANKERS LTD,Operations and Neighbourhoods,Operations and Neighbourhoods,General Materials,23-Feb,530.90
3250904,BRENNTAG UK LIMITED,Transport,Director of Place,Fuel / Ad Blu,02-Mar,"2,635.00"
3250904,Car Hire (Day of Swansea) Ltd t/a Days Rental,Operations and Neighbourhoods,Operations and Neighbourhoods,Additional Hire,02-Mar,"1,330.56"
3250904,Car Hire (Day of Swansea) Ltd t/a Days Rental,Operations and Neighbourhoods,Operations and Neighbourhoods,Replacement Hire,02-Mar,735.13
3250904,Car Hire (Day of Swansea) Ltd t/a Days Rental,Operations and Neighbourhoods,Operations and Neighbourhoods,Workshop Recharges including Misuse & Damage Costs,02-Mar,13.80
3250904,Redacted Supplier,Operations and Neighbourhoods,Operations and Neighbourhoods,General Materials,02-Mar,"1,573.27"
3250904,Redacted Supplier,Operations and Neighbourhoods,Operations and Neighbourhoods,Sub-contractor Services,02-Mar,"11,297.55"
3250904,Redacted Supplier,Transport,Director of Place,Debits Goods Received,02-Mar,596.61
3250904,F. R. SHARROCK LIMITED,Operations and Neighbourhoods,Operations and Neighbourhoods,General Materials,02-Mar,66.12
3250904,F. R. SHARROCK LIMITED,Transport,Director of Place,Debits Goods Received,02-Mar,447.66
3250904,HTF TYRE SERVICES LTD,Operations and Neighbourhoods,Operations and Neighbourhoods,Tyre Costs,02-Mar,971.10
3250904,LEEDS COMMERCIAL LTD T/A LC VEHICLE HIRE,Operations and Neighbourhoods,Operations and Neighbourhoods,Additional Hire,02-Mar,"5,600.00"
3250904,LEEDS COMMERCIAL LTD T/A LC VEHICLE HIRE,Operations and Neighbourhoods,Operations and Neighbourhoods,Sub-contractor Services,02-Mar,345.50
3250904,LPW EUROPE LTD,Operations and Neighbourhoods,Operations and Neighbourhoods,General Equipment Repair & Maintenance,02-Mar,630.00
3250904,Redacted Supplier,Operations and Neighbourhoods,Operations and Neighbourhoods,Additional Hire,02-Mar,"3,108.00"
3250904,S P HAMMERS LTD,Operations and Neighbourhoods,Operations and Neighbourhoods,Sub-contractor Services,02-Mar,720.00
3250904,TRUCTYRE ATS,Operations and Neighbourhoods,Operations and Neighbourhoods,Tyre Costs,02-Mar,604.56
3250904,WASTE PARTS UK LTD,Transport,Director of Place,Debits Goods Received,02-Mar,949.28
3250905,A & J MOTORSPARES,Operations and Neighbourhoods,Operations and Neighbourhoods,Consumable Materials,09-Mar,55.92
3250905,A & J MOTORSPARES,Operations and Neighbourhoods,Operations and Neighbourhoods,General Equipment Purchase,09-Mar,14.99
3250905,A & J MOTORSPARES,Operations and Neighbourhoods,Operations and Neighbourhoods,General Materials,09-Mar,"3,257.86"
3250905,A & J MOTORSPARES,Transport,Director of Place,Debits Goods Received,09-Mar,871.12
3250905,AUTOSMART INTERNATIONAL,Operations and Neighbourhoods,Operations and Neighbourhoods,Consumable Materials,09-Mar,192.55
3250905,AUTOSMART INTERNATIONAL,Operations and Neighbourhoods,Operations and Neighbourhoods,General Equipment Repair & Maintenance,09-Mar,431.65
3250905,Redacted Supplier,Operations and Neighbourhoods,Operations and Neighbourhoods,General Materials,09-Mar,"1,009.00"
3250905,Redacted Supplier,Transport,Director of Place,Debits Goods Received,09-Mar,"3,395.81"
3250905,ECON ENGINEERING LTD,Operations and Neighbourhoods,Operations and Neighbourhoods,General Materials,09-Mar,81.68
3250905,ECON ENGINEERING LTD,Transport,Director of Place,Debits Goods Received,09-Mar,560.32
3250905,FUCHS LUBRICANTS UK PLC,Transport,Director of Place,Debits Goods Received,09-Mar,"3,893.00"
3250905,G B OILS TA CARLTON FUELS,Transport,Director of Place,Diesel Fuel,09-Mar,"24,929.10"
3250905,GARIC LTD,Operations and Neighbourhoods,Operations and Neighbourhoods,Additional Hire,09-Mar,"1,236.00"
3250905,HGV DIRECT LTD,Operations and Neighbourhoods,Operations and Neighbourhoods,General Materials,09-Mar,16.26
3250905,HGV DIRECT LTD,Transport,Director of Place,Debits Goods Received,09-Mar,"2,137.47"
3250905,HYDRAULIC AND TRANSMISSION SERVICES LIMITED,Operations and Neighbourhoods,Operations and Neighbourhoods,Sub-contractor Services,09-Mar,54.72
3250905,HYDRAULIC AND TRANSMISSION SERVICES LIMITED,Transport,Director of Place,Debits Goods Received,09-Mar,832.00
3250905,INDUSTRIAL & HYDRAULIC SERVICES,Operations and Neighbourhoods,Operations and Neighbourhoods,General Equipment Repair & Maintenance,09-Mar,296.98
3250905,INDUSTRIAL & HYDRAULIC SERVICES,Operations and Neighbourhoods,Operations and Neighbourhoods,General Materials,09-Mar,229.04
3250905,JOHNSTON SWEEPERS LTD,Operations and Neighbourhoods,Operations and Neighbourhoods,General Materials,09-Mar,"2,863.78"
3250905,MELLOR COACHCRAFT,Operations and Neighbourhoods,Operations and Neighbourhoods,General Materials,09-Mar,785.00
3250905,MELLOR COACHCRAFT,Transport,Director of Place,Debits Goods Received,09-Mar,320.00
3250905,MOTUS COMMERCIALS OLDHAM,Operations and Neighbourhoods,Operations and Neighbourhoods,General Materials,09-Mar,787.43
3250905,MOTUS COMMERCIALS OLDHAM,Transport,Director of Place,Debits Goods Received,09-Mar,253.37
3250905,PARTS PLUS OLDHAM,Operations and Neighbourhoods,Operations and Neighbourhoods,General Materials,09-Mar,164.61
3250905,PARTS PLUS OLDHAM,Transport,Director of Place,Debits Goods Received,09-Mar,357.82
3250905,RIVERSIDE TRUCK RENTAL LIMITED,Operations and Neighbourhoods,Operations and Neighbourhoods,Additional Hire,09-Mar,"3,580.00"
3250905,TRUCTYRE ATS,Operations and Neighbourhoods,Operations and Neighbourhoods,Tyre Costs,09-Mar,"1,719.98"
3250905,WASTE PARTS UK LTD,Transport,Director of Place,Debits Goods Received,09-Mar,778.27
3250906,DAWSONGROUP BUS AND COACH,Operations and Neighbourhoods,Operations and Neighbourhoods,Additional Hire,16-Mar,"1,032.00"
3250906,Redacted Supplier,Operations and Neighbourhoods,Operations and Neighbourhoods,General Materials,16-Mar,208.24
3250906,Redacted Supplier,Transport,Director of Place,Debits Goods Received,16-Mar,"1,601.57"
3250906,ECON ENGINEERING LTD,Operations and Neighbourhoods,Operations and Neighbourhoods,Sub-contractor Services,16-Mar,"1,330.27"
3250906,ECON ENGINEERING LTD,Transport,Director of Place,Debits Goods Received,16-Mar,335.66
3250906,F. R. SHARROCK LIMITED,Operations and Neighbourhoods,Operations and Neighbourhoods,General Materials,16-Mar,430.51
3250906,F. R. SHARROCK LIMITED,Transport,Director of Place,Debits Goods Received,16-Mar,525.08
3250906,G B OILS TA CARLTON FUELS,Transport,Director of Place,Diesel Fuel,16-Mar,"12,185.44"
3250906,HGV DIRECT LTD,Operations and Neighbourhoods,Operations and Neighbourhoods,General Materials,16-Mar,"2,220.92"
3250906,HGV DIRECT LTD,Transport,Director of Place,Debits Goods Received,16-Mar,"1,104.96"
3250906,HTF TYRE SERVICES LTD,Operations and Neighbourhoods,Operations and Neighbourhoods,Tyre Costs,16-Mar,"1,451.26"
3250906,JOHNSONS APPARELMASTER LTD,Operations and Neighbourhoods,Operations and Neighbourhoods,Protective Clothing,16-Mar,"1,050.30"
3250906,MOTUS COMMERCIALS OLDHAM,Operations and Neighbourhoods,Operations and Neighbourhoods,General Materials,16-Mar,902.10
3250906,SCARAB SWEEPERS LTD,Operations and Neighbourhoods,Operations and Neighbourhoods,General Materials,16-Mar,728.38
3250906,TRUCTYRE ATS,Operations and Neighbourhoods,Operations and Neighbourhoods,Tyre Costs,16-Mar,"1,715.66"
3250906,V L TEST SYSTEMS LIMITED,Operations and Neighbourhoods,Operations and Neighbourhoods,General Equipment Repair & Maintenance,16-Mar,"1,600.00"
3250907,AEBI SCHMIDT UK LTD,Operations and Neighbourhoods,Operations and Neighbourhoods,General Materials,23-Mar,379.74
3250907,AEBI SCHMIDT UK LTD,Transport,Director of Place,Debits Goods Received,23-Mar,776.38
3250907,Redacted Supplier,Operations and Neighbourhoods,Operations and Neighbourhoods,General Materials,23-Mar,"1,024.22"
3250907,Redacted Supplier,Transport,Director of Place,Debits Goods Received,23-Mar,"3,408.43"
3250907,ECON ENGINEERING LTD,Operations and Neighbourhoods,Operations and Neighbourhoods,General Materials,23-Mar,"5,381.68"
3250907,ECON ENGINEERING LTD,Transport,Director of Place,Debits Goods Received,23-Mar,100.02
3250907,G B OILS TA CARLTON FUELS,Transport,Director of Place,Diesel Fuel,23-Mar,"24,516.63"
3250907,HTF TYRE SERVICES LTD,Operations and Neighbourhoods,Operations and Neighbourhoods,Tyre Costs,23-Mar,"1,277.14"
3250907,INDUSTRIAL & HYDRAULIC SERVICES,Operations and Neighbourhoods,Operations and Neighbourhoods,Sub-contractor Services,23-Mar,525.13
3250907,JDS TRUCKS LIMITED,Operations and Neighbourhoods,Operations and Neighbourhoods,General Materials,23-Mar,157.08
3250907,JDS TRUCKS LIMITED,Transport,Director of Place,Debits Goods Received,23-Mar,"3,496.38"
3250907,MANTRA LEARNING LIMITED,Operations and Neighbourhoods,Operations and Neighbourhoods,Training Course Costs,23-Mar,"1,807.25"
3250907,TRUCTYRE ATS,Operations and Neighbourhoods,Operations and Neighbourhoods,Tyre Costs,23-Mar,"1,204.11"
3250907,WASTE PARTS UK LTD,Transport,Director of Place,Debits Goods Received,23-Mar,"1,138.29"
3250908,A & J MOTORSPARES,Operations and Neighbourhoods,Operations and Neighbourhoods,Consumable Materials,30-Mar,39.00
3250908,A & J MOTORSPARES,Operations and Neighbourhoods,Operations and Neighbourhoods,General Materials,30-Mar,566.13
3250908,Redacted Supplier,Operations and Neighbourhoods,Operations and Neighbourhoods,General Materials,30-Mar,"3,746.97"
3250908,INNOVATIVE SAFETY SYSTEMS LIMITED,Operations and Neighbourhoods,Operations and Neighbourhoods,General Materials,30-Mar,"1,650.00"
3250908,JOHNSTON SWEEPERS LTD,Operations and Neighbourhoods,Operations and Neighbourhoods,General Materials,30-Mar,"1,978.31"
3250908,TRUCTYRE ATS,Operations and Neighbourhoods,Operations and Neighbourhoods,Tyre Costs,30-Mar,949.87
5429595,NEW BRIDGE HORIZONS,Adult Social Care,Adults,Homecare Fees,22-Mar,"1,016.00"
5435252,Redacted Supplier,Education,Children's Services,Other Local Authorities Fees,01-Mar,"5,219.00"
5456590,GREATER MANCHESTER COMBINED AUTHORITY,Operations and Neighbourhoods,Operations and Neighbourhoods,Passenger Transport Levy,11-Jan,"843,400.00"
5456644,GREATER MANCHESTER COMBINED AUTHORITY,Operations and Neighbourhoods,Operations and Neighbourhoods,Passenger Transport Levy,11-Jan,"691,300.00"
5456662,GREATER MANCHESTER COMBINED AUTHORITY,Operations and Neighbourhoods,Operations and Neighbourhoods,Waste Levy - Domestic Waste Disposal Costs,16-Mar,"1,271,000.00"
5456673,GREATER MANCHESTER COMBINED AUTHORITY,Operations and Neighbourhoods,Operations and Neighbourhoods,Waste Levy - Domestic Waste Disposal Costs,18-Jan,"1,271,000.00"
5456674,GREATER MANCHESTER COMBINED AUTHORITY,Operations and Neighbourhoods,Operations and Neighbourhoods,Waste Levy - Domestic Waste Disposal Costs,16-Feb,"1,271,000.00"
5462028,Waterloo AFC,(blank),(blank),Community Based Activities,27-Jan,"4,300.00"
5469254,Redacted Supplier,Education,Children's Services,Other Local Authorities Fees,31-Jan,"4,377.71"
5469259,Redacted Supplier,Education,Children's Services,Independent School Fees,31-Jan,"4,694.61"
5469261,Redacted Supplier,Education,Children's Services,Other Local Authorities Fees,31-Jan,"2,711.56"
5471076,CARETECH COMMUNITY SERVICES LIMITED,Adult Social Care,Adults,Residential Home Long Stay Fees,07-Feb,"5,465.10"
5472746,STEP AHEAD RESOURCE SERVICES,Childrens Services,Children's Services,Living With Formal Support,27-Mar,514.28
5473443,Yvonne Luckin Limited,Education,Children's Services,Professional Services,15-Feb,"1,100.00"
5473636,"TRIANGLE CARE LTD t/a Triangle Care Group, Triangle Support Services",Childrens Services,Children's Services,Professional Services,20-Feb,"1,280.00"
5474216,Complex Care Professionals Ltd,Adult Social Care,Adults,Homecare Fees,21-Mar,"2,793.00"
5474358,CARETECH COMMUNITY SERVICES LIMITED,Adult Social Care,Adults,Residential Home Long Stay Fees,07-Feb,"5,647.27"
5475597,COHENS CHEMIST,Population Health,Population Health,Local Enhanced Services,09-Jan,"1,046.45"
5475609,COHENS CHEMIST,Population Health,Population Health,Local Enhanced Services,09-Jan,"1,291.58"
5475610,S F WAIN & SONS LTD,Population Health,Population Health,Local Enhanced Services,09-Jan,"3,274.60"
5475611,WELL PHARMACY,Population Health,Population Health,Local Enhanced Services,09-Jan,830.33
5475789,TPR Care Services Ltd,(blank),(blank),Living With Formal Support,14-Mar,"1,544.20"
5476218,BOOTS UK LTD,Population Health,Population Health,Local Enhanced Services,09-Jan,"3,079.46"
5476223,WELL PHARMACY,Population Health,Population Health,Local Enhanced Services,09-Jan,641.99
5476278,BOOTS UK LTD,Population Health,Population Health,Local Enhanced Services,09-Jan,"4,326.31"
5476285,ASDA PHARMACY,Population Health,Population Health,Local Enhanced Services,09-Jan,667.95
5476294,S F WAIN & SONS LTD,Population Health,Population Health,Local Enhanced Services,09-Jan,666.49
5476308,BOOTS UK LTD,Population Health,Population Health,Local Enhanced Services,09-Jan,"3,245.36"
5476565,Anthem Tuition Ltd,Education,Children's Services,Professional Services,09-Jan,742.50
5477351,STEP AHEAD RESOURCE SERVICES,(blank),(blank),Living With Formal Support,13-Feb,"1,300.00"
5477606,Jigsaw Homes Tameside,Childrens Services,Children's Services,Professional Child Services,03-Jan,"30,000.00"
5477759,CARETECH COMMUNITY SERVICES LIMITED,Adult Social Care,Adults,Residential Home Long Stay Fees,07-Feb,"5,465.10"
5478176,The Compassionate Leadership Company,People and Workforce Development,Governance,Training Course Costs,16-Jan,535.40
5478449,CARITAS CARE LTD,Childrens Services,Children's Services,Foster Carer Agency Fees,14-Feb,"3,604.68"
5478451,CARITAS CARE LTD,Childrens Services,Children's Services,Foster Carer Agency Fees,14-Feb,"3,153.01"
5478608,AD HOC CHAPS PAYMENT,Operations and Neighbourhoods,Operations and Neighbourhoods,Other Accommodation Related Costs,04-Jan,"1,615.00"
5478650,PeopleScout Limited,People and Workforce Development,Governance,"Marketing, Publicity and Recruitment",13-Jan,600.00
5478874,AD HOC CHAPS PAYMENT,Operations and Neighbourhoods,Operations and Neighbourhoods,Other Accommodation Related Costs,27-Feb,"1,442.00"
5478909,AD HOC CHAPS PAYMENT,Operations and Neighbourhoods,Operations and Neighbourhoods,Other Accommodation Related Costs,04-Jan,700.00
5479073,STEP AHEAD RESOURCE SERVICES,(blank),(blank),Living With Formal Support,31-Jan,"1,300.00"
5479093,AD HOC CHAPS PAYMENT,Operations and Neighbourhoods,Operations and Neighbourhoods,Other Accommodation Related Costs,16-Jan,"2,234.93"
5479366,DCS Group (UK) LTD,(blank),(blank),Educational/Instructional Materials,17-Jan,"5,313.00"
5479367,DCS Group (UK) LTD,(blank),(blank),Educational/Instructional Materials,17-Jan,"4,522.00"
5479568,VILLAGE HYDE T/A VUR VILLAGE TRADING NO1 LTD,Childrens Services,Children's Services,Training Course Costs,23-Jan,723.00
5479777,STEP AHEAD RESOURCE SERVICES,(blank),(blank),Living With Formal Support,31-Jan,"1,300.00"
5479851,The Skiband,(blank),(blank),Professional Entertainment Services,17-Jan,"1,150.00"
5480500,Currys Group Ltd T/A Currys Business,Contingency,Contingency,Purchase General Office Equipment,03-Jan,"2,998.00"
5480663,STEP AHEAD RESOURCE SERVICES,(blank),(blank),Living With Formal Support,31-Jan,"1,300.00"
5480822,LOCAL CARE FORCE,Adult Social Care,Adults,Residential Home Long Stay Fees,27-Mar,"2,710.59"
5480979,INSPIREDSPACES TAMESIDE LTD,(blank),(blank),Fees,09-Jan,404.62
5480979,INSPIREDSPACES TAMESIDE LTD,(blank),(blank),New Accommodation Works,09-Jan,"20,231.09"
5480997,INSPIREDSPACES TAMESIDE LTD,(blank),(blank),Fees,19-Jan,127.96
5480997,INSPIREDSPACES TAMESIDE LTD,(blank),(blank),Refurbish Accommodation Works,19-Jan,"6,397.96"
5481004,Complete Care & Enablement Services LTD,Adult Social Care,Adults,Residential Home Long Stay Fees,05-Jan,"5,916.35"
5481030,CARETECH COMMUNITY SERVICES LIMITED,Adult Social Care,Adults,Residential Home Long Stay Fees,03-Mar,"5,916.35"
5481057,CARETECH COMMUNITY SERVICES LIMITED,Adult Social Care,Adults,Residential Home Long Stay Fees,07-Feb,"5,647.27"
5481126,Associated Optical,Adult Social Care,Adults,IT Equipment,02-Feb,510.00
5481189,Redacted Supplier,Childrens Services,Children's Services,Living With Formal Support,20-Jan,"3,881.54"
5481189,Redacted Supplier,(blank),(blank),Living With Formal Support,20-Jan,149.29
5481245,STEP AHEAD RESOURCE SERVICES,(blank),(blank),Living With Formal Support,31-Jan,"1,300.00"
5481357,Constellia Public Ltd,Tameside Investment Partnership,Director of Place,Consultancies,10-Feb,"30,750.00"
5481373,EGBERT H TAYLOR & COMPANY LTD,Operations and Neighbourhoods,Operations and Neighbourhoods,Purchase Wheeled Bins,10-Feb,628.34
5481557,Sandcastle Care LTD,Childrens Services,Children's Services,Childrens Homes Outside Local Authority Fees,04-Jan,"25,692.86"
5481559,Sandcastle Care LTD,Childrens Services,Children's Services,Childrens Homes Outside Local Authority Fees,05-Jan,"25,692.86"
5481584,Intraquest CIC,Childrens Services,Children's Services,Professional Consultancy Services,11-Jan,520.00
5481590,LIQUIDLOGIC LTD,People and Workforce Development,Governance,Computer Software,17-Feb,"6,738.00"
5481778,TAMESIDE AND GLOSSOP INTEGRATED CARE NHS FOUNDATION TRUST,Adult Social Care,Adults,Agency Staff,27-Feb,"10,589.52"
5481899,Intraquest CIC,Childrens Services,Children's Services,Professional Consultancy Services,11-Jan,"1,000.00"
5481950,Educate Resourcing Ltd,Education,Children's Services,Independent School Fees,06-Jan,"19,500.00"
5482044,Foster Careline Ltd,Childrens Services,Children's Services,Foster Carer Agency Fees,20-Jan,"3,366.17"
5482121,Futures Hfd Ltd,Childrens Services,Children's Services,Living With Formal Support,18-Jan,235.71
5482121,Futures Hfd Ltd,(blank),(blank),Living With Formal Support,18-Jan,"5,785.71"
5482121,Futures Hfd Ltd,(blank),(blank),Semi independent - Weekly Living Allowances,18-Jan,236.80
5482159,TEAM VIEWER,Digital Tameside,Finance & IT,Computer Software,04-Jan,"1,650.00"
5482162,Community Integrated Care,Adult Social Care,Adults,Homecare Fees,04-Jan,"29,264.07"
5482245,KEYS PCE LTD,Childrens Services,Children's Services,Childrens Homes Outside Local Authority Fees,13-Jan,"18,112.86"
5482294,Imail Comms Limited,Exchequer,Governance,Printing And Stationery,04-Jan,"2,097.96"
5482313,Redacted Supplier,Education,Children's Services,Independent School Fees,31-Jan,630.00
5482315,Supporting Futures LTD,Childrens Services,Children's Services,Childrens Homes Outside Local Authority Fees,04-Jan,"24,755.30"
5482318,Reed Talent Solutions Ltd,Childrens Services,Children's Services,Professional Services,04-Jan,"13,800.00"
5482335,The Networking People (TNP) Ltd,Digital Tameside,Finance & IT,Professional Services,04-Jan,600.00
5482365,Browne Jacobson LLP,Place,Growth,Professional Services,04-Jan,"4,187.70"
5482380,HC Assessment Ltd,Adult Social Care,Adults,Professional Services,04-Jan,"1,795.45"
5482381,The Trafford College Group,Education,Children's Services,Post 16 FE College Fees,04-Jan,"3,517.81"
5482388,Furniture Resource Centre Ltd,Operations and Neighbourhoods,Operations and Neighbourhoods,"Fixtures, Fittings & Furniture Purchase",04-Jan,728.03
5482401,Furniture Resource Centre Ltd,Operations and Neighbourhoods,Operations and Neighbourhoods,"Fixtures, Fittings & Furniture Purchase",04-Jan,539.34
5482403,Zeno Ltd,Adult Social Care,Adults,Homecare Fees,04-Jan,"10,800.26"
5482409,Furniture Resource Centre Ltd,Operations and Neighbourhoods,Operations and Neighbourhoods,"Fixtures, Fittings & Furniture Purchase",04-Jan,539.34
5482410,Constellia Public Ltd,Place,Growth,Professional Consultancy Services,04-Jan,"7,000.00"
5482413,CITY CARE SOLUTIONS LTD,Adult Social Care,Adults,Homecare Fees,04-Jan,"2,313.77"
5482416,ASKEWS  AND HOLTS LIBRARY SERVICES LTD,Operations and Neighbourhoods,Operations and Neighbourhoods,Purchase Books,04-Jan,"1,484.07"
5482417,PETERS LIMITED (PETERS BOOKSELLING SERVICES),Operations and Neighbourhoods,Operations and Neighbourhoods,Purchase Books,04-Jan,"1,687.71"
5482418,K P DODD CONSTRUCTION LTD,Housing,Director of Place,Minor Works - Building,04-Jan,700.00
5482420,Ocean View LTD,Childrens Services,Children's Services,Childrens Homes Outside Local Authority Fees,04-Jan,"16,400.00"
5482421,STRUCTEC (NW) LTD,Housing,Director of Place,Mandatory Adaptations Grant (DFG),04-Jan,"5,131.24"
5482422,PLATINUM STAIRLIFTS LIMITED,Housing,Director of Place,Mandatory Adaptations Grant (DFG),04-Jan,890.00
5482424,PROGRESSIVE CARE LTD,Childrens Services,Children's Services,Mother and Baby Assessment Placements,04-Jan,"7,660.72"
5482432,M NELSON & SON,Multiple Heads of Service,Multiple Strategic Directorates,CIS Labour Credits,04-Jan,"-1,920.00"
5482432,M NELSON & SON,Multiple Heads of Service,Multiple Strategic Directorates,CIS Labour Debits,04-Jan,"1,920.00"
5482432,M NELSON & SON,Operations and Neighbourhoods,Operations and Neighbourhoods,Engineers -External,04-Jan,"2,240.00"
5482433,M NELSON & SON,Multiple Heads of Service,Multiple Strategic Directorates,CIS Labour Credits,04-Jan,-960.00
5482433,M NELSON & SON,Multiple Heads of Service,Multiple Strategic Directorates,CIS Labour Debits,04-Jan,960.00
5482433,M NELSON & SON,Operations and Neighbourhoods,Operations and Neighbourhoods,Engineers Works,04-Jan,"1,200.00"
5482434,THREE CIRCLES FOSTERING LTD,Childrens Services,Children's Services,Foster Carer Agency Fees,04-Jan,"3,847.50"
5482436,GRANART LIMITED,Operations and Neighbourhoods,Operations and Neighbourhoods,Plaques,04-Jan,954.00
5482438,FRESH START INDEPENDENCE PROJECT LTD,(blank),(blank),Living With Formal Support,04-Jan,"5,379.60"
5482438,FRESH START INDEPENDENCE PROJECT LTD,(blank),(blank),Semi independent - Weekly Living Allowances,04-Jan,61.05
5482443,THREE CIRCLES FOSTERING LTD,Childrens Services,Children's Services,Foster Carer Agency Fees,04-Jan,"3,671.62"
5482452,THREE CIRCLES FOSTERING LTD,Childrens Services,Children's Services,Foster Carer Agency Fees,04-Jan,"3,847.50"
5482466,THREE CIRCLES FOSTERING LTD,Childrens Services,Children's Services,Foster Carer Agency Fees,04-Jan,"3,597.94"
5482467,SEASHELL TRUST,Education,Children's Services,Non-Maintained School Fees,04-Jan,"22,704.00"
5482468,THREE CIRCLES FOSTERING LTD,Childrens Services,Children's Services,Foster Carer Agency Fees,04-Jan,"3,420.00"
5482469,THREE CIRCLES FOSTERING LTD,Childrens Services,Children's Services,Foster Carer Agency Fees,04-Jan,"3,351.60"
5482470,SEASHELL TRUST,Education,Children's Services,Non-Maintained School Fees,04-Jan,"34,181.00"
5482471,SEASHELL TRUST,Education,Children's Services,Non-Maintained School Fees,04-Jan,"26,425.00"
5482472,THREE CIRCLES FOSTERING LTD,Childrens Services,Children's Services,Foster Carer Agency Fees,04-Jan,"1,915.71"
5482473,SEASHELL TRUST,Education,Children's Services,Non-Maintained School Fees,04-Jan,"23,749.00"
5482475,SAFEHOUSES NORTH LIMITED,Childrens Services,Children's Services,Foster Carer Agency Fees,04-Jan,"3,571.86"
5482476,THREE CIRCLES FOSTERING LTD,Childrens Services,Children's Services,Foster Carer Agency Fees,04-Jan,"3,558.94"
5482478,SAFEHOUSES NORTH LIMITED,Childrens Services,Children's Services,Foster Carer Agency Fees,04-Jan,"3,593.08"
5482480,SAFEHOUSES NORTH LIMITED,Childrens Services,Children's Services,Foster Carer Agency Fees,04-Jan,"3,891.47"
5482481,THREE CIRCLES FOSTERING LTD,Childrens Services,Children's Services,Foster Carer Agency Fees,04-Jan,"3,558.94"
5482483,THREE CIRCLES FOSTERING LTD,Childrens Services,Children's Services,Foster Carer Agency Fees,04-Jan,"3,671.62"
5482485,SALISBURY SUPPORT 4 AUTISM,Adult Social Care,Adults,Joint Loans Store Fee,05-Jan,"14,121.30"
5482486,ROYAL MENCAP SOCIETY,Adult Social Care,Adults,Voluntary Organisations Fees,04-Jan,"2,492.32"
5482487,ADOPTION MATTERS NORTHWEST,Childrens Services,Children's Services,Adoption Agency Fees,04-Jan,"10,000.00"
5482488,Furniture Resource Centre Ltd,Operations and Neighbourhoods,Operations and Neighbourhoods,"Fixtures, Fittings & Furniture Purchase",04-Jan,516.70
5482491,Redacted Supplier,Education,Children's Services,Training Course Costs,04-Jan,800.00
5482492,THE UNIVERSITY OF MANCHESTER,Adult Social Care,Adults,Training Course Costs,04-Jan,800.00
5482493,SEASHELL TRUST,Education,Children's Services,Post 16 FE College Fees,04-Jan,"34,250.00"
5482494,THE BREAD & BUTTER THEATRE COMPANY,Operations and Neighbourhoods,Operations and Neighbourhoods,Professional Entertainment Services,04-Jan,655.00
5482495,SEASHELL TRUST,Education,Children's Services,Post 16 FE College Fees,04-Jan,"23,073.00"
5482500,PROFILE SECURITY SERVICES LIMITED,Operations and Neighbourhoods,Operations and Neighbourhoods,Security Services,27-Jan,"4,108.26"
5482505,CITY LIFT SERVICES (NW) LTD,Adult Social Care,Adults,General Equipment Repair & Maintenance,04-Jan,"2,050.00"
5482506,THREE CIRCLES FOSTERING LTD,Childrens Services,Children's Services,Foster Carer Agency Fees,04-Jan,"3,540.86"
5482507,Redacted Supplier,Education,Children's Services,Professional Services,05-Jan,"1,100.00"
5482508,THREE CIRCLES FOSTERING LTD,Childrens Services,Children's Services,Foster Carer Agency Fees,04-Jan,"4,171.50"
5482509,Redacted Supplier,Childrens Services,Children's Services,Childrens Homes Outside Local Authority Fees,04-Jan,"18,000.00"
5482510,THREE CIRCLES FOSTERING LTD,Childrens Services,Children's Services,Foster Carer Agency Fees,04-Jan,"3,980.79"
5482511,Redacted Supplier,Adult Social Care,Adults,Day Care Fees,04-Jan,"2,075.76"
5482512,THREE CIRCLES FOSTERING LTD,Childrens Services,Children's Services,Foster Carer Agency Fees,04-Jan,"3,770.57"
5482514,THREE CIRCLES FOSTERING LTD,Childrens Services,Children's Services,Foster Carer Agency Fees,04-Jan,"3,671.62"
5482517,THREE CIRCLES FOSTERING LTD,Childrens Services,Children's Services,Foster Carer Agency Fees,04-Jan,"3,295.33"
5482519,THREE CIRCLES FOSTERING LTD,Childrens Services,Children's Services,Foster Carer Agency Fees,04-Jan,"5,130.00"
5482520,THREE CIRCLES FOSTERING LTD,Childrens Services,Children's Services,Foster Carer Agency Fees,04-Jan,"5,367.86"
5482526,Furniture Resource Centre Ltd,Operations and Neighbourhoods,Operations and Neighbourhoods,"Fixtures, Fittings & Furniture Purchase",04-Jan,"1,026.31"
5482593,Furniture Resource Centre Ltd,Operations and Neighbourhoods,Operations and Neighbourhoods,"Fixtures, Fittings & Furniture Purchase",05-Jan,662.20
5482597,Furniture Resource Centre Ltd,Operations and Neighbourhoods,Operations and Neighbourhoods,"Fixtures, Fittings & Furniture Purchase",05-Jan,560.13
5482600,Furniture Resource Centre Ltd,Operations and Neighbourhoods,Operations and Neighbourhoods,"Fixtures, Fittings & Furniture Purchase",05-Jan,"1,222.61"
5482615,Go To Investments Ltd t/a HALA GUEST HOUSE,(blank),(blank),Other Accommodation Related Costs,06-Jan,"5,254.00"
5482623,Libraries Connected,Operations and Neighbourhoods,Operations and Neighbourhoods,Professional Entertainment Services,05-Jan,500.00
5482625,FOSTERING SOLUTIONS LTD,Childrens Services,Children's Services,Foster Carer Agency Fees,05-Jan,"3,264.08"
5482626,FOSTERING LIMITED,Childrens Services,Children's Services,Foster Carer Agency Fees,05-Jan,"3,696.00"
5482627,FOSTERING SOLUTIONS LTD,Childrens Services,Children's Services,Foster Carer Agency Fees,05-Jan,"3,264.08"
5482628,FOSTERING SOLUTIONS LTD,Childrens Services,Children's Services,Foster Carer Agency Fees,05-Jan,"3,491.89"
5482629,FOSTERING LIMITED,Childrens Services,Children's Services,Foster Carer Agency Fees,05-Jan,"3,771.60"
5482630,FOSTERING SOLUTIONS LTD,Childrens Services,Children's Services,Foster Carer Agency Fees,05-Jan,"3,308.10"
5482631,FOSTERING SOLUTIONS LTD,Childrens Services,Children's Services,Foster Carer Agency Fees,05-Jan,"3,143.49"
5482632,FOSTERING SOLUTIONS LTD,Childrens Services,Children's Services,Foster Carer Agency Fees,05-Jan,"3,595.55"
5482633,FOSTERING SOLUTIONS LTD,Childrens Services,Children's Services,Foster Carer Agency Fees,05-Jan,"3,550.20"
5482634,FOSTERING SOLUTIONS LTD,Childrens Services,Children's Services,Foster Carer Agency Fees,05-Jan,"3,143.49"
5482653,BARNARDO'S,Childrens Services,Children's Services,Adoption Agency Fees,05-Jan,"54,630.00"
5482659,PLATINUM STAIRLIFTS LIMITED,Housing,Director of Place,Mandatory Adaptations Grant (DFG),05-Jan,"6,284.25"
5482661,PLATINUM STAIRLIFTS LIMITED,Housing,Director of Place,Mandatory Adaptations Grant (DFG),05-Jan,"2,071.25"
5482663,PLATINUM STAIRLIFTS LIMITED,Housing,Director of Place,Mandatory Adaptations Grant (DFG),05-Jan,"6,299.25"
5482667,PLATINUM STAIRLIFTS LIMITED,Housing,Director of Place,Mandatory Adaptations Grant (DFG),05-Jan,"1,933.00"
5482672,ALPHA BIOLABS,Childrens Services,Children's Services,Professional Medical Services,05-Jan,"1,233.90"
5482673,ANIMAL WARDENS LTD,Operations and Neighbourhoods,Operations and Neighbourhoods,Professional Consultancy Services,05-Jan,621.00
5482675,Pre Paid Financial Services,Exchequer,Governance,Fees,05-Jan,"1,132.55"
5482676,Beacon Counselling,People and Workforce Development,Governance,Professional Medical Services,05-Jan,"2,080.00"
5482677,G4S CASH SOLUTIONS (UK) LIMITED,Finance,Finance & IT,Security Services,05-Jan,667.59
5482679,Aaban Partnership Limited,Childrens Services,Children's Services,Childrens Homes Outside Local Authority Fees,05-Jan,"50,748.56"
5482686,Valour Private Ltd t/a Valour Healthcare Services,Adult Social Care,Adults,Homecare Fees,05-Jan,"4,714.76"
5482687,BIBLIOTHECA LTD,Operations and Neighbourhoods,Operations and Neighbourhoods,Computer Software,05-Jan,"10,500.00"
5482688,N.W.A Housing Ltd,(blank),(blank),Non-Authority Accommodation Rental,05-Jan,"7,529.83"
5482690,PROFILE SECURITY SERVICES LIMITED,Operations and Neighbourhoods,Operations and Neighbourhoods,General Materials,05-Jan,"6,481.80"
5482691,TREASURED MEMORIES LTD,Operations and Neighbourhoods,Operations and Neighbourhoods,Plaques,05-Jan,568.35
5482692,Valour Private Ltd t/a Valour Healthcare Services,Adult Social Care,Adults,Homecare Fees,05-Jan,"3,996.70"
5482695,Milk Education Limited,Education,Children's Services,Agency Staff,05-Jan,925.00
5482696,Bright Opportunities,Adult Social Care,Adults,Day Care Fees,06-Jan,"1,705.00"
5482697,Bright Opportunities,Adult Social Care,Adults,Day Care Fees,05-Jan,"1,405.00"
5482700,UNIVERSITY HOSPITALS BIRMINGHAM NHS FOUNDATION TRUST,(blank),(blank),Licences,05-Jan,"32,375.00"
5482701,SEASHELL TRUST,Childrens Services,Children's Services,Residential Home Short Stay Fees,05-Jan,"1,980.00"
5482704,Greater Manchester Chamber of Commerce,Hosted Services,Hosted Services,Professional Services,05-Jan,563.00
5482713,RALPH'S CARPETS,Adult Social Care,Adults,"Fixtures, Fittings & Furniture Purchase",05-Jan,"1,163.00"
5482714,The Mount Guest House Limited,(blank),(blank),Chief/Ground Rent,05-Jan,"6,430.00"
5482716,Strictly Education 4S Ltd,Education,Children's Services,Conference/Seminar Expenses,05-Jan,688.00
5482718,Future Focused Care,Childrens Services,Children's Services,Childrens Homes Outside Local Authority Fees,05-Jan,"19,906.34"
5482732,Furniture Resource Centre Ltd,Operations and Neighbourhoods,Operations and Neighbourhoods,"Fixtures, Fittings & Furniture Purchase",06-Jan,805.07
5482733,Furniture Resource Centre Ltd,Operations and Neighbourhoods,Operations and Neighbourhoods,"Fixtures, Fittings & Furniture Purchase",06-Jan,"1,208.27"
5482740,COOLSPIRIT LTD,Digital Tameside,Finance & IT,Computer Software,06-Jan,"3,315.76"
5482749,SURECARE TAMESIDE & OLDHAM,Adult Social Care,Adults,Homecare Fees,06-Jan,"4,108.93"
5482753,SWIIS FOSTER CARE LTD,Childrens Services,Children's Services,Foster Carer Agency Fees,06-Jan,"1,694.98"
5482755,BOOTS UK LTD,Population Health,Population Health,Local Enhanced Services,06-Jan,787.50
5482763,HOUSE OF IMAGES,Operations and Neighbourhoods,Operations and Neighbourhoods,Subscriptions,06-Jan,525.00
5482764,CARETECH COMMUNITY SERVICES LIMITED,Adult Social Care,Adults,Residential Home Long Stay Fees,06-Jan,"14,484.60"
5482766,CARETECH COMMUNITY SERVICES LIMITED,Adult Social Care,Adults,Residential Home Long Stay Fees,06-Jan,"14,967.42"
5482769,PHOENIX SOFTWARE LTD,GMPF (FX),GMPF (FX),Computer Software,06-Jan,"4,338.50"
5482770,Orange Grove Fostercare LTD,Childrens Services,Children's Services,Foster Carer Agency Fees,06-Jan,"3,777.64"
5482771,LIMB TO LIMB TREE SERVICES LIMITED,Operations and Neighbourhoods,Operations and Neighbourhoods,Professional Services,06-Jan,"2,500.00"
5482773,CARETECH COMMUNITY SERVICES LIMITED,Adult Social Care,Adults,Residential Home Long Stay Fees,06-Jan,"14,967.42"
5482774,Orange Grove Fostercare LTD,Childrens Services,Children's Services,Foster Carer Agency Fees,06-Jan,"5,326.95"
5482775,Orange Grove Fostercare LTD,Childrens Services,Children's Services,Foster Carer Agency Fees,06-Jan,"3,551.45"
5482776,CARETECH COMMUNITY SERVICES LIMITED,Adult Social Care,Adults,Residential Home Long Stay Fees,06-Jan,"15,212.60"
5482777,THE ADOLESCENT & CHILDRENS TRUST,Childrens Services,Children's Services,Foster Carer Agency Fees,06-Jan,"2,983.20"
5482779,Orange Grove Fostercare LTD,Childrens Services,Children's Services,Foster Carer Agency Fees,06-Jan,"3,497.33"
5482780,Orange Grove Fostercare LTD,Childrens Services,Children's Services,Foster Carer Agency Fees,06-Jan,"3,551.45"
5482782,THE ADOLESCENT & CHILDRENS TRUST,Childrens Services,Children's Services,Foster Carer Agency Fees,06-Jan,"2,851.20"
5482783,THE ADOLESCENT & CHILDRENS TRUST,Childrens Services,Children's Services,Foster Carer Agency Fees,03-Jan,"2,983.20"
5482785,Orange Grove Fostercare LTD,Childrens Services,Children's Services,Foster Carer Agency Fees,06-Jan,"3,472.20"
5482786,SOFTCAT LIMITED,GMPF (FX),GMPF (FX),IT Equipment,06-Jan,"1,830.10"
5482789,S & M Builders,Operations and Neighbourhoods,Operations and Neighbourhoods,Professional Services,06-Jan,"3,590.00"
5482794,Redacted Supplier,(blank),(blank),Professional Entertainment Services,06-Jan,960.00
5482802,Unique Community Services,Childrens Services,Children's Services,Childrens Homes Outside Local Authority Fees,06-Jan,"31,261.44"
5482807,GRANART LIMITED,Operations and Neighbourhoods,Operations and Neighbourhoods,Plaques,06-Jan,"2,261.60"
5482808,Unique Community Services,Childrens Services,Children's Services,Childrens Homes Outside Local Authority Fees,06-Jan,"10,378.18"
5482811,Advantage Healthcare Limited,Adult Social Care,Adults,Homecare Fees,06-Jan,"1,017.50"
5482814,iCare Solutions,Adult Social Care,Adults,Homecare Fees,06-Jan,"18,594.34"
5482816,FIRST COAT DECORATORS,Adult Social Care,Adults,"Fixtures, Fittings & Furniture Purchase",06-Jan,795.00
5482818,Optima Health and Social Care Ltd,Childrens Services,Children's Services,Homecare Fees,06-Jan,580.50
5482819,FIRST COAT DECORATORS,Adult Social Care,Adults,"Fixtures, Fittings & Furniture Purchase",06-Jan,"1,150.00"
5482823,VISION FOR EDUCATION LIMITED,Education,Children's Services,Professional Services,06-Jan,"1,458.80"
5482829,Redacted Supplier,Quality and Safeguarding,Quality and Safeguarding,Training Course Costs,06-Jan,600.00
5482834,CITY LIFT SERVICES (NW) LTD,Adult Social Care,Adults,General Equipment Repair & Maintenance,06-Jan,950.00
5482836,Reed Talent Solutions Ltd,Childrens Services,Children's Services,Professional Services,06-Jan,"13,800.00"
5482846,SSP HEALTH MEDICAL SERVICES LTD,Population Health,Population Health,Local Enhanced Services,06-Jan,512.00
5482885,DURHAM COUNTY COUNCIL,Childrens Services,Children's Services,Childrens Homes Outside Local Authority Fees,06-Jan,"25,060.00"
5482910,FOSTERING PEOPLE LTD,Childrens Services,Children's Services,Foster Carer Agency Fees,06-Jan,"3,331.82"
5482919,Bloom Procurement Services Limited,Tameside Investment Partnership,Director of Place,Consultancies,08-Feb,"13,684.21"
5482920,YOUNG PEOPLE FIRST LIMITED,(blank),(blank),Living With Formal Support,06-Jan,"2,100.00"
5482921,YOUNG PEOPLE FIRST LIMITED,(blank),(blank),Living With Formal Support,06-Jan,900.00
5482927,Imail Comms Limited,Exchequer,Governance,Printing And Stationery,06-Jan,"1,640.85"
5482932,Redacted Supplier,Adult Social Care,Adults,Training Materials,06-Jan,950.00
5482936,FOSTER CARE ASSOCIATES LTD (FCA),Childrens Services,Children's Services,Foster Carer Agency Fees,06-Jan,"5,847.84"
5482937,FOSTER CARE ASSOCIATES LTD (FCA),Childrens Services,Children's Services,Foster Carer Agency Fees,06-Jan,"3,719.24"
5482938,FOSTER CARE ASSOCIATES LTD (FCA),Childrens Services,Children's Services,Foster Carer Agency Fees,06-Jan,"3,993.11"
5482941,FOSTER CARE ASSOCIATES LTD (FCA),Childrens Services,Children's Services,Foster Carer Agency Fees,06-Jan,"3,914.99"
5482942,Inspire Care (UK) Limited,Childrens Services,Children's Services,Childrens Homes Outside Local Authority Fees,06-Jan,"27,380.00"
5482943,FOSTER CARE ASSOCIATES LTD (FCA),Childrens Services,Children's Services,Foster Carer Agency Fees,06-Jan,"4,029.69"
5482945,FOSTER CARE ASSOCIATES LTD (FCA),Childrens Services,Children's Services,Foster Carer Agency Fees,06-Jan,"3,690.55"
5482947,FOSTER CARE ASSOCIATES LTD (FCA),Childrens Services,Children's Services,Foster Carer Agency Fees,06-Jan,"3,914.99"
5482949,FOSTER CARE ASSOCIATES LTD (FCA),Childrens Services,Children's Services,Foster Carer Agency Fees,06-Jan,"4,173.53"
5482954,BURY COUNCIL,Education,Children's Services,Other Local Authorities Fees,06-Jan,"10,270.00"
5482956,BURY COUNCIL,Education,Children's Services,Other Local Authorities Fees,06-Jan,"12,500.00"
5482959,Home Grown Ginger,Operations and Neighbourhoods,Operations and Neighbourhoods,Professional Entertainment Services,06-Jan,"1,118.21"
5482964,K P DODD CONSTRUCTION LTD,Housing,Director of Place,Mandatory Adaptations Grant (DFG),06-Jan,"3,736.00"
5483064,RIGHT - STEP LIMITED T/A RSL,Childrens Services,Children's Services,Living With Formal Support,06-Jan,"5,092.86"
5483070,RALPH'S CARPETS,Adult Social Care,Adults,"Fixtures, Fittings & Furniture Purchase",06-Jan,"3,793.00"
5483084,SAFEHOUSES NORTH LIMITED,Childrens Services,Children's Services,Foster Carer Agency Fees,06-Jan,"3,891.47"
5483092,POSITIVE STEPS OLDHAM,Place,Growth,Professional Services,06-Jan,"12,328.77"
5483096,Redacted Supplier,Operations and Neighbourhoods,Operations and Neighbourhoods,Professional Entertainment Services,20-Mar,500.00
5483172,Redacted Supplier,Education,Children's Services,Independent School Fees,06-Jan,"6,000.00"
5483175,Redacted Supplier,Education,Children's Services,Independent School Fees,06-Jan,"8,740.00"
5483176,Redacted Supplier,Education,Children's Services,Independent School Fees,06-Jan,"6,750.00"
5483182,STOCKPORT CP  SOCIETY,Adult Social Care,Adults,Day Care Fees,11-Jan,"1,151.99"
5483184,MOSSCARE HOUSING LTD,Childrens Services,Children's Services,Living With Formal Support,11-Jan,"1,523.84"
5483185,MOSSCARE HOUSING LTD,Childrens Services,Children's Services,Living With Formal Support,11-Jan,"1,428.48"
5483192,COLLEGE OF POLICING,Hosted Services,Hosted Services,Training Course Costs,16-Jan,"2,890.90"
5483195,ROC FIRE AND SECURITY,(blank),(blank),Other Works,06-Jan,510.00
5483199,Redacted Supplier,Education,Children's Services,Professional Services,06-Jan,"4,400.00"
5483201,Northumbria Healthcare NHS Foundation Trust,(blank),(blank),Debits,06-Jan,"2,239.55"
5483208,CLARENDON MEDICAL PRACTICE,Population Health,Population Health,Local Enhanced Services,06-Jan,662.00
5483222,KOMPAN LTD,District Assemblies,"Community,Environmental,Adult and Health Services",General Materials,06-Jan,"17,154.89"
5483224,KOMPAN LTD,District Assemblies,"Community,Environmental,Adult and Health Services",General Materials,06-Jan,"19,375.67"
5483225,K P DODD CONSTRUCTION LTD,Housing,Director of Place,Mandatory Adaptations Grant (DFG),06-Jan,"11,000.00"
5483227,K P DODD CONSTRUCTION LTD,Housing,Director of Place,Mandatory Adaptations Grant (DFG),06-Jan,"3,792.99"
5483248,CP Viability Ltd,Place,Growth,Professional Consultancy Services,06-Jan,"2,100.00"
5483252,Redacted Supplier,Operations and Neighbourhoods,Operations and Neighbourhoods,Professional Entertainment Services,06-Jan,"2,000.00"
5483253,Redacted Supplier,Education,Children's Services,Professional Services,10-Jan,"1,100.00"
5483255,Inicio Group Ltd,Childrens Services,Children's Services,Living With Formal Support,06-Jan,"4,548.57"
5483260,Northumbria Healthcare NHS Foundation Trust,(blank),(blank),Debits,06-Jan,"10,297.65"
5483266,One51 ES Plastics (UK) Limited T/A MGB Plastics,Operations and Neighbourhoods,Operations and Neighbourhoods,Purchase Wheeled Bins,11-Jan,"7,980.00"
5483267,One51 ES Plastics (UK) Limited T/A MGB Plastics,Operations and Neighbourhoods,Operations and Neighbourhoods,Purchase Wheeled Bins,11-Jan,"8,148.00"
5483322,Furniture Resource Centre Ltd,Operations and Neighbourhoods,Operations and Neighbourhoods,"Fixtures, Fittings & Furniture Purchase",11-Jan,657.65
5483324,Furniture Resource Centre Ltd,Operations and Neighbourhoods,Operations and Neighbourhoods,"Fixtures, Fittings & Furniture Purchase",13-Jan,729.69
5483331,Pickering Psychology Services Limited,Childrens Services,Children's Services,Professional Child Services,11-Jan,"1,693.48"
5483338,Three Angels Healthcare,Adult Social Care,Adults,Homecare Fees,11-Jan,"8,807.50"
5483352,ASKEWS  AND HOLTS LIBRARY SERVICES LTD,Operations and Neighbourhoods,Operations and Neighbourhoods,Purchase Books,11-Jan,"8,333.58"
5483355,FAMILY CARE FOSTERING LTD,Childrens Services,Children's Services,Foster Carer Agency Fees,11-Jan,"3,862.07"
5483357,Redacted Supplier,Education,Children's Services,Professional Services,11-Jan,667.39
5483362,SWEEPWISE LIMITED,Operations and Neighbourhoods,Operations and Neighbourhoods,General Materials,11-Jan,"3,200.00"
5483367,Randstad Solutions Ltd,Education,Children's Services,Agency Staff,11-Jan,604.35
5483377,Great Minds Together Ltd,Childrens Services,Children's Services,Childrens Homes Outside Local Authority Fees,11-Jan,"81,800.00"
5483380,Great Minds Together Ltd,Childrens Services,Children's Services,Childrens Homes Outside Local Authority Fees,11-Jan,"67,500.00"
5483383,Redacted Supplier,Adult Social Care,Adults,Professional Services,05-Jan,"1,167.50"
5483384,ALPHA BIOLABS,Childrens Services,Children's Services,Professional Medical Services,11-Jan,"2,868.90"
5483394,CITY CARE SOLUTIONS LTD,Adult Social Care,Adults,Homecare Fees,11-Jan,"2,304.90"
5483395,Milk Education Limited,Education,Children's Services,Agency Staff,11-Jan,925.00
5483399,CAN Qualifications Ltd,Childrens Services,Children's Services,Training Course Costs,05-Jan,767.70
5483402,CAN Qualifications Ltd,Childrens Services,Children's Services,Training Course Costs,05-Jan,767.60
5483403,Randstad Solutions Ltd,Education,Children's Services,Agency Staff,11-Jan,625.00
5483439,Randstad Solutions Ltd,Education,Children's Services,Agency Staff,11-Jan,625.00
5483442,Randstad Solutions Ltd,Education,Children's Services,Agency Staff,11-Jan,625.00
5483449,FRESH START INDEPENDENCE PROJECT LTD,(blank),(blank),Living With Formal Support,11-Jan,"5,379.60"
5483449,FRESH START INDEPENDENCE PROJECT LTD,(blank),(blank),Semi independent - Weekly Living Allowances,11-Jan,61.05
5483451,CHILD ACTION NORTHWEST,Childrens Services,Children's Services,Professional Services,11-Jan,699.56
5483452,TEAM TEACH LTD,Childrens Services,Children's Services,Training Course Costs,11-Jan,"6,340.00"
5483453,CHILD ACTION NORTHWEST,Adult Social Care,Adults,Professional Services,11-Jan,"1,238.23"
5483459,DOMAIN CARE NORTH WEST LTD,Adult Social Care,Adults,Day Care Fees,11-Jan,"1,335.32"
5483464,NINEHUNDRED COMMUNICATIONS,Operations and Neighbourhoods,Operations and Neighbourhoods,Professional Entertainment Services,11-Jan,528.44
5483471,Compass Fostering North LTD,Childrens Services,Children's Services,Foster Carer Agency Fees,12-Jan,"3,337.46"
5483475,Compass Fostering North LTD,Childrens Services,Children's Services,Foster Carer Agency Fees,12-Jan,"3,355.13"
5483478,PRO VENTURE CONSULTING,Finance,Finance & IT,"Marketing, Publicity and Recruitment",12-Jan,"4,000.00"
5483479,Compass Fostering North LTD,Childrens Services,Children's Services,Foster Carer Agency Fees,12-Jan,"3,764.33"
5483480,Compass Fostering North LTD,Childrens Services,Children's Services,Foster Carer Agency Fees,12-Jan,"3,764.33"
5483481,Compass Fostering North LTD,Childrens Services,Children's Services,Foster Carer Agency Fees,12-Jan,"3,173.78"
5483482,Compass Fostering North LTD,Childrens Services,Children's Services,Foster Carer Agency Fees,12-Jan,"3,261.20"
5483483,Compass Fostering North LTD,Childrens Services,Children's Services,Foster Carer Agency Fees,12-Jan,"3,261.20"
5483484,Compass Fostering North LTD,Childrens Services,Children's Services,Foster Carer Agency Fees,12-Jan,"3,432.94"
5483485,Compass Fostering North LTD,Childrens Services,Children's Services,Foster Carer Agency Fees,12-Jan,"3,216.56"
5483486,Compass Fostering North LTD,Childrens Services,Children's Services,Foster Carer Agency Fees,12-Jan,"3,432.94"
5483487,Compass Fostering North LTD,Childrens Services,Children's Services,Foster Carer Agency Fees,12-Jan,"3,108.68"
5483488,Compass Fostering North LTD,Childrens Services,Children's Services,Foster Carer Agency Fees,12-Jan,"3,188.35"
5483510,North West Leaving Care,Childrens Services,Children's Services,Living With Formal Support,18-Jan,"3,532.14"
5483510,North West Leaving Care,(blank),(blank),Living With Formal Support,18-Jan,"1,075.00"
5483516,ROUTES HEALTHCARE (NORTH) LIMITED,Adult Social Care,Adults,Homecare Fees,12-Jan,"5,620.97"
5483526,Furniture Resource Centre Ltd,Operations and Neighbourhoods,Operations and Neighbourhoods,"Fixtures, Fittings & Furniture Purchase",11-Jan,"1,213.47"
5483528,Furniture Resource Centre Ltd,Operations and Neighbourhoods,Operations and Neighbourhoods,"Fixtures, Fittings & Furniture Purchase",09-Jan,533.66
5483533,Redacted Supplier,Childrens Services,Children's Services,Childrens Homes Outside Local Authority Fees,11-Jan,"73,909.27"
5483534,Redacted Supplier,Childrens Services,Children's Services,Childrens Homes Outside Local Authority Fees,13-Jan,"78,663.67"
5483535,CITY LIFT SERVICES (NW) LTD,Adult Social Care,Adults,General Equipment Repair & Maintenance,12-Jan,970.00
5483536,CITY LIFT SERVICES (NW) LTD,Adult Social Care,Adults,General Equipment Repair & Maintenance,12-Jan,850.00
5483539,PLATINUM STAIRLIFTS LIMITED,Housing,Director of Place,Mandatory Adaptations Grant (DFG),11-Jan,"2,631.25"
5483540,Exclusec Security Solutions Ltd,Operations and Neighbourhoods,Operations and Neighbourhoods,Professional Entertainment Services,12-Jan,"2,777.78"
5483545,CROMWELL POLYTHENE LTD.,Operations and Neighbourhoods,Operations and Neighbourhoods,Purchase Plastic Sacks,12-Jan,"5,635.20"
5483546,Shield Support Hub Limited,(blank),(blank),Living With Formal Support,12-Jan,"6,421.42"
5483546,Shield Support Hub Limited,(blank),(blank),Semi independent - Weekly Living Allowances,12-Jan,244.20
5483549,Safe Hands Care & Support Services,(blank),(blank),Living With Formal Support,16-Jan,"3,228.78"
5483558,Southerns Broadstock Limited,Operations and Neighbourhoods,Operations and Neighbourhoods,General Equipment Purchase,12-Jan,"1,043.90"
5483560,The Mount Guest House Limited,(blank),(blank),Chief/Ground Rent,12-Jan,"5,675.00"
5483563,SECOND CHANCE HOUSING,Adult Social Care,Adults,Professional Bailiff Services,12-Jan,"1,263.25"
5483568,ADOPTION MATTERS NORTHWEST,Childrens Services,Children's Services,Adoption Agency Fees,11-Jan,"1,129.00"
5483571,Redacted Supplier,(blank),(blank),Professional Entertainment Services,09-Jan,500.00
5483572,CARRICK SIGNS LTD,Policy and Communications,Governance,Printing And Stationery,12-Jan,502.00
5483585,Nola House Tutoring,Education,Children's Services,Independent School Fees,12-Jan,840.00
5483586,Greater Manchester Poverty Action,Policy and Communications,Governance,Professional Services,12-Jan,"3,250.00"
5483589,RHOMBUS CARE GROUP LIMITED,Adult Social Care,Adults,Homecare Fees,11-Jan,"35,756.95"
5483590,ACTION TOGETHER CIO,Operations and Neighbourhoods,Operations and Neighbourhoods,Contributions,11-Jan,"4,525.00"
5483591,ME LEARNING LTD,People and Workforce Development,Governance,Licences,12-Jan,"4,000.00"
5483593,BEDSPACE RESOURCE LTD,Adult Social Care,Adults,Residential Home Long Stay Fees,11-Jan,"2,800.00"
5483606,N.W.A Housing Ltd,(blank),(blank),Non-Authority Accommodation Rental,13-Jan,"7,233.38"
5483626,Kibble Education and Care Centre,Childrens Services,Children's Services,Childrens Homes Outside Local Authority Fees,13-Jan,"31,682.00"
5483627,iCare Solutions,Adult Social Care,Adults,Homecare Fees,13-Jan,"18,882.45"
5483628,COMFORT CALL LIMITED,Adult Social Care,Adults,Homecare Fees,04-Jan,"33,819.13"
5483629,CARELINE HOMECARE LTD,Adult Social Care,Adults,Homecare Fees,04-Jan,"29,696.77"
5483631,CARELINE HOMECARE LTD,Adult Social Care,Adults,Homecare Fees,04-Jan,"1,704.25"
5483635,ADOPTION MATTERS NORTHWEST,Childrens Services,Children's Services,Adoption Agency Fees,20-Jan,"10,000.00"
5483639,ALPHA BIOLABS,Childrens Services,Children's Services,Professional Medical Services,13-Jan,670.00
5483741,Furniture Resource Centre Ltd,Operations and Neighbourhoods,Operations and Neighbourhoods,"Fixtures, Fittings & Furniture Purchase",13-Jan,705.72
5483743,Furniture Resource Centre Ltd,Operations and Neighbourhoods,Operations and Neighbourhoods,"Fixtures, Fittings & Furniture Purchase",13-Jan,662.72
5483749,TREASURED MEMORIES LTD,Operations and Neighbourhoods,Operations and Neighbourhoods,Plaques,13-Jan,611.95
5483751,TREASURED MEMORIES LTD,Operations and Neighbourhoods,Operations and Neighbourhoods,Plaques,13-Jan,704.70
5483759,Compass Fostering North LTD,Childrens Services,Children's Services,Foster Carer Agency Fees,13-Jan,"1,821.45"
5483760,ACORN CARE & EDUCATION LTD (SALES),Education,Children's Services,Independent School Fees,13-Jan,"25,833.33"
5483761,Compass Fostering North LTD,Childrens Services,Children's Services,Foster Carer Agency Fees,13-Jan,"3,764.33"
5483763,MIDA SIGN SERVICES UK,Policy and Communications,Governance,Printing And Stationery,10-Jan,729.93
5483764,ACORN CARE & EDUCATION LTD (SALES),Education,Children's Services,Independent School Fees,13-Jan,"19,916.67"
5483765,RALPH'S CARPETS,Adult Social Care,Adults,"Fixtures, Fittings & Furniture Purchase",13-Jan,"3,015.00"
5483766,Safe Hands Care & Support Services,(blank),(blank),Living With Formal Support,13-Jan,"6,796.44"
5483771,Safe Hands Care & Support Services,(blank),(blank),Living With Formal Support,13-Jan,"3,675.71"
5483772,ACORN CARE & EDUCATION LTD (SALES),Education,Children's Services,Independent School Fees,13-Jan,"19,916.67"
5483773,SafeNet Domestic Abuse Services Ltd,Childrens Services,Children's Services,Living With Formal Support,13-Jan,"1,873.93"
5483774,SWIIS FOSTER CARE LTD,Childrens Services,Children's Services,Foster Carer Agency Fees,13-Jan,"1,694.98"
5483779,PRISTINE CONDITION INTERNATIONAL LIMITED,Operations and Neighbourhoods,Operations and Neighbourhoods,Training Course Costs,13-Jan,599.00
5483780,Brooks and Brooks Recruitment Ltd,Childrens Services,Children's Services,Childrens Homes Outside Local Authority Fees,13-Jan,"5,040.00"
5483781,THE UNIVERSITY OF MANCHESTER,People and Workforce Development,Governance,Training Course Costs,20-Jan,"1,050.00"
5483783,AUTISM INITIATIVES (UK),Adult Social Care,Adults,Homecare Fees,13-Jan,"1,076.80"
5483784,AUTISM INITIATIVES (UK),Adult Social Care,Adults,Homecare Fees,13-Jan,"3,074.56"
5483785,SOFTCAT LIMITED,Exchequer,Governance,IT Equipment,13-Jan,"2,242.40"
5483786,Coastal Key Housing LTD,(blank),(blank),Living With Formal Support,27-Jan,"9,581.00"
5483787,AUTISM INITIATIVES (UK),Adult Social Care,Adults,Homecare Fees,18-Jan,"3,074.56"
5483790,VISION FOR EDUCATION LIMITED,Education,Children's Services,Professional Services,13-Jan,"1,458.80"
5483792,COOLSPIRIT LTD,Digital Tameside,Finance & IT,Computer Hardware Purchase,13-Jan,575.56
5483800,VISION FOR EDUCATION LIMITED,Education,Children's Services,Professional Services,13-Jan,540.00
5483803,Tynetec a group brand of Legrand Electric Ltd,Adult Social Care,Adults,IT Equipment,13-Jan,"21,734.10"
5483813,ACORN CARE & EDUCATION LTD (SALES),Education,Children's Services,Independent School Fees,13-Jan,"25,833.33"
5483814,ACORN CARE & EDUCATION LTD (SALES),Education,Children's Services,Independent School Fees,13-Jan,"25,833.33"
5483815,REGENDA LIMITED,Adult Social Care,Adults,Non-Authority Accommodation Rental,13-Jan,"16,751.24"
5483816,REGENDA LIMITED,Adult Social Care,Adults,Non-Authority Accommodation Rental,13-Jan,"2,287.31"
5483821,Vestacare (UK) Limited,Adult Social Care,Adults,Day Care Fees,13-Jan,"4,134.00"
5483822,Pennine Medical Supplies Ltd T/A Pennine Workwear,Operations and Neighbourhoods,Operations and Neighbourhoods,Protective Clothing,13-Jan,"2,430.07"
5483825,AGE UK TAMESIDE,Adult Social Care,Adults,Professional Services,13-Jan,"44,065.75"
5483833,YOUNG PEOPLE FIRST LIMITED,Childrens Services,Children's Services,Living With Formal Support,13-Jan,902.00
5483839,Exclusec Security Solutions Ltd,Operations and Neighbourhoods,Operations and Neighbourhoods,Security Services,13-Jan,"21,168.00"
5483840,Exclusec Security Solutions Ltd,(blank),(blank),Security Services,13-Jan,"4,233.60"
5483842,BARCHAM TREES PLC,Operations and Neighbourhoods,Operations and Neighbourhoods,General Materials,13-Jan,"1,343.00"
5483846,JENOPTIK UK LIMITED,Operations and Neighbourhoods,Operations and Neighbourhoods,Fees,13-Jan,"2,100.00"
5483862,HOPE EDUCATION LTD,Operations and Neighbourhoods,Operations and Neighbourhoods,General Equipment Purchase,13-Jan,760.00
5483868,Vernon House T/A Kedleston (WoodGrove Childcare) Limited,Childrens Services,Children's Services,Childrens Homes Outside Local Authority Fees,13-Jan,"17,492.86"
5483870,I Care GB Ltd,Adult Social Care,Adults,Homecare Fees,13-Jan,"20,039.21"
5483871,Go To Investments Ltd t/a HALA GUEST HOUSE,(blank),(blank),Other Accommodation Related Costs,13-Feb,"6,070.00"
5483872,ULVERSCROFT LARGE PRINT  BOOKS LTD,Operations and Neighbourhoods,Operations and Neighbourhoods,Purchase Books,13-Jan,"1,332.41"
5483880,Bloom Procurement Services Limited,(blank),(blank),External  Consultants,05-Jan,846.25
5483882,NPOWER LIMITED,Adult Social Care,Adults,Electricity,13-Jan,826.02
5483883,PeopleScout Limited,People and Workforce Development,Governance,"Marketing, Publicity and Recruitment",13-Jan,"5,985.00"
5483886,ROUTES HEALTHCARE (NORTH) LIMITED,Adult Social Care,Adults,Homecare Fees,13-Jan,"5,899.72"
5483887,Tynetec a group brand of Legrand Electric Ltd,Adult Social Care,Adults,IT Equipment,13-Jan,"2,414.90"
5483888,CGL Services,Population Health,Population Health,Professional Services,13-Jan,"255,750.00"
5483893,ROCHDALE MBC,Operations and Neighbourhoods,Operations and Neighbourhoods,Professional Services,09-Jan,520.00
5483894,ROCHDALE MBC,Operations and Neighbourhoods,Operations and Neighbourhoods,Professional Services,09-Jan,530.00
5483895,PHOENIX SOFTWARE LTD,GMPF (FX),GMPF (FX),Computer Software,13-Jan,"1,083.15"
5483900,DHL Parcel UK Ltd (UK Mail),Exchequer,Governance,Professional Services,13-Jan,"12,347.47"
5483934,Furniture Resource Centre Ltd,Operations and Neighbourhoods,Operations and Neighbourhoods,"Fixtures, Fittings & Furniture Purchase",13-Jan,746.39
5483937,Furniture Resource Centre Ltd,Operations and Neighbourhoods,Operations and Neighbourhoods,"Fixtures, Fittings & Furniture Purchase",13-Jan,"1,264.20"
5483940,Furniture Resource Centre Ltd,Operations and Neighbourhoods,Operations and Neighbourhoods,"Fixtures, Fittings & Furniture Purchase",13-Jan,831.87
5483942,Furniture Resource Centre Ltd,Operations and Neighbourhoods,Operations and Neighbourhoods,"Fixtures, Fittings & Furniture Purchase",13-Jan,"1,830.10"
5483946,CREATIVE IDEAS IN PRINT LTD,(blank),(blank),Printing And Stationery,13-Jan,"1,249.00"
5483953,Safe Hands Care & Support Services,(blank),(blank),Living With Formal Support,15-Feb,"7,631.65"
5483959,GL EDUCATION GROUP,(blank),(blank),"Activity (Materials, Trips)",13-Jan,644.27
5483960,Redacted Supplier,Education,Children's Services,Independent School Fees,13-Jan,"25,364.67"
5483961,Redacted Supplier,Education,Children's Services,Independent School Fees,13-Jan,"25,364.67"
5483979,PARK RETAIL LTD T/A LOVE2REWARD,Childrens Services,Children's Services,"Activity (Materials, Trips)",13-Jan,609.00
5483986,Redacted Supplier,Education,Children's Services,Professional Services,13-Jan,"1,375.00"
5483988,XMA LIMITED,Digital Tameside,Finance & IT,IT Equipment,13-Jan,"1,123.86"
5483990,The Woodland Trust,Hosted Services,Hosted Services,Chief/Ground Rent,06-Jan,"5,600.00"
5484003,Anglian Water Business (National) t/a Wave Utilities,Place,Growth,Water (Metered and Rates),13-Jan,"26,980.94"
5484004,NPOWER LIMITED,Operations and Neighbourhoods,Operations and Neighbourhoods,Electricity,13-Jan,"181,449.96"
5484016,BT GLOBAL SERVICES,Digital Tameside,Finance & IT,Telephone Landline Costs,13-Jan,"5,028.15"
5484020,Reed Talent Solutions Ltd,Childrens Services,Children's Services,Professional Services,13-Jan,"13,030.00"
5484021,CREATIVE IDEAS IN PRINT LTD,(blank),(blank),Printing And Stationery,13-Jan,"1,596.27"
5484048,Optima Health,People and Workforce Development,Governance,Professional Medical Services,13-Jan,"8,293.93"
5484074,NEW BRIDGE HORIZONS,Adult Social Care,Adults,Day Care Fees,13-Jan,"1,050.75"
5484075,NEW BRIDGE HORIZONS,Adult Social Care,Adults,Day Care Fees,13-Jan,731.25
5484087,NEW BRIDGE HORIZONS,Adult Social Care,Adults,Day Care Fees,13-Jan,817.25
5484090,NEW BRIDGE HORIZONS,Adult Social Care,Adults,Day Care Fees,13-Jan,810.00
5484097,Oxford Innovation LTD - ASHTON OLD BATHS,Place,Growth,Professional Services,13-Jan,"32,469.73"
5484101,SOFTCAT LIMITED,GMPF (FX),GMPF (FX),Computer Software,13-Jan,719.31
5484105,CITY CARE SOLUTIONS LTD,Adult Social Care,Adults,Homecare Fees,17-Jan,"2,304.90"
5484106,BEXAN LIMITED,Childrens Services,Children's Services,Professional Services,17-Jan,714.00
5484107,TELEFONICA O2 (UK) LTD,Digital Tameside,Finance & IT,Mobile Telephones,17-Jan,"7,427.91"
5484112,Zeno Ltd,Adult Social Care,Adults,Homecare Fees,18-Jan,"10,800.26"
5484113,Redacted Supplier,Adult Social Care,Adults,Day Care Fees,18-Jan,"1,344.00"
5484119,ASKEWS  AND HOLTS LIBRARY SERVICES LTD,Operations and Neighbourhoods,Operations and Neighbourhoods,Purchase Books,18-Jan,"1,219.27"
5484123,FRESH START INDEPENDENCE PROJECT LTD,Childrens Services,Children's Services,Living With Formal Support,16-Feb,"5,379.60"
5484123,FRESH START INDEPENDENCE PROJECT LTD,(blank),(blank),Semi independent - Weekly Living Allowances,16-Feb,61.05
5484140,Furniture Resource Centre Ltd,Operations and Neighbourhoods,Operations and Neighbourhoods,"Fixtures, Fittings & Furniture Purchase",18-Jan,752.32
5484141,Furniture Resource Centre Ltd,Operations and Neighbourhoods,Operations and Neighbourhoods,"Fixtures, Fittings & Furniture Purchase",18-Jan,506.39
5484155,Furniture Resource Centre Ltd,Operations and Neighbourhoods,Operations and Neighbourhoods,"Fixtures, Fittings & Furniture Purchase",18-Jan,"1,129.99"
5484161,Redacted Supplier,Education,Children's Services,Professional Services,18-Jan,"1,100.00"
5484162,Furniture Resource Centre Ltd,Operations and Neighbourhoods,Operations and Neighbourhoods,"Fixtures, Fittings & Furniture Purchase",18-Jan,946.98
5484193,Fanco Limited t/a 365 Medicare,Adult Social Care,Adults,Homecare Fees,03-Jan,579.32
5484207,Fanco Limited t/a 365 Medicare,Adult Social Care,Adults,Homecare Fees,03-Jan,786.16
5484210,Fanco Limited t/a 365 Medicare,Adult Social Care,Adults,Homecare Fees,03-Jan,993.02
5484214,TUDOR (UK) LTD T/A TUDOR ENVIRONMENTAL,Operations and Neighbourhoods,Operations and Neighbourhoods,General Materials,18-Jan,"3,283.43"
5484217,YOUNG PEOPLE FIRST LIMITED,(blank),(blank),Living With Formal Support,18-Jan,900.00
5484219,YOUNG PEOPLE FIRST LIMITED,Childrens Services,Children's Services,Living With Formal Support,18-Jan,900.00
5484219,YOUNG PEOPLE FIRST LIMITED,(blank),(blank),Living With Formal Support,18-Jan,"1,200.00"
5484221,P MCGUINNESS & CO LTD,(blank),(blank),Engineers -External,18-Jan,"1,280.00"
5484222,QA LIMITED,Hosted Services,Hosted Services,Training Course Costs,18-Jan,"1,991.25"
5484230,Advantage Healthcare Limited,Adult Social Care,Adults,Homecare Fees,18-Jan,"1,017.50"
5484236,Furniture Resource Centre Ltd,Operations and Neighbourhoods,Operations and Neighbourhoods,"Fixtures, Fittings & Furniture Purchase",18-Jan,717.38
5484240,MHR International UK Limited,People and Workforce Development,Governance,Professional Consultancy Services,18-Jan,"1,800.00"
5484243,Eurovia infrastructure Ltd,District Assemblies,"Community,Environmental,Adult and Health Services",Engineers -External,13-Jan,"9,012.01"
5484244,Avoira Ltd,Digital Tameside,Finance & IT,Telephone Landline Costs,18-Jan,"5,465.58"
5484245,Soil Environment Services Ltd.,Place,Growth,Professional Services,30-Jan,"2,240.00"
5484275,CARELINE HOMECARE LTD,Adult Social Care,Adults,Homecare Fees,10-Jan,"1,652.79"
5484278,CARELINE HOMECARE LTD,Adult Social Care,Adults,Homecare Fees,10-Jan,"29,293.15"
5484282,COMFORT CALL LIMITED,Adult Social Care,Adults,Homecare Fees,10-Jan,"33,405.90"
5484291,Exclusive Secure Care Services,Childrens Services,Children's Services,Hired Transport,19-Jan,"1,813.50"
5484315,Furniture Resource Centre Ltd,Operations and Neighbourhoods,Operations and Neighbourhoods,"Fixtures, Fittings & Furniture Purchase",19-Jan,735.48
5484316,Redacted Supplier,Childrens Services,Children's Services,Childrens Homes Outside Local Authority Fees,19-Jan,"20,550.00"
5484319,Redacted Supplier,Education,Children's Services,Professional Services,19-Jan,"1,100.00"
5484320,Redacted Supplier,Education,Children's Services,Professional Services,19-Jan,"1,650.00"
5484323,K P DODD CONSTRUCTION LTD,Housing,Director of Place,Minor Works - Building,19-Jan,500.00
5484326,Optelec LTD,Adult Social Care,Adults,IT Equipment,19-Jan,"1,538.15"
5484335,iCare Solutions,Adult Social Care,Adults,Homecare Fees,19-Jan,"18,585.47"
5484346,Redacted Supplier,Education,Children's Services,Transport Of Post 16 Pupils,05-Jan,840.00
5484350,TAMESIDE SPORTS TRUST,Education,Children's Services,Independent School Fees,04-Jan,"22,532.00"
5484352,The University of Sheffield,(blank),(blank),Project Costs,17-Jan,813.39
5484354,Hello Creative,(blank),(blank),"Marketing, Publicity and Recruitment",19-Jan,"3,320.20"
5484371,WILDE CONSULTING ENGINEERS,Tameside Investment Partnership,Director of Place,Engineers -External,12-Jan,"20,892.68"
5484372,Furniture Resource Centre Ltd,Operations and Neighbourhoods,Operations and Neighbourhoods,"Fixtures, Fittings & Furniture Purchase",19-Jan,829.45
5484374,Furniture Resource Centre Ltd,Operations and Neighbourhoods,Operations and Neighbourhoods,"Fixtures, Fittings & Furniture Purchase",19-Jan,727.76
5484376,Furniture Resource Centre Ltd,Operations and Neighbourhoods,Operations and Neighbourhoods,"Fixtures, Fittings & Furniture Purchase",19-Jan,727.76
5484380,STAFF CARE SERVICES,Adult Social Care,Adults,Professional Consultancy Services,19-Jan,"1,012.50"
5484392,Redacted Supplier,Exchequer,Governance,Postages,03-Jan,671.00
5484396,J HOPKINS CONTRACTORS  LTD,(blank),(blank),Footway Construction,12-Jan,"239,503.11"
5484397,Rivergate Developments Ltd,Housing,Director of Place,Mandatory Adaptations Grant (DFG),03-Jan,994.30
5484400,ELMAR HOME CARE MANCHESTER LTD,Adult Social Care,Adults,Homecare Fees,19-Jan,"3,290.33"
5484401,CROMWELL POLYTHENE LTD.,Operations and Neighbourhoods,Operations and Neighbourhoods,Purchase Plastic Sacks,19-Jan,"7,513.60"
5484404,ROSS AUTO ENGINEERING LIMITED TRADING AS ROSS CARE,Adult Social Care,Adults,Joint Loans Store Fee,19-Jan,"115,210.69"
5484405,N.W.A Housing Ltd,(blank),(blank),Non-Authority Accommodation Rental,19-Jan,"7,055.51"
5484407,ELMAR HOME CARE MANCHESTER LTD,Adult Social Care,Adults,Homecare Fees,19-Jan,"3,504.69"
5484408,ROSS AUTO ENGINEERING LIMITED TRADING AS ROSS CARE,Adult Social Care,Adults,Joint Loans Store Fee,18-Jan,"14,596.69"
5484412,ELMAR HOME CARE MANCHESTER LTD,Adult Social Care,Adults,Homecare Fees,19-Jan,"4,658.56"
5484415,UK FOSTERING LTD,Childrens Services,Children's Services,Foster Carer Agency Fees,19-Jan,"3,027.90"
5484419,ELMAR HOME CARE MANCHESTER LTD,Adult Social Care,Adults,Homecare Fees,19-Jan,"5,076.63"
5484420,Newsquest Ltd T/A LOCALiQ,Childrens Services,Children's Services,"Marketing, Publicity and Recruitment",19-Jan,"1,750.00"
5484421,PHOENIX SOFTWARE LTD,Digital Tameside,Finance & IT,Computer Software,19-Jan,"34,777.80"
5484422,GRANT THORNTON UK LLP,Finance,Finance & IT,Professional Services,09-Jan,"5,000.00"
5484423,K P DODD CONSTRUCTION LTD,Housing,Director of Place,Mandatory Adaptations Grant (DFG),11-Jan,"5,623.96"
5484426,SOLON SECURITY LTD,Population Health,Population Health,Security Equipment,19-Jan,"9,980.20"
5484431,Rivergate Developments Ltd,Housing,Director of Place,Mandatory Adaptations Grant (DFG),03-Jan,"5,054.44"
5484432,PLATINUM STAIRLIFTS LIMITED,Housing,Director of Place,Mandatory Adaptations Grant (DFG),04-Jan,"5,783.50"
5484433,K P DODD CONSTRUCTION LTD,Housing,Director of Place,Mandatory Adaptations Grant (DFG),19-Jan,"7,965.16"
5484434,CARETECH COMMUNITY SERVICES LIMITED,Adult Social Care,Adults,Residential Home Long Stay Fees,20-Jan,"4,065.34"
5484436,CARETECH COMMUNITY SERVICES LIMITED,Adult Social Care,Adults,Residential Home Long Stay Fees,20-Jan,"14,668.58"
5484437,CARETECH COMMUNITY SERVICES LIMITED,Adult Social Care,Adults,Residential Home Long Stay Fees,20-Jan,"5,916.35"
5484439,CARETECH COMMUNITY SERVICES LIMITED,Adult Social Care,Adults,Residential Home Long Stay Fees,20-Jan,"3,227.10"
5484440,CARETECH COMMUNITY SERVICES LIMITED,Adult Social Care,Adults,Residential Home Long Stay Fees,20-Jan,"3,227.10"
5484441,Redacted Supplier,Operations and Neighbourhoods,Operations and Neighbourhoods,Professional Entertainment Services,08-Feb,550.00
5484443,Redacted Supplier,Population Health,Population Health,Contributions,30-Jan,"1,000.00"
5484446,CARETECH COMMUNITY SERVICES LIMITED,Adult Social Care,Adults,Residential Home Long Stay Fees,20-Jan,"5,916.35"
5484448,CARETECH COMMUNITY SERVICES LIMITED,Adult Social Care,Adults,Residential Home Long Stay Fees,20-Jan,"10,165.52"
5484450,CARETECH COMMUNITY SERVICES LIMITED,Adult Social Care,Adults,Residential Home Long Stay Fees,20-Jan,"5,862.72"
5484451,CARETECH COMMUNITY SERVICES LIMITED,Adult Social Care,Adults,Residential Home Long Stay Fees,20-Jan,"2,393.51"
5484452,Complete Care & Enablement Services LTD,Adult Social Care,Adults,Residential Home Long Stay Fees,20-Jan,"5,916.35"
5484453,CARETECH COMMUNITY SERVICES LIMITED,Adult Social Care,Adults,Residential Home Long Stay Fees,20-Jan,"4,787.02"
5484454,Complete Care & Enablement Services LTD,Adult Social Care,Adults,Residential Home Long Stay Fees,20-Jan,"5,916.35"
5484455,CARETECH COMMUNITY SERVICES LIMITED,Adult Social Care,Adults,Residential Home Long Stay Fees,20-Jan,"4,610.01"
5484456,CARETECH COMMUNITY SERVICES LIMITED,Adult Social Care,Adults,Residential Home Long Stay Fees,20-Jan,"14,967.42"
5484457,Complete Care & Enablement Services LTD,Adult Social Care,Adults,Residential Home Long Stay Fees,20-Jan,"5,916.35"
5484458,CARETECH COMMUNITY SERVICES LIMITED,Adult Social Care,Adults,Residential Home Long Stay Fees,20-Jan,"4,787.02"
5484459,CARETECH COMMUNITY SERVICES LIMITED,Adult Social Care,Adults,Residential Home Long Stay Fees,20-Jan,"6,268.51"
5484460,CARETECH COMMUNITY SERVICES LIMITED,Adult Social Care,Adults,Residential Home Long Stay Fees,20-Jan,"6,992.05"
5484461,CARETECH COMMUNITY SERVICES LIMITED,Adult Social Care,Adults,Residential Home Long Stay Fees,07-Feb,"5,647.27"
5484462,CARETECH COMMUNITY SERVICES LIMITED,Adult Social Care,Adults,Residential Home Long Stay Fees,20-Jan,"6,992.05"
5484463,CARETECH COMMUNITY SERVICES LIMITED,Adult Social Care,Adults,Residential Home Long Stay Fees,20-Jan,"5,423.45"
5484464,CARETECH COMMUNITY SERVICES LIMITED,Adult Social Care,Adults,Residential Home Long Stay Fees,20-Jan,"7,529.90"
5484465,CARETECH COMMUNITY SERVICES LIMITED,Adult Social Care,Adults,Residential Home Long Stay Fees,20-Jan,"5,147.86"
5484466,PATROL,Operations and Neighbourhoods,Operations and Neighbourhoods,Fees,20-Jan,"1,250.40"
5484467,CARETECH COMMUNITY SERVICES LIMITED,Adult Social Care,Adults,Residential Home Long Stay Fees,20-Jan,"4,302.80"
5484469,CARETECH COMMUNITY SERVICES LIMITED,Adult Social Care,Adults,Residential Home Long Stay Fees,20-Jan,"7,529.90"
5484470,SEASHELL TRUST,Education,Children's Services,Non-Maintained School Fees,20-Jan,"22,704.00"
5484471,SEASHELL TRUST,Education,Children's Services,Non-Maintained School Fees,20-Jan,"34,181.00"
5484472,SEASHELL TRUST,Education,Children's Services,Post 16 FE College Fees,20-Jan,"23,073.00"
5484473,SEASHELL TRUST,Education,Children's Services,Non-Maintained School Fees,20-Jan,"26,425.00"
5484474,SEASHELL TRUST,Education,Children's Services,Non-Maintained School Fees,20-Jan,"23,749.00"
5484475,SEASHELL TRUST,Education,Children's Services,Post 16 FE College Fees,20-Jan,"34,250.00"
5484476,VISION FOR EDUCATION LIMITED,Education,Children's Services,Professional Services,20-Jan,"1,875.60"
5484481,Imail Comms Limited,Exchequer,Governance,Printing And Stationery,20-Jan,"4,309.83"
5484484,SURECARE TAMESIDE & OLDHAM,Adult Social Care,Adults,Homecare Fees,20-Jan,"4,148.82"
5484485,GRANART LIMITED,Operations and Neighbourhoods,Operations and Neighbourhoods,Plaques,20-Jan,"1,429.00"
5484488,Redacted Supplier,Adult Social Care,Adults,Legal Fees,30-Jan,"1,050.00"
5484496,Sams Helping Hands Limited,Adult Social Care,Adults,Homecare Fees,03-Jan,"9,274.21"
5484498,ON365,GMPF (FX),GMPF (FX),Computer Hardware Maintenance Costs,20-Jan,"3,325.00"
5484508,Imail Comms Limited,Exchequer,Governance,Printing And Stationery,20-Jan,"1,984.16"
5484510,Nominet UK,Digital Tameside,Finance & IT,Security Services,20-Jan,"1,009.61"
5484511,Redacted Supplier,Childrens Services,Children's Services,Childrens Homes Outside Local Authority Fees,20-Jan,"19,928.66"
5484513,Redacted Supplier,Childrens Services,Children's Services,Childrens Homes Outside Local Authority Fees,20-Jan,"19,928.66"
5484514,TRAVELERS INSURANCE COMPANY LTD,Finance,Finance & IT,Public Liability Insurance,20-Jan,"10,697.50"
5484515,The Mount Guest House Limited,(blank),(blank),Chief/Ground Rent,20-Jan,"6,060.00"
5484516,TRAVELERS INSURANCE COMPANY LTD,Finance,Finance & IT,Public Liability Insurance,20-Jan,"11,980.17"
5484518,Pickering Psychology Services Limited,Childrens Services,Children's Services,Professional Child Services,20-Jan,801.86
5484522,Furniture Resource Centre Ltd,Operations and Neighbourhoods,Operations and Neighbourhoods,"Fixtures, Fittings & Furniture Purchase",18-Jan,559.68
5484523,WEIGHTMANS LLP,Finance,Finance & IT,Public Liability Insurance,01-Feb,"1,428.39"
5484525,WEIGHTMANS LLP,Finance,Finance & IT,Public Liability Insurance,01-Feb,"1,203.61"
5484528,Go To Investments Ltd t/a HALA GUEST HOUSE,(blank),(blank),Other Accommodation Related Costs,13-Feb,"6,904.00"
5484529,Redacted Supplier,Childrens Services,Children's Services,Childrens Homes Outside Local Authority Fees,20-Jan,"15,660.54"
5484530,Redacted Supplier,Childrens Services,Children's Services,Childrens Homes Outside Local Authority Fees,20-Jan,"17,692.01"
5484532,IDOX SOFTWARE LIMITED,(blank),(blank),Professional Services,20-Jan,"2,625.00"
5484534,ROCHDALE MBC,Hosted Services,Hosted Services,Chief/Ground Rent,13-Jan,"2,100.00"
5484534,ROCHDALE MBC,Hosted Services,Hosted Services,Sub-contractor Services,13-Jan,"3,400.00"
5484537,Redacted Supplier,Childrens Services,Children's Services,Childrens Homes Outside Local Authority Fees,20-Jan,"33,480.00"
5484541,SUTHERLAND TRADING LTD t/a LMS MUSIC SUPPLIES,Education,Children's Services,Musical Instruments,20-Jan,760.00
5484542,SWIIS FOSTER CARE LTD,Childrens Services,Children's Services,Foster Carer Agency Fees,20-Jan,"1,694.98"
5484546,KPMG (UK) LLP,Exchequer,Governance,Professional Services,20-Jan,"17,945.00"
5484553,Independent Clinical Services t/a: Thornbury Nursing Services,Childrens Services,Children's Services,Professional Medical Services,20-Jan,876.09
5484561,Independent Clinical Services t/a: Thornbury Nursing Services,Childrens Services,Children's Services,Professional Medical Services,20-Jan,635.44
5484564,Independent Clinical Services t/a: Thornbury Nursing Services,Childrens Services,Children's Services,Professional Medical Services,20-Jan,908.11
5484566,Independent Clinical Services t/a: Thornbury Nursing Services,Childrens Services,Children's Services,Professional Medical Services,20-Jan,940.15
5484568,Independent Clinical Services t/a: Thornbury Nursing Services,Childrens Services,Children's Services,Professional Medical Services,20-Jan,686.21
5484569,Independent Clinical Services t/a: Thornbury Nursing Services,Childrens Services,Children's Services,Professional Medical Services,20-Jan,844.62
5484571,Independent Clinical Services t/a: Thornbury Nursing Services,Childrens Services,Children's Services,Professional Medical Services,20-Jan,846.81
5484573,Furniture Resource Centre Ltd,Operations and Neighbourhoods,Operations and Neighbourhoods,"Fixtures, Fittings & Furniture Purchase",19-Jan,630.46
5484578,BRANAS ISAF LTD,Childrens Services,Children's Services,Childrens Homes Outside Local Authority Fees,20-Jan,"21,921.43"
5484582,VIP-SYSTEM LIMITED,Operations and Neighbourhoods,Operations and Neighbourhoods,Taxi Lamination Fees,20-Jan,"1,612.72"
5484586,ROUTES HEALTHCARE (NORTH) LIMITED,Adult Social Care,Adults,Homecare Fees,20-Jan,"6,658.90"
5484587,Valour Private Ltd t/a Valour Healthcare Services,Adult Social Care,Adults,Homecare Fees,20-Jan,"4,741.36"
5484592,F G MARSHALL LTD,Operations and Neighbourhoods,Operations and Neighbourhoods,Plaques,20-Jan,"1,404.51"
5484600,Oxford Innovation LTD - ASHTON OLD BATHS,Place,Growth,Professional Services,20-Jan,"31,928.35"
5484601,Identity Care Housing Ltd,Adult Social Care,Adults,Residential Home Long Stay Fees,20-Jan,623.14
5484604,ABLE CARE AND SUPPORT SERVICES LTD,Adult Social Care,Adults,Homecare Fees,03-Jan,"11,083.60"
5484612,MHG SUPPLIES LTD,Operations and Neighbourhoods,Operations and Neighbourhoods,Printing And Stationery,20-Jan,"2,100.00"
5484613,Debigno Ltd (Trading as Pathway Analytics),Hosted Services,Hosted Services,Professional Services,02-Feb,594.00
5484614,SURECARE TAMESIDE & OLDHAM,Adult Social Care,Adults,Homecare Fees,20-Jan,"4,237.47"
5484646,SANTANDER UK PLC,Finance,Finance & IT,National Giro,04-Jan,"3,862.97"
5484648,WORLDPAY,Finance,Finance & IT,National Giro,04-Jan,"12,635.75"
5484651,TRAVELODGE,(blank),(blank),Non-Authority Accommodation Rental,04-Jan,"3,953.10"
5484652,TRAVELODGE,(blank),(blank),Non-Authority Accommodation Rental,04-Jan,"1,061.87"
5484654,TRAVELODGE,(blank),(blank),Non-Authority Accommodation Rental,04-Jan,"3,151.48"
5484657,TPR Care Services Ltd,(blank),(blank),Living With Formal Support,03-Jan,"3,088.40"
5484658,TPR Care Services Ltd,(blank),(blank),Living With Formal Support,03-Jan,"1,544.20"
5484659,TPR Care Services Ltd,(blank),(blank),Living With Formal Support,03-Jan,"1,544.20"
5484660,TPR Care Services Ltd,(blank),(blank),Living With Formal Support,03-Jan,"1,544.20"
5484662,TPR Care Services Ltd,(blank),(blank),Living With Formal Support,03-Jan,"1,544.20"
5484663,TPR Care Services Ltd,(blank),(blank),Living With Formal Support,03-Jan,"1,244.20"
5484674,Agilyx EMEA Limited,People and Workforce Development,Governance,Professional Consultancy Services,05-Jan,522.00
5484683,TAMESIDE AND GLOSSOP INTEGRATED CARE NHS FOUNDATION TRUST,Contingency,Contingency,Professional Services,05-Jan,"6,425.74"
5484706,Sams Helping Hands Limited,Childrens Services,Children's Services,Homecare Fees,03-Jan,624.00
5484707,D.A. LANGUAGES LTD,Childrens Services,Children's Services,Professional Interpreter Services,03-Jan,655.60
5484714,INSPIREDSPACES TAMESIDE LTD,Asset & Investment Partnership Management,Growth,Utilities,03-Jan,"4,702.78"
5484718,Xoom X Ltd,Operations and Neighbourhoods,Operations and Neighbourhoods,Transport Of Ola Pupils,03-Jan,"2,682.00"
5484721,ValueLicensing EU BVBA,(blank),(blank),Computer Software,20-Jan,"17,600.00"
5484722,ValueLicensing EU BVBA,(blank),(blank),Computer Software,20-Jan,"17,600.00"
5484730,Constellia Public Ltd,Tameside Investment Partnership,Director of Place,Consultancies,20-Jan,"10,250.00"
5484731,INSPIREDSPACES TAMESIDE LTD,Asset & Investment Partnership Management,Growth,Food & Refreshments,03-Jan,208.82
5484731,INSPIREDSPACES TAMESIDE LTD,Asset & Investment Partnership Management,Growth,Free School Meal Costs,03-Jan,"5,139.25"
5484733,INSPIREDSPACES TAMESIDE LTD,Asset & Investment Partnership Management,Growth,PFI FM Fees and Insurance Costs,05-Jan,"17,825.00"
5484735,INSPIREDSPACES TAMESIDE LTD,Asset & Investment Partnership Management,Growth,PFI FM Fees and Insurance Costs,05-Jan,"7,500.60"
5484736,INSPIREDSPACES TAMESIDE LTD,Asset & Investment Partnership Management,Growth,PFI FM Fees and Insurance Costs,05-Jan,"3,250.00"
5484750,Furniture Resource Centre Ltd,Operations and Neighbourhoods,Operations and Neighbourhoods,"Fixtures, Fittings & Furniture Purchase",20-Jan,808.02
5484753,PHOENIX SOFTWARE LTD,GMPF (FX),GMPF (FX),Computer Software,20-Jan,"75,842.32"
5484759,Reed Talent Solutions Ltd,Childrens Services,Children's Services,Professional Services,20-Jan,"8,215.00"
5484762,Redacted Supplier,Education,Children's Services,Professional Services,20-Jan,"1,100.00"
5484763,SOFTCAT LIMITED,Digital Tameside,Finance & IT,IT Equipment,20-Jan,"9,127.10"
5484771,Redacted Supplier,(blank),(blank),Living With Formal Support,20-Jan,"5,956.34"
5484771,Redacted Supplier,(blank),(blank),Semi independent - Weekly Living Allowances,20-Jan,270.32
5484772,Redacted Supplier,Childrens Services,Children's Services,Living With Formal Support,20-Jan,"3,963.66"
5484780,PERSON CENTRED CARE SERVICES LIMITED,Adult Social Care,Adults,Homecare Fees,03-Jan,"6,966.61"
5484781,ELMAR HOME CARE MANCHESTER LTD,Adult Social Care,Adults,Homecare Fees,20-Jan,"5,298.26"
5484782,Xoom X Ltd,Education,Children's Services,Transport Of Ola Pupils,20-Jan,"2,736.00"
5484783,Xoom X Ltd,Education,Children's Services,Transport Of Ola Pupils,20-Jan,"1,526.50"
5484784,INSPIREDSPACES TAMESIDE LTD,Place,Growth,Cleaning Materials,04-Jan,"361,481.86"
5484784,INSPIREDSPACES TAMESIDE LTD,Place,Growth,Fees,04-Jan,"2,891.85"
5484785,CARE QUALITY COMMISSION,Adult Social Care,Adults,Professional Services,03-Jan,"12,642.00"
5484788,HOMES FOR LIFE LTD,Adult Social Care,Adults,Non-Authority Accommodation Rental,04-Jan,977.44
5484789,Foster Care Values,Childrens Services,Children's Services,Foster Carer Agency Fees,20-Jan,"4,029.85"
5484790,HUGH MASON PROPERTIES LIMITED,Adult Social Care,Adults,Non-Authority Accommodation Rental,04-Jan,"3,103.57"
5484791,GETTY IMAGES (UK) LIMITED,Policy and Communications,Governance,Printing And Stationery,20-Jan,"1,428.00"
5484792,HOMES FOR LIFE LTD,Adult Social Care,Adults,Non-Authority Accommodation Rental,04-Jan,949.13
5484793,HAMILTON PROPERTIES,Adult Social Care,Adults,Non-Authority Accommodation Rental,03-Jan,"1,842.99"
5484796,CROFT INVESTMENTS LTD,Adult Social Care,Adults,Non-Authority Accommodation Rental,24-Jan,"2,367.53"
5484798,STAMFORD PROPERTIES,Adult Social Care,Adults,Non-Authority Accommodation Rental,04-Jan,"1,190.83"
5484799,WESLEY PROPERTIES (NORTHERN) LTD,Adult Social Care,Adults,Non-Authority Accommodation Rental,24-Jan,"1,601.98"
5484801,NORTHERN PROPERTIES LTD,Adult Social Care,Adults,Non-Authority Accommodation Rental,04-Jan,"2,372.55"
5484802,Redacted Supplier,Childrens Services,Children's Services,Living With Formal Support,20-Jan,"4,627.99"
5484803,HUGH MASON PROPERTIES LIMITED,Adult Social Care,Adults,Non-Authority Accommodation Rental,04-Jan,"2,987.84"
5484804,Redacted Supplier,Childrens Services,Children's Services,Living With Formal Support,20-Jan,"3,963.66"
5484805,HOMES FOR LIFE LTD,Adult Social Care,Adults,Non-Authority Accommodation Rental,04-Jan,"1,077.99"
5484807,HOMES FOR LIFE LTD,Adult Social Care,Adults,Non-Authority Accommodation Rental,04-Jan,"1,077.99"
5484808,TAMESIDE LINK,Adult Social Care,Adults,Non-Authority Accommodation Rental,03-Jan,596.25
5484809,HOMES FOR LIFE LTD,Adult Social Care,Adults,Non-Authority Accommodation Rental,04-Jan,978.33
5484810,HUGH MASON PROPERTIES LIMITED,Adult Social Care,Adults,Non-Authority Accommodation Rental,04-Jan,"2,624.44"
5484815,BRAKE BROS LTD,Operations and Neighbourhoods,Operations and Neighbourhoods,General Materials,20-Jan,590.66
5484816,Redacted Supplier,Education,Children's Services,Professional Services,04-Jan,"1,100.00"
5484820,TAMESIDE SPORTS TRUST,(blank),(blank),Community Based Activities,03-Jan,"92,630.00"
5484821,GRANT THORNTON UK LLP,(blank),(blank),Professional Consultancy Services,09-Jan,"30,000.00"
5484822,Footsteps A Path To Change 08 Ltd,Childrens Services,Children's Services,Childrens Homes Outside Local Authority Fees,20-Jan,"18,644.95"
5484823,Ocean View LTD,(blank),(blank),Childrens Homes Outside Local Authority Fees,20-Jan,"1,757.10"
5484824,Constellia Public Ltd,Tameside Investment Partnership,Director of Place,Consultancies,20-Jan,"7,687.50"
5484825,Redacted Supplier,(blank),(blank),Professional Medical Services,20-Jan,"6,403.00"
5484826,Redacted Supplier,(blank),(blank),Professional Medical Services,20-Jan,912.00
5484827,Redacted Supplier,(blank),(blank),Professional Medical Services,20-Jan,"1,862.00"
5484828,CREATIVE SUPPORT LTD,Adult Social Care,Adults,Homecare Fees,13-Jan,"168,417.70"
5484829,CREATIVE SUPPORT LTD,Adult Social Care,Adults,Homecare Fees,13-Jan,"190,515.43"
5484837,Redacted Supplier,(blank),(blank),New Accommodation Works,31-Jan,"1,307.00"
5484850,Fanco Limited t/a 365 Medicare,Adult Social Care,Adults,Homecare Fees,04-Jan,561.58
5484856,Fanco Limited t/a 365 Medicare,Adult Social Care,Adults,Homecare Fees,04-Jan,993.02
5484869,Fanco Limited t/a 365 Medicare,Adult Social Care,Adults,Homecare Fees,04-Jan,786.16
5484897,Montrose Recruitment Limited TA Montrose Living,Adult Social Care,Adults,Homecare Fees,06-Jan,"5,040.75"
5484921,Sams Helping Hands Limited,Childrens Services,Children's Services,Homecare Fees,10-Jan,"1,348.00"
5484927,Redacted Supplier,Education,Children's Services,Independent School Fees,04-Jan,"6,333.33"
5484928,Redacted Supplier,Education,Children's Services,Independent School Fees,04-Jan,"6,333.33"
5484929,MANLEC ELECTRICAL(MANCHESTER) LTD,Housing,Director of Place,Minor Works - Building,05-Jan,"1,145.87"
5484932,MANLEC ELECTRICAL(MANCHESTER) LTD,Housing,Director of Place,Minor Works - Building,05-Jan,707.22
5484939,Timeout Childrens Homes Ltd,Education,Children's Services,Independent School Fees,02-Feb,"6,000.00"
5484940,MANLEC ELECTRICAL(MANCHESTER) LTD,Housing,Director of Place,Minor Works - Building,05-Jan,857.89
5484941,Timeout Childrens Homes Ltd,Childrens Services,Children's Services,Childrens Homes Outside Local Authority Fees,30-Jan,"21,700.00"
5484946,Timeout Childrens Homes Ltd,Childrens Services,Children's Services,Childrens Homes Outside Local Authority Fees,30-Jan,"17,692.01"
5484954,Aaban Partnership Limited,Childrens Services,Children's Services,Childrens Homes Outside Local Authority Fees,20-Jan,"58,360.00"
5484955,Aaban Partnership Limited,Childrens Services,Children's Services,Childrens Homes Outside Local Authority Fees,20-Jan,"50,748.56"
5484956,Aaban Partnership Limited,Childrens Services,Children's Services,Childrens Homes Outside Local Authority Fees,17-Feb,"8,013.10"
5484957,STAMFORD CARS UK LTD,Education,Children's Services,Transport Of Pupils,11-Jan,"1,500.00"
5484961,STAMFORD CARS UK LTD,Education,Children's Services,Transport Of Post 16 Pupils,11-Jan,"1,260.00"
5484963,STAMFORD CARS UK LTD,Education,Children's Services,Transport Of Pupils,11-Jan,"1,620.00"
5484965,YOUNG PEOPLE FIRST LIMITED,Childrens Services,Children's Services,Living With Formal Support,20-Jan,"2,100.00"
5484966,STAMFORD CARS UK LTD,Education,Children's Services,Transport Of Post 16 Pupils,11-Jan,"1,260.00"
5484967,YOUNG PEOPLE FIRST LIMITED,(blank),(blank),Living With Formal Support,20-Jan,900.00
5484968,CARE NEEDS LTD,Adult Social Care,Adults,Homecare Fees,20-Jan,"5,475.00"
5484971,STAMFORD CARS UK LTD,Education,Children's Services,Transport Of Post 16 Pupils,11-Jan,960.00
5484972,The Market Co,Operations and Neighbourhoods,Operations and Neighbourhoods,Professional Entertainment Services,20-Jan,"2,100.00"
5484973,STAMFORD CARS UK LTD,Education,Children's Services,Transport Of Ola Pupils,11-Jan,"1,500.00"
5484975,The Market Co,Operations and Neighbourhoods,Operations and Neighbourhoods,Professional Entertainment Services,20-Jan,"1,900.00"
5484976,STAMFORD CARS UK LTD,Education,Children's Services,Transport Of Ola Pupils,11-Jan,"1,690.00"
5484977,STAMFORD CARS UK LTD,Education,Children's Services,Transport Of Post 16 Pupils,11-Jan,780.00
5484978,STAMFORD CARS UK LTD,Operations and Neighbourhoods,Operations and Neighbourhoods,Transport Of Pupils,11-Jan,525.00
5484979,STAMFORD CARS UK LTD,Education,Children's Services,Transport Of Pupils,11-Jan,"1,400.00"
5484982,STAMFORD CARS UK LTD,Operations and Neighbourhoods,Operations and Neighbourhoods,Hired Transport,10-Jan,"1,200.00"
5484984,STAMFORD CARS UK LTD,Education,Children's Services,Transport Of Pupils,11-Jan,"1,440.00"
5484985,STAMFORD CARS UK LTD,Education,Children's Services,Transport Of Pupils,11-Jan,780.00
5484987,STAMFORD CARS UK LTD,Operations and Neighbourhoods,Operations and Neighbourhoods,Hired Transport,10-Jan,900.00
5484988,STAMFORD CARS UK LTD,Education,Children's Services,Transport Of Ola Pupils,11-Jan,"1,320.00"
5484992,STAMFORD CARS UK LTD,Education,Children's Services,Transport Of Pupils,11-Jan,"1,440.00"
5484994,STAMFORD CARS UK LTD,Education,Children's Services,Transport Of Pupils,11-Jan,"1,260.00"
5484995,STAMFORD CARS UK LTD,Operations and Neighbourhoods,Operations and Neighbourhoods,Hired Transport,11-Jan,960.00
5484997,STAMFORD CARS UK LTD,Education,Children's Services,Transport Of Pupils,11-Jan,"1,440.00"
5484998,STAMFORD CARS UK LTD,Education,Children's Services,Transport Of Ola Pupils,11-Jan,"1,980.00"
5485000,MHR International UK Limited,People and Workforce Development,Governance,Labour Costs IT Services,20-Jan,"24,497.50"
5485001,HEXAGON CARE SERVICES LTD,Childrens Services,Children's Services,Childrens Homes Outside Local Authority Fees,20-Jan,"11,325.54"
5485002,HEXAGON CARE SERVICES LTD,Childrens Services,Children's Services,Childrens Homes Outside Local Authority Fees,20-Jan,"19,862.14"
5485004,PETERS LIMITED (PETERS BOOKSELLING SERVICES),Operations and Neighbourhoods,Operations and Neighbourhoods,Purchase Books,20-Jan,"1,627.50"
5485005,STAMFORD CARS UK LTD,Education,Children's Services,Transport Of Ola Pupils,11-Jan,"1,560.00"
5485006,Inicio Group Ltd,Childrens Services,Children's Services,Living With Formal Support,31-Jan,"3,520.70"
5485008,MHR International UK Limited,People and Workforce Development,Governance,Labour Costs IT Services,20-Jan,"8,862.25"
5485009,STAMFORD CARS UK LTD,Education,Children's Services,Transport Of Ola Pupils,11-Jan,"1,440.00"
5485010,Viva Minibus LTD,Childrens Services,Children's Services,"Activity (Materials, Trips)",04-Jan,"1,300.00"
5485013,Upwards Care Solutions,(blank),(blank),Living With Formal Support,24-Jan,"4,658.86"
5485013,Upwards Care Solutions,(blank),(blank),Semi independent - Weekly Living Allowances,24-Jan,270.36
5485014,STAMFORD CARS UK LTD,Education,Children's Services,Transport Of Ola Pupils,11-Jan,"1,500.00"
5485015,STAMFORD CARS UK LTD,Education,Children's Services,Transport Of Ola Pupils,10-Jan,"1,200.00"
5485016,Inicio Group Ltd,Childrens Services,Children's Services,Living With Formal Support,31-Jan,"4,406.43"
5485017,CARE NEEDS LTD,Adult Social Care,Adults,Homecare Fees,20-Jan,"5,362.50"
5485018,CARE NEEDS LTD,Adult Social Care,Adults,Homecare Fees,20-Jan,"4,800.00"
5485019,STAMFORD CARS UK LTD,Education,Children's Services,Transport Of Pupils,11-Jan,"1,440.00"
5485022,STAMFORD CARS UK LTD,Education,Children's Services,Transport Of Ola Pupils,11-Jan,"1,500.00"
5485023,PARALLEL PARENTS,Childrens Services,Children's Services,Foster Carer Agency Fees,31-Jan,"3,419.92"
5485024,STAMFORD CARS UK LTD,Education,Children's Services,Transport Of Pupils,11-Jan,"1,500.00"
5485025,PARALLEL PARENTS,Childrens Services,Children's Services,Foster Carer Agency Fees,31-Jan,"4,030.00"
5485026,CARE NEEDS LTD,Adult Social Care,Adults,Homecare Fees,20-Jan,"5,062.50"
5485027,Inicio Group Ltd,(blank),(blank),Living With Formal Support,31-Jan,"5,292.13"
5485028,PARALLEL PARENTS,Childrens Services,Children's Services,Foster Carer Agency Fees,31-Jan,"3,615.22"
5485029,STAMFORD CARS UK LTD,Education,Children's Services,Transport Of Ola Pupils,11-Jan,"1,880.00"
5485030,PARALLEL PARENTS,Childrens Services,Children's Services,Foster Carer Agency Fees,31-Jan,"3,807.42"
5485031,PARALLEL PARENTS,Childrens Services,Children's Services,Foster Carer Agency Fees,31-Jan,"3,807.42"
5485032,STAMFORD CARS UK LTD,Education,Children's Services,Transport Of Pupils,11-Jan,660.00
5485033,PARALLEL PARENTS,Childrens Services,Children's Services,Foster Carer Agency Fees,31-Jan,"3,145.57"
5485034,STAMFORD CARS UK LTD,Education,Children's Services,Transport Of Ola Pupils,11-Jan,"1,820.00"
5485035,PARALLEL PARENTS,Childrens Services,Children's Services,Foster Carer Agency Fees,31-Jan,"3,431.70"
5485038,STAMFORD CARS UK LTD,Education,Children's Services,Transport Of Pupils,11-Jan,960.00
5485039,Upwards Care Solutions,(blank),(blank),Living With Formal Support,27-Jan,"3,757.14"
5485040,PARALLEL PARENTS,Childrens Services,Children's Services,Foster Carer Agency Fees,31-Jan,"4,339.69"
5485041,STAMFORD CARS UK LTD,Education,Children's Services,Transport Of Ola Pupils,11-Jan,550.00
5485042,PARALLEL PARENTS,Childrens Services,Children's Services,Foster Carer Agency Fees,31-Jan,"3,039.55"
5485043,PARALLEL PARENTS,Childrens Services,Children's Services,Foster Carer Agency Fees,31-Jan,"4,030.00"
5485044,STAMFORD CARS UK LTD,Education,Children's Services,Transport Of Pupils,11-Jan,"1,080.00"
5485045,STAMFORD CARS UK LTD,Education,Children's Services,Transport Of Ola Pupils,11-Jan,780.00
5485046,PARALLEL PARENTS,Childrens Services,Children's Services,Foster Carer Agency Fees,31-Jan,"3,419.92"
5485047,PARALLEL PARENTS,Childrens Services,Children's Services,Foster Carer Agency Fees,31-Jan,"2,883.93"
5485048,PARALLEL PARENTS,Childrens Services,Children's Services,Foster Carer Agency Fees,31-Jan,"4,030.00"
5485049,STAMFORD CARS UK LTD,Education,Children's Services,Transport Of Pupils,11-Jan,"1,100.00"
5485050,PARALLEL PARENTS,Childrens Services,Children's Services,Foster Carer Agency Fees,31-Jan,"3,431.70"
5485051,STAMFORD CARS UK LTD,Education,Children's Services,Transport Of Pupils,11-Jan,"1,210.00"
5485053,PARALLEL PARENTS,Childrens Services,Children's Services,Foster Carer Agency Fees,31-Jan,"3,414.34"
5485054,STAMFORD CARS UK LTD,Education,Children's Services,Transport Of Ola Pupils,11-Jan,"1,500.00"
5485055,Upwards Care Solutions,(blank),(blank),Living With Formal Support,27-Jan,"4,658.86"
5485056,STAMFORD CARS UK LTD,Education,Children's Services,Transport Of Pupils,11-Jan,660.00
5485057,STAMFORD CARS UK LTD,Education,Children's Services,Transport Of Ola Pupils,11-Jan,"1,620.00"
5485061,STAMFORD CARS UK LTD,Education,Children's Services,Transport Of Ola Pupils,11-Jan,"1,560.00"
5485062,CITY CARE SOLUTIONS LTD,Adult Social Care,Adults,Homecare Fees,25-Jan,"2,322.63"
5485063,STAMFORD CARS UK LTD,Education,Children's Services,Transport Of Ola Pupils,11-Jan,"1,320.00"
5485064,STAMFORD CARS UK LTD,Education,Children's Services,Transport Of Ola Pupils,11-Jan,"1,440.00"
5485066,STAMFORD CARS UK LTD,Education,Children's Services,Transport Of Ola Pupils,11-Jan,"1,560.00"
5485068,STAMFORD CARS UK LTD,Education,Children's Services,Transport Of Pupils,11-Jan,"1,440.00"
5485069,STAMFORD CARS UK LTD,Operations and Neighbourhoods,Operations and Neighbourhoods,Hired Transport,10-Jan,960.00
5485070,The Mount Guest House Limited,(blank),(blank),Chief/Ground Rent,26-Jan,"5,930.00"
5485071,STAMFORD CARS UK LTD,Education,Children's Services,Transport Of Pupils,11-Jan,"1,440.00"
5485072,STAMFORD CARS UK LTD,Education,Children's Services,Transport Of Pupils,11-Jan,"1,440.00"
5485073,STAMFORD CARS UK LTD,Operations and Neighbourhoods,Operations and Neighbourhoods,Hired Transport,10-Jan,770.00
5485074,STAMFORD CARS UK LTD,Education,Children's Services,Transport Of Post 16 Pupils,11-Jan,600.00
5485075,Upwards Care Solutions,(blank),(blank),Living With Formal Support,27-Jan,"4,658.86"
5485076,STAMFORD CARS UK LTD,Operations and Neighbourhoods,Operations and Neighbourhoods,Hired Transport,10-Jan,910.00
5485077,STAMFORD CARS UK LTD,Education,Children's Services,Transport Of Post 16 Pupils,10-Jan,"1,035.00"
5485079,STAMFORD CARS UK LTD,Operations and Neighbourhoods,Operations and Neighbourhoods,Hired Transport,10-Jan,"1,350.00"
5485081,Upwards Care Solutions,(blank),(blank),Living With Formal Support,27-Jan,"4,508.57"
5485082,STAMFORD CARS UK LTD,Operations and Neighbourhoods,Operations and Neighbourhoods,Hired Transport,10-Jan,825.00
5485084,STAMFORD CARS UK LTD,Operations and Neighbourhoods,Operations and Neighbourhoods,Hired Transport,11-Jan,800.00
5485087,Upwards Care Solutions,(blank),(blank),Living With Formal Support,27-Jan,"4,658.86"
5485090,STAMFORD CARS UK LTD,Operations and Neighbourhoods,Operations and Neighbourhoods,Hired Transport,10-Jan,765.00
5485094,Upwards Care Solutions,Childrens Services,Children's Services,Living With Formal Support,27-Jan,901.77
5485094,Upwards Care Solutions,(blank),(blank),Living With Formal Support,27-Jan,"1,502.80"
5485095,TAMESIDE SPORTS TRUST,Population Health,Population Health,Leisure Services Contract Payment,04-Jan,"129,500.00"
5485096,STAMFORD CARS UK LTD,Operations and Neighbourhoods,Operations and Neighbourhoods,Hired Transport,11-Jan,"1,052.50"
5485116,Reed Talent Solutions Ltd,Childrens Services,Children's Services,Professional Services,24-Feb,"1,925.00"
5485118,Foster Careline Ltd,Childrens Services,Children's Services,Foster Carer Agency Fees,30-Jan,"3,292.20"
5485119,Foster Careline Ltd,Childrens Services,Children's Services,Foster Carer Agency Fees,30-Jan,"3,478.38"
5485120,Foster Careline Ltd,Childrens Services,Children's Services,Foster Carer Agency Fees,30-Jan,"3,786.03"
5485121,Foster Careline Ltd,Childrens Services,Children's Services,Foster Carer Agency Fees,30-Jan,"3,729.39"
5485125,MJ Transport Services,Operations and Neighbourhoods,Operations and Neighbourhoods,Furniture Removal Fees,09-Jan,600.00
5485126,SAAIL,Childrens Services,Children's Services,Living With Formal Support,27-Jan,"4,579.01"
5485127,Valour Private Ltd t/a Valour Healthcare Services,Adult Social Care,Adults,Homecare Fees,27-Jan,"4,543.31"
5485128,Northern Community Pathways Limited,Adult Social Care,Adults,Homecare Fees,30-Jan,"4,630.80"
5485129,FRESH START INDEPENDENCE PROJECT LTD,Childrens Services,Children's Services,Living With Formal Support,30-Jan,"5,379.60"
5485129,FRESH START INDEPENDENCE PROJECT LTD,(blank),(blank),Semi independent - Weekly Living Allowances,30-Jan,61.05
5485131,THE YABOO COMPANY LIMITED,Operations and Neighbourhoods,Operations and Neighbourhoods,Computer Software,27-Jan,625.00
5485132,Northern Community Pathways Limited,Adult Social Care,Adults,Homecare Fees,30-Jan,"2,196.00"
5485133,MEDACS HEALTHCARE,Adult Social Care,Adults,Homecare Fees,18-Jan,"28,631.78"
5485138,Redacted Supplier,Education,Children's Services,Independent School Fees,27-Jan,"8,515.67"
5485139,Redacted Supplier,Education,Children's Services,Independent School Fees,27-Jan,"17,031.33"
5485141,APOLLO HOME HEALTHCARE LTD,Childrens Services,Children's Services,Homecare Fees,10-Jan,507.12
5485142,LONICERA RESOURCES LTD,Adult Social Care,Adults,Professional Services,27-Jan,"12,489.75"
5485144,LONICERA RESOURCES LTD,Adult Social Care,Adults,Professional Services,27-Jan,"1,243.00"
5485145,Northern Community Pathways Limited,(blank),(blank),Living With Formal Support,30-Jan,"3,244.00"
5485145,Northern Community Pathways Limited,(blank),(blank),Semi independent - Weekly Living Allowances,30-Jan,244.20
5485148,Northern Community Pathways Limited,(blank),(blank),Living With Formal Support,30-Jan,"4,088.00"
5485148,Northern Community Pathways Limited,(blank),(blank),Semi independent - Weekly Living Allowances,30-Jan,244.20
5485150,PERSON CENTRED CARE SERVICES LIMITED,Adult Social Care,Adults,Homecare Fees,11-Jan,"1,418.40"
5485151,Sandcastle Care LTD,Childrens Services,Children's Services,Childrens Homes Outside Local Authority Fees,01-Feb,"26,549.29"
5485152,Redacted Supplier,Education,Children's Services,Transport Of Ola Pupils,12-Jan,"1,560.00"
5485153,Redacted Supplier,Operations and Neighbourhoods,Operations and Neighbourhoods,Hired Transport,12-Jan,540.00
5485154,Sandcastle Care LTD,Childrens Services,Children's Services,Childrens Homes Outside Local Authority Fees,01-Feb,"26,549.29"
5485155,Northern Community Pathways Limited,Childrens Services,Children's Services,Living With Formal Support,30-Jan,"2,404.00"
5485157,Redacted Supplier,Education,Children's Services,Transport Of Pupils,12-Jan,"1,560.00"
5485159,Northern Community Pathways Limited,(blank),(blank),Living With Formal Support,30-Jan,"2,824.00"
5485159,Northern Community Pathways Limited,(blank),(blank),Semi independent - Weekly Living Allowances,30-Jan,244.20
5485160,Redacted Supplier,Education,Children's Services,Transport Of Pupils,12-Jan,"1,560.00"
5485162,Northern Community Pathways Limited,Childrens Services,Children's Services,Living With Formal Support,30-Jan,"2,034.80"
5485163,Safe Hands Care & Support Services,(blank),(blank),Living With Formal Support,27-Jan,"4,590.50"
5485164,PERSON CENTRED CARE SERVICES LIMITED,Adult Social Care,Adults,Homecare Fees,11-Jan,"1,449.43"
5485165,YOUNG PEOPLE FIRST LIMITED,Childrens Services,Children's Services,Living With Formal Support,27-Jan,"2,100.00"
5485166,FENTONS MINIBUSES LTD,Education,Children's Services,Transport Of Pupils,12-Jan,"1,344.00"
5485167,Zeno Ltd,Adult Social Care,Adults,Homecare Fees,01-Feb,"10,800.26"
5485168,ROYALE MINICOACHES,Education,Children's Services,Transport Of Pupils,12-Jan,"1,380.00"
5485169,SWIIS FOSTER CARE LTD,Childrens Services,Children's Services,Foster Carer Agency Fees,27-Jan,"1,694.98"
5485171,Kibble Education and Care Centre,Childrens Services,Children's Services,Childrens Homes Outside Local Authority Fees,27-Jan,"28,551.00"
5485173,Identity Care Housing Ltd,Adult Social Care,Adults,Residential Home Long Stay Fees,27-Jan,"19,317.34"
5485174,Ocean View LTD,Childrens Services,Children's Services,Childrens Homes Outside Local Authority Fees,01-Feb,"16,400.00"
5485175,Constellia Public Ltd,Place,Growth,Professional Services,27-Jan,"10,777.99"
5485176,PAYPARTNERS LTD (MONTHLY),Adult Social Care,Adults,Sub-contractor Services,27-Jan,"6,416.67"
5485177,PAYPARTNERS LTD (MONTHLY),Childrens Services,Children's Services,Direct Payments,27-Jan,614.78
5485178,Redacted Supplier,Adult Social Care,Adults,Professional Medical Services,27-Jan,"1,093.10"
5485179,SAPPHIRE PARTNERSHIP,Adult Social Care,Adults,Day Care Fees,08-Feb,520.00
5485181,Fusion,Childrens Services,Children's Services,Community Based Activities,06-Jan,510.00
5485183,ALPHA BIOLABS,Childrens Services,Children's Services,Professional Medical Services,27-Jan,"1,353.90"
5485185,LORIMER FOSTERING SERVICES,Childrens Services,Children's Services,Foster Carer Agency Fees,01-Feb,"3,658.66"
5485186,Redacted Supplier,Adult Social Care,Adults,Professional Medical Services,10-Feb,"8,495.35"
5485187,Redacted Supplier,Adult Social Care,Adults,Professional Medical Services,27-Jan,"4,384.20"
5485188,FAMILY CARE FOSTERING LTD,Childrens Services,Children's Services,Foster Carer Agency Fees,02-Feb,"3,862.07"
5485189,PERSON CENTRED CARE SERVICES LIMITED,Adult Social Care,Adults,Homecare Fees,13-Jan,"6,943.03"
5485190,Redacted Supplier,Education,Children's Services,Professional Services,27-Jan,"1,650.00"
5485191,FENTONS MINIBUSES LTD,Education,Children's Services,Transport Of Ola Pupils,12-Jan,"1,710.00"
5485193,National Youth Advocacy Service,Childrens Services,Children's Services,Professional Services,27-Jan,"4,166.33"
5485194,Redacted Supplier,Education,Children's Services,Professional Services,30-Jan,"2,200.00"
5485197,CITY CARE SOLUTIONS LTD,Adult Social Care,Adults,Homecare Fees,31-Jan,"2,322.63"
5485198,DOMAIN CARE NORTH WEST LTD,Adult Social Care,Adults,Day Care Fees,27-Jan,"1,335.32"
5485202,Care Today (Childrens Service) Limited,Childrens Services,Children's Services,Childrens Homes Outside Local Authority Fees,31-Jan,"18,724.62"
5485203,XMA LIMITED,Digital Tameside,Finance & IT,IT Equipment,23-Jan,"12,482.00"
5485205,CYCLESCHEME LTD,(blank),(blank),Debits,06-Jan,"2,916.67"
5485216,Go To Investments Ltd t/a HALA GUEST HOUSE,(blank),(blank),Other Accommodation Related Costs,13-Feb,"18,235.00"
5485217,Go To Investments Ltd t/a HALA GUEST HOUSE,(blank),(blank),Other Accommodation Related Costs,13-Feb,"6,577.00"
5485219,FOSTER CARE ASSOCIATES LTD (FCA),Childrens Services,Children's Services,Foster Carer Agency Fees,04-Jan,"1,750.06"
5485220,FOSTER CARE ASSOCIATES LTD (FCA),Childrens Services,Children's Services,Foster Carer Agency Fees,04-Jan,"3,788.70"
5485224,QUEST MEDIA NETWORK LTD,Place,Growth,Statutory Advertising,06-Jan,540.00
5485225,CFS CARE LIMITED,(blank),(blank),Living With Formal Support,02-Feb,"5,686.29"
5485225,CFS CARE LIMITED,(blank),(blank),Semi independent - Weekly Living Allowances,02-Feb,244.20
5485231,CFS CARE LIMITED,(blank),(blank),Living With Formal Support,02-Feb,"5,686.29"
5485231,CFS CARE LIMITED,(blank),(blank),Semi independent - Weekly Living Allowances,02-Feb,244.20
5485232,NSL LIMITED,Operations and Neighbourhoods,Operations and Neighbourhoods,Fees,06-Jan,924.85
5485236,NSL LIMITED,Operations and Neighbourhoods,Operations and Neighbourhoods,NSL Fees,06-Jan,"46,678.55"
5485238,CFS CARE LIMITED,(blank),(blank),Living With Formal Support,02-Feb,"5,686.29"
5485242,CFS CARE LIMITED,Childrens Services,Children's Services,Living With Formal Support,02-Feb,"4,218.86"
5485247,CFS CARE LIMITED,(blank),(blank),Living With Formal Support,02-Feb,"5,092.86"
5485247,CFS CARE LIMITED,(blank),(blank),Semi independent - Weekly Living Allowances,02-Feb,244.20
5485251,CFS CARE LIMITED,(blank),(blank),Living With Formal Support,02-Feb,"5,686.29"
5485252,Sams Helping Hands Limited,Childrens Services,Children's Services,Homecare Fees,09-Jan,"1,156.00"
5485254,CFS CARE LIMITED,(blank),(blank),Living With Formal Support,02-Feb,"5,314.29"
5485254,CFS CARE LIMITED,(blank),(blank),Semi independent - Weekly Living Allowances,02-Feb,244.20
5485257,CFS CARE LIMITED,(blank),(blank),Living With Formal Support,02-Feb,"5,092.86"
5485257,CFS CARE LIMITED,(blank),(blank),Semi independent - Weekly Living Allowances,02-Feb,244.20
5485258,CFS CARE LIMITED,(blank),(blank),Living With Formal Support,02-Feb,"5,686.29"
5485270,TPR Care Services Ltd,(blank),(blank),Living With Formal Support,05-Jan,"1,244.20"
5485276,TPR Care Services Ltd,(blank),(blank),Living With Formal Support,05-Jan,"1,544.20"
5485281,TPR Care Services Ltd,(blank),(blank),Living With Formal Support,05-Jan,"1,544.20"
5485282,TPR Care Services Ltd,(blank),(blank),Living With Formal Support,05-Jan,"1,544.20"
5485287,Home Instead Senior Care,Adult Social Care,Adults,Homecare Fees,03-Feb,"1,831.60"
5485288,Furniture Resource Centre Ltd,Operations and Neighbourhoods,Operations and Neighbourhoods,"Fixtures, Fittings & Furniture Purchase",02-Feb,"1,223.64"
5485289,TPR Care Services Ltd,(blank),(blank),Living With Formal Support,05-Jan,"1,544.20"
5485290,Home Instead Senior Care,Adult Social Care,Adults,Homecare Fees,02-Feb,"1,441.80"
5485292,Redacted Supplier,Childrens Services,Children's Services,Childrens Homes Outside Local Authority Fees,02-Feb,"14,503.04"
5485293,Furniture Resource Centre Ltd,Operations and Neighbourhoods,Operations and Neighbourhoods,"Fixtures, Fittings & Furniture Purchase",02-Feb,"1,208.62"
5485295,Redacted Supplier,Childrens Services,Children's Services,Childrens Homes Outside Local Authority Fees,02-Feb,"9,123.09"
5485298,Furniture Resource Centre Ltd,Operations and Neighbourhoods,Operations and Neighbourhoods,"Fixtures, Fittings & Furniture Purchase",02-Feb,"1,112.58"
5485299,Redacted Supplier,Childrens Services,Children's Services,Childrens Homes Outside Local Authority Fees,02-Feb,"11,713.66"
5485301,Community Integrated Care,Adult Social Care,Adults,Homecare Fees,24-Jan,687.70
5485302,Furniture Resource Centre Ltd,Operations and Neighbourhoods,Operations and Neighbourhoods,"Fixtures, Fittings & Furniture Purchase",02-Feb,918.38
5485303,Community Integrated Care,Adult Social Care,Adults,Homecare Fees,24-Jan,687.70
5485305,Redacted Supplier,Childrens Services,Children's Services,Childrens Homes Outside Local Authority Fees,02-Feb,"13,148.42"
5485306,TPR Care Services Ltd,(blank),(blank),Living With Formal Support,05-Jan,"1,544.20"
5485307,Community Integrated Care,Adult Social Care,Adults,Homecare Fees,24-Jan,550.16
5485309,Olive Branch Fostering LTD,Childrens Services,Children's Services,Foster Carer Agency Fees,02-Feb,"3,782.26"
5485312,Olive Branch Fostering LTD,Childrens Services,Children's Services,Foster Carer Agency Fees,02-Feb,"3,981.02"
5485313,Redacted Supplier,Childrens Services,Children's Services,Childrens Homes Outside Local Authority Fees,02-Feb,"14,708.57"
5485315,CAPSTONE FOSTER CARE,Childrens Services,Children's Services,Foster Carer Agency Fees,02-Feb,"4,072.78"
5485317,SEASHELL TRUST,Childrens Services,Children's Services,Residential Home Short Stay Fees,02-Feb,"2,805.00"
5485320,CAPSTONE FOSTER CARE,Childrens Services,Children's Services,Foster Carer Agency Fees,02-Feb,"4,177.56"
5485322,CAPSTONE FOSTER CARE,Childrens Services,Children's Services,Foster Carer Agency Fees,02-Feb,"3,595.03"
5485324,CAPSTONE FOSTER CARE,Childrens Services,Children's Services,Foster Carer Agency Fees,02-Feb,"3,631.34"
5485326,CAPSTONE FOSTER CARE,Childrens Services,Children's Services,Foster Carer Agency Fees,02-Feb,"3,631.34"
5485327,CAPSTONE FOSTER CARE,Childrens Services,Children's Services,Foster Carer Agency Fees,02-Feb,"6,773.59"
5485328,CAPSTONE FOSTER CARE,Childrens Services,Children's Services,Foster Carer Agency Fees,02-Feb,"3,631.34"
5485329,CAPSTONE FOSTER CARE,Childrens Services,Children's Services,Foster Carer Agency Fees,02-Feb,"3,914.51"
5485330,CAPSTONE FOSTER CARE,Childrens Services,Children's Services,Foster Carer Agency Fees,02-Feb,"6,773.59"
5485332,Redacted Supplier,Childrens Services,Children's Services,Childrens Homes Outside Local Authority Fees,02-Feb,"14,392.99"
5485334,Redacted Supplier,Childrens Services,Children's Services,Childrens Homes Outside Local Authority Fees,02-Feb,"18,600.00"
5485335,TAMESIDE SELF STORAGE,Contingency,Contingency,Room Hire,13-Jan,"2,058.83"
5485336,STEPPING STONES CHILDRENS HOMES LTD,Childrens Services,Children's Services,Childrens Homes Outside Local Authority Fees,13-Jan,"30,000.00"
5485337,Redacted Supplier,Childrens Services,Children's Services,Childrens Homes Outside Local Authority Fees,02-Feb,"14,392.99"
5485338,Redacted Supplier,Education,Children's Services,Non-Maintained School Fees,02-Feb,"21,289.24"
5485339,STEPPING STONES CHILDRENS HOMES LTD,Childrens Services,Children's Services,Childrens Homes Outside Local Authority Fees,13-Jan,"26,394.00"
5485340,STEPPING STONES CHILDRENS HOMES LTD,Childrens Services,Children's Services,Childrens Homes Outside Local Authority Fees,13-Jan,"42,000.00"
5485342,Redacted Supplier,Childrens Services,Children's Services,Foster Carer Agency Fees,03-Feb,"4,161.75"
5485344,CREATIVE SUPPORT LTD,Adult Social Care,Adults,Homecare Fees,02-Feb,"11,248.51"
5485345,ASHTON PIONEER HOMES,Operations and Neighbourhoods,Operations and Neighbourhoods,Professional Services,13-Jan,"1,783.57"
5485346,CREATIVE SUPPORT LTD,Adult Social Care,Adults,Homecare Fees,02-Feb,"11,624.83"
5485347,STEPPING STONES CHILDRENS HOMES LTD,Childrens Services,Children's Services,Childrens Homes Outside Local Authority Fees,13-Jan,"10,683.28"
5485348,Redacted Supplier,Childrens Services,Children's Services,Foster Carer Agency Fees,02-Feb,"4,036.82"
5485349,RedQuadrant Ltd,Hosted Services,Hosted Services,Professional Consultancy Services,02-Feb,"1,562.50"
5485350,Redacted Supplier,Childrens Services,Children's Services,Foster Carer Agency Fees,02-Feb,"4,036.82"
5485351,STEPPING STONES CHILDRENS HOMES LTD,Childrens Services,Children's Services,Childrens Homes Outside Local Authority Fees,13-Jan,"32,142.85"
5485353,Community Integrated Care,Adult Social Care,Adults,Homecare Fees,24-Jan,"117,906.80"
5485354,Community Integrated Care,Adult Social Care,Adults,Homecare Fees,24-Jan,"128,486.95"
5485355,AMARA CARE LTD,Adult Social Care,Adults,Homecare Fees,02-Feb,"11,141.40"
5485358,BAKERS SOLICITORS,Childrens Services,Children's Services,Professional Services,02-Feb,500.00
5485361,Excel Fostering Limited,Childrens Services,Children's Services,Foster Carer Agency Fees,02-Feb,"6,385.80"
5485362,INSPIRE COMMUNITY SERVICES LIMITED,(blank),(blank),Living With Formal Support,02-Feb,"4,426.80"
5485362,INSPIRE COMMUNITY SERVICES LIMITED,(blank),(blank),Semi independent - Weekly Living Allowances,02-Feb,270.32
5485363,Excel Fostering Limited,Childrens Services,Children's Services,Foster Carer Agency Fees,02-Feb,"6,385.80"
5485364,INSPIRE COMMUNITY SERVICES LIMITED,(blank),(blank),Living With Formal Support,02-Feb,"4,426.80"
5485364,INSPIRE COMMUNITY SERVICES LIMITED,(blank),(blank),Semi independent - Weekly Living Allowances,02-Feb,270.32
5485365,Project Inc,Education,Children's Services,Post 16 FE College Fees,05-Jan,"5,333.33"
5485366,K Cotterill Transport Limited,Place,Growth,Furniture Removal Fees,02-Feb,720.00
5485367,Excel Fostering Limited,Childrens Services,Children's Services,Foster Carer Agency Fees,02-Feb,"6,385.80"
5485369,Redacted Supplier,Education,Children's Services,Independent School Fees,05-Jan,"1,976.25"
5485371,Peterborough City Council,Childrens Services,Children's Services,Childrens Homes Outside Local Authority Fees,02-Feb,"54,500.00"
5485375,Access UK Ltd,Adult Social Care,Adults,Computer Software Maintenance Costs,24-Jan,"3,041.36"
5485377,SMT Projects,Place,Growth,Professional Consultancy Services,05-Jan,"1,300.00"
5485378,We Support LTD,Adult Social Care,Adults,Homecare Fees,02-Feb,"5,497.80"
5485381,Foundations Plus,Adult Social Care,Adults,Residential Home Long Stay Fees,02-Feb,"4,985.00"
5485382,Inspired Spaces (ProjectCo1) LTD,Asset & Investment Partnership Management,Growth,Utilities,13-Jan,"85,131.00"
5485383,INSPIREDSPACES TAMESIDE (PROJECTCO2) LTD,Asset & Investment Partnership Management,Growth,PFI FM Fees and Insurance Costs,13-Jan,"22,541.27"
5485388,INSPIREDSPACES TAMESIDE (PROJECTCO2) LTD,Asset & Investment Partnership Management,Growth,PFI FM Fees and Insurance Costs,13-Jan,"19,621.40"
5485391,INSPIREDSPACES TAMESIDE (PROJECTCO2) LTD,Asset & Investment Partnership Management,Growth,PFI FM Fees and Insurance Costs,13-Jan,"2,940.00"
5485392,INSPIREDSPACES TAMESIDE (PROJECTCO2) LTD,Asset & Investment Partnership Management,Growth,PFI FM Fees and Insurance Costs,13-Jan,"4,522.00"
5485393,INSPIREDSPACES TAMESIDE (PROJECTCO2) LTD,Asset & Investment Partnership Management,Growth,PFI FM Fees and Insurance Costs,13-Jan,670.13
5485398,GREENSCAPE,Adult Social Care,Adults,Professional Services,13-Jan,"2,967.00"
5485401,OCTAGON CARE LTD,Childrens Services,Children's Services,Childrens Homes Outside Local Authority Fees,02-Feb,"23,028.57"
5485402,Redacted Supplier,Childrens Services,Children's Services,Childrens Homes Outside Local Authority Fees,02-Feb,"18,267.99"
5485404,MERSEY MEDICAL SERVICES LTD,Operations and Neighbourhoods,Operations and Neighbourhoods,Professional Entertainment Services,02-Feb,"1,800.00"
5485405,Debigno Ltd (Trading as Pathway Analytics),Hosted Services,Hosted Services,Professional Services,02-Feb,594.00
5485407,FRESH START INDEPENDENCE PROJECT LTD,Childrens Services,Children's Services,Living With Formal Support,02-Feb,"5,379.60"
5485407,FRESH START INDEPENDENCE PROJECT LTD,(blank),(blank),Semi independent - Weekly Living Allowances,02-Feb,61.05
5485409,RHOMBUS CARE GROUP LIMITED,Adult Social Care,Adults,Homecare Fees,02-Feb,"35,756.95"
5485410,MANCHESTER CITY COUNCIL,Childrens Services,Children's Services,Foster Carer Agency Fees,17-Jan,"2,121.29"
5485413,STOCKPORT MBC,Education,Children's Services,Other Local Authorities Fees,05-Jan,"43,668.63"
5485415,GIA-MAC Architects Limited,(blank),(blank),Fees,02-Feb,500.00
5485417,Community Integrated Care,Adult Social Care,Adults,Homecare Fees,02-Feb,"21,640.09"
5485419,Redacted Supplier,Corporate Costs,Corporate Costs,Professional Services,02-Feb,"2,548.00"
5485420,Redacted Supplier,Education,Children's Services,Professional Services,13-Jan,"2,800.00"
5485421,PROGRESSIVE CARE LTD,Childrens Services,Children's Services,Mother and Baby Assessment Placements,02-Feb,"15,832.14"
5485422,XMA LIMITED,Digital Tameside,Finance & IT,IT Equipment,02-Feb,"56,193.00"
5485424,The Mount Guest House Limited,(blank),(blank),Chief/Ground Rent,02-Feb,"5,985.00"
5485426,SOFTCAT LIMITED,GMPF (FX),GMPF (FX),Computer Software,19-Jan,863.07
5485428,CITY LIFT SERVICES (NW) LTD,Adult Social Care,Adults,General Equipment Repair & Maintenance,02-Feb,"1,300.00"
5485429,Care 4 Every Child Ltd,Childrens Services,Children's Services,Childrens Homes Outside Local Authority Fees,02-Feb,"25,118.86"
5485432,Hyde Accessible Transport Limited,Operations and Neighbourhoods,Operations and Neighbourhoods,Hired Transport,10-Jan,"1,500.00"
5485433,Hyde Accessible Transport Limited,Operations and Neighbourhoods,Operations and Neighbourhoods,Hired Transport,11-Jan,"2,500.00"
5485434,Hyde Accessible Transport Limited,Operations and Neighbourhoods,Operations and Neighbourhoods,Hired Transport,11-Jan,"1,080.00"
5485435,Hyde Accessible Transport Limited,Operations and Neighbourhoods,Operations and Neighbourhoods,Hired Transport,10-Jan,"1,800.00"
5485436,Hyde Accessible Transport Limited,Operations and Neighbourhoods,Operations and Neighbourhoods,Hired Transport,10-Jan,560.00
5485437,Hyde Accessible Transport Limited,Operations and Neighbourhoods,Operations and Neighbourhoods,Hired Transport,10-Jan,"1,230.00"
5485438,Hyde Accessible Transport Limited,Operations and Neighbourhoods,Operations and Neighbourhoods,Hired Transport,11-Jan,"2,040.00"
5485439,Hyde Accessible Transport Limited,Operations and Neighbourhoods,Operations and Neighbourhoods,Hired Transport,10-Jan,"1,530.00"
5485440,Hyde Accessible Transport Limited,Operations and Neighbourhoods,Operations and Neighbourhoods,Hired Transport,10-Jan,"1,445.00"
5485441,Hyde Accessible Transport Limited,Operations and Neighbourhoods,Operations and Neighbourhoods,Hired Transport,10-Jan,"1,250.00"
5485442,Hyde Accessible Transport Limited,Operations and Neighbourhoods,Operations and Neighbourhoods,Hired Transport,10-Jan,"1,012.50"
5485443,Hyde Accessible Transport Limited,Operations and Neighbourhoods,Operations and Neighbourhoods,Hired Transport,06-Jan,"12,245.00"
5485445,Hyde Accessible Transport Limited,Operations and Neighbourhoods,Operations and Neighbourhoods,Hired Transport,09-Jan,"1,700.00"
5485449,NATIONAL FOSTERING AGENCY LTD,Childrens Services,Children's Services,Foster Carer Agency Fees,03-Feb,"3,116.74"
5485450,NATIONAL FOSTERING AGENCY LTD,Childrens Services,Children's Services,Foster Carer Agency Fees,03-Feb,"3,647.15"
5485451,NATIONAL FOSTERING AGENCY LTD,Childrens Services,Children's Services,Foster Carer Agency Fees,03-Feb,"3,218.42"
5485453,Furniture Resource Centre Ltd,Operations and Neighbourhoods,Operations and Neighbourhoods,"Fixtures, Fittings & Furniture Purchase",03-Feb,520.13
5485459,BY THE BRIDGE NORTH WEST LTD,Childrens Services,Children's Services,Foster Carer Agency Fees,03-Feb,"4,630.16"
5485461,BY THE BRIDGE NORTH WEST LTD,Childrens Services,Children's Services,Foster Carer Agency Fees,03-Feb,"4,407.63"
5485462,JACKSON & TAYLOR LTD,Housing,Director of Place,Mandatory Adaptations Grant (DFG),09-Jan,"7,874.57"
5485467,STOCKPORT MBC,Education,Children's Services,Other Local Authorities Fees,17-Jan,"24,258.33"
5485468,BY THE BRIDGE NORTH WEST LTD,Childrens Services,Children's Services,Foster Carer Agency Fees,03-Feb,"3,270.50"
5485471,NPOWER LIMITED,Adult Social Care,Adults,Electricity,02-Feb,855.04
5485474,Redacted Supplier,Childrens Services,Children's Services,Childrens Homes Outside Local Authority Fees,03-Feb,"6,273.74"
5485476,ELECTORAL REFORM SERVICES,Governance,Governance,Printing And Stationery,03-Feb,"7,384.37"
5485477,BY THE BRIDGE NORTH WEST LTD,Childrens Services,Children's Services,Foster Carer Agency Fees,03-Feb,"3,270.50"
5485479,Redacted Supplier,Childrens Services,Children's Services,Childrens Homes Outside Local Authority Fees,03-Feb,"14,835.67"
5485485,TREASURED MEMORIES LTD,Operations and Neighbourhoods,Operations and Neighbourhoods,Plaques,03-Feb,735.20
5485487,BY THE BRIDGE NORTH WEST LTD,Childrens Services,Children's Services,Foster Carer Agency Fees,03-Feb,"4,186.55"
5485489,ALPHA PLUS FOSTERING LIMITED,Childrens Services,Children's Services,Foster Carer Agency Fees,03-Feb,"3,624.21"
5485490,ALPHA PLUS FOSTERING LIMITED,Childrens Services,Children's Services,Foster Carer Agency Fees,03-Feb,"3,428.86"
5485492,ALPHA PLUS FOSTERING LIMITED,Childrens Services,Children's Services,Foster Carer Agency Fees,03-Feb,"3,624.52"
5485493,ALPHA PLUS FOSTERING LIMITED,Childrens Services,Children's Services,Foster Carer Agency Fees,03-Feb,"3,618.56"
5485494,BY THE BRIDGE NORTH WEST LTD,Childrens Services,Children's Services,Foster Carer Agency Fees,03-Feb,"3,272.67"
5485495,NATIONAL FOSTERING AGENCY LTD,Childrens Services,Children's Services,Foster Carer Agency Fees,03-Feb,"3,208.50"
5485496,NATIONAL FOSTERING AGENCY LTD,Childrens Services,Children's Services,Other Accommodation Related Costs,09-Feb,"6,002.84"
5485498,BY THE BRIDGE NORTH WEST LTD,Childrens Services,Children's Services,Living With Formal Support,10-Feb,"4,564.75"
5485499,NATIONAL FOSTERING AGENCY LTD,Childrens Services,Children's Services,Foster Carer Agency Fees,03-Feb,"3,319.02"
5485500,NATIONAL FOSTERING AGENCY LTD,Childrens Services,Children's Services,Foster Carer Agency Fees,03-Feb,"3,365.84"
